Workbook

Sheet Portada

Sheet Instrucciones
C2: Menú de Navegación | E2: La calculadora dispone de un menú de navegación situado a la izquierda de cada hoja. A través de los botones del menú el usuario puede desplazarse por la calculadora.
E4: Las celdas verdes pueden modificarse por el usuario.
E6: Las celdas blancas contienen cálculos o referencias, y no son modificables por el usuario.
E8: Los símbolos "+" y "-" amplían u ocultan la información de cada pestaña.
E10: A través del botón de la izquierda podrá obtener información extra de la pestaña en la que se encuentre.
E12: El botón Reset que aparece en algunas pestañas en la parte superior derecha y sirve para restablecer los valores por defecto de la herramienta.
E14: Las referencias están indicadas con número entre paréntesis o en una columna, y pueden ser consultadas en la pestaña Referencias.

Sheet Diagramas
C2: Introducción
C4: Para distinguir la desnutrición en España provocada por la hambruna o pobreza, de la provocada por otras causas, se usa el término de desnutrición relacionada con la enfermedad (DRE). La DRE puede deberse a una ingesta insuficiente de nutrientes y/o una falta de aprovechamiento de los mismos (1). Se definen tres tipos de DRE (1): - Desnutrición crónica pura sin inflamación. - Desnutrición asociada a enfermedades crónicas o condiciones que presentan inflamación en grado leve o moderado. - Desnutrición asociada a enfermedad aguda o estado lesional que cursa con una marcada respuesta inflamatoria. En la figura 1, se muestran diversas razones por las que una persona puede padecer DRE.
C6: Figura 1. Causas de la desnutrición relacionada con la enfermedad
C7: Fuente: Álvarez et al. 2018 (1)
C8: Tratar la DRE ha demostrado tener efectos positivos en los pacientes hospitalizados, disminuyendo la inflamación y mejorando su pronóstico.
C11: Análisis de Impacto Presupuestario
C13: Se ha realizado un análisis de impacto presupuestario para estimar la variación en el presupuesto del Sistemana Nacional de Salud (SNS) español del cribado de la DRE en pacientes hospitalizados. El estudio se ha realizado desde la perspectiva del SNS con un horizonte temporal de 3 años. La población elegible varía en base a la población de análisis seleccionada (España, Comunidad Autónoma u hospital), y al cuestionario de cribado seleccionado. Se incluyen los costes de cribado, valoración nutricional, seguimiento intrahospitalario, coste de la nutrición enteral (oral o por sonda) y parenteral, y el coste de la estancia del paciente (Figura 2).
C15: Figura 2. Diagrama del Impacto presupuestario
C16: Fuente: Elaboración propia
C19: Análisis Coste-Utilidad
C21: Se ha realizado un análisis coste-utilidad para estimar la eficiencia relativa del cribado en DRE de pacientes hospitalizados en el Sisteman Nacional de Salud (SNS) español. El estudio se ha realizado desde la perspectiva del SNS con un horizonte temporal de 3 meses. La población elegible varía en base a la población de análisis seleccionada (España, Comunidad Autónoma u hospital), y al cuestionario de cribado seleccionado. Se incluyen los costes de cribado, valoración nutricional, seguimiento intrahospitalario, coste de la nutrición enteral (oral o por sonda) y parenteral, y el coste de la estancia del paciente. Además, se contemplan las utilidades al alta hospitalaria y a los 3 meses del alta.

Sheet Ajustes
C3: Población
C4: (i) Por favor, seleccione la población de análisis (España, Comunidad Autónoma u hospital). En caso de seleccionar "Comunidad Autónoma" u "hospital" indique en qué comunidad/centro quiere realizar el análisis. El usuario, también, puede introducir una población de forma manual. Si selecciona esa opción, podrá seleccionar los costes para una Comunidad Autónoma específica, o España en general. La introducción manual de la población se realizará en la pestaña población.
N5: =E6=Listas!A4 -> FALSE
D6: Población | E6: España
D8: Comunidad Autónoma
D10: Provincia
D12: Hospital
D14: Costes
C16: Cuestionario de Cribado
C17: (i) Por favor, seleccione el cuestionario de cribado del análisis. A través del botón de la derecha podrá obtener información extra sobre los cuestionarios.
D19: Cuestionario | E19: NRS 2002® | N19: =O19=E19 -> FALSE | O19: MNA®
N20: Toda la población | O20: =N20=E21 -> FALSE
D21: Población | N21: ≥ 65 años | O21: =N21=E21 -> FALSE
C23: Ajustes específicos del análisis Coste-Utilidad
D25: Horizonte temporal | E25: 3
E27: Dato | F27: Referencia
D28: Tasa de descuento de los costes | E28: 0 | F28: =Referencias!#REF! -> 
D29: Tasa de descuento de las utilidades | E29: 0
D31: Al ser el horizonte temporal menor de un año, no se incluye tasa de descuento de costes ni utilidades.
C35: Umbral coste utilidad
C36: (i) Las guias de evaluación económica establecen para España un umbral de 25.000 €/AVAC, siendo este modificable.
D38: Umbral | E38: 25000 | F38: =CONCATENATE(Referencias!$C$3," - ",Referencias!$C$5) -> 2 - 4 | N38: 25000

Sheet Información_Cribado
C4: Cuestionario | D4: PDF | E4: Características específicas | F4: Estudios
C5: MUST | E5: Puede ser aplicado en todos los pacientes adultos de cualquier nivel asistencial. | F5: =CONCATENATE("Castro-Vega I. et al 2017 (",Referencias!$C$6,")") -> Castro-Vega I. et al 2017 (5)
C6: NRS 2002® | E6: Herramienta de cribado recomendado por la ESPEN para pacientes hospitalizados. | F6: =CONCATENATE("Álvarez-Hernández J. et al 2012 (",Referencias!$C$7,")") -> Álvarez-Hernández J. et al 2012 (6)
C7: MNA® | E7: Herramienta diseñada para detectar la presencia de desnutrición o riesgo de desarrollarla en pacientes ancianos en domicilio, residencias u hospitalizados. | F7: =CONCATENATE("Cuerda C. et al 2016 (",Referencias!$C$8,")") -> Cuerda C. et al 2016 (7)
C8: MST | E8: Puede ser aplicado en pacientes hospitalizados y ambulatorios, y cumplimentado por el propio paciente, un familiar, cuidador o el médico. | F8: =CONCATENATE("Castro-Vega I. et al 2017 (",Referencias!$C$6,")") -> Castro-Vega I. et al 2017 (5)
C9: SNAQ | E9: En este estudio se ha considerado el cuestionario específico indicado en pacientes hospitalizados. | F9: =CONCATENATE("Kruizenga H. et al 2016 (",Referencias!$C$9,")") -> Kruizenga H. et al 2016 (8)
C10: VSG | E10: Es un método que clasifica a los pacientes de forma subjetiva en base a datos obtenidos de la historia clínica y la exploración física. | F10: =CONCATENATE("Norman K. et al 2016 (",Referencias!$C$10,")") -> Norman K. et al 2016 (9)

Sheet Población
Q2: Busca población | R2: Busca Tasa | S2: Población mayor de 18 años de referencia del
C3: Población | Q3: =IF(Q4=TRUE,R4,IF(Q5=TRUE,Ajustes!$E$8,Ajustes!$E$12)) -> España | R3: =IF(Q6=TRUE,Ajustes!$E$8,IF(Q4=TRUE,R4,Ajustes!$E$8)) -> España | S3: Población mayor de 18 años residente en
Q4: =R4=Ajustes!$E$6 -> TRUE | R4: España | S4: =CONCATENATE(S3,R4) -> Población mayor de 18 años residente en España
E5: 2021 | F5: 2022 | G5: 2023 | H5: Referencia | Q5: =R5=Ajustes!$E$6 -> FALSE | R5: Comunidad Autónoma | S5: =CONCATENATE(S3,Ajustes!E8) -> Población mayor de 18 años residente en
C6: =VLOOKUP(TRUE,Q4:S6,3,FALSE) -> Población mayor de 18 años residente en España | E6: =VLOOKUP($Q$3,'Datos listas población'!$A:$E,'Datos listas población'!B$1,FALSE) -> 39094263.7 | F6: =VLOOKUP($Q$3,'Datos listas población'!$A:$E,'Datos listas población'!C$1,FALSE) -> 39235660.45 | G6: =VLOOKUP($Q$3,'Datos listas población'!$A:$E,'Datos listas población'!D$1,FALSE) -> 39389925.79 | H6: =VLOOKUP($Q$3,'Datos listas población'!$A:$E,'Datos listas población'!E$1,FALSE) -> 10 | Q6: =R6=Ajustes!$E$6 -> FALSE | R6: Hospital | S6: =CONCATENATE(S2,Ajustes!E12) -> Población mayor de 18 años de referencia del
C8: % población ≥ 65 años | E8: 1 | F8: 1 | G8: 1 | H8: =VLOOKUP($R$3,'Datos listas población'!$A:$X,'Datos listas población'!M$1,FALSE) -> 10 | Q8: =IF(Ajustes!$N$19=FALSE,1,IF(Ajustes!$O$20=TRUE,1,VLOOKUP($R$3,'Datos listas población'!$A:$X,'Datos listas población'!J$1,FALSE))) -> 1 | R8: =IF(Ajustes!$N$19=FALSE,1,IF(Ajustes!$O$20=TRUE,1,VLOOKUP($R$3,'Datos listas población'!$A:$X,'Datos listas población'!K$1,FALSE))) -> 1 | S8: =IF(Ajustes!$N$19=FALSE,1,IF(Ajustes!$O$20=TRUE,1,VLOOKUP($R$3,'Datos listas población'!$A:$X,'Datos listas población'!L$1,FALSE))) -> 1
C10: Pacientes ≥ de 65 años | E10: =E8*E6 -> 39094263.7 | F10: =F8*F6 -> 39235660.45 | G10: 39389925.79 | H10: =CONCATENATE(VLOOKUP($Q$3,'Datos listas población'!$A:$E,'Datos listas población'!E$1,FALSE),", ",VLOOKUP($R$3,'Datos listas población'!$A:$I,'Datos listas población'!I$1,FALSE)) -> 10, 13
C12: Tasa de hospitalización anual (10.000 habitantes) | E12: 3314.61 | F12: 3314.61 | G12: 3314.61 | H12: =VLOOKUP($R$3,'Datos listas población'!$A:$I,'Datos listas población'!I$1,FALSE) -> 13 | Q12: =IF(Ajustes!$O$21=TRUE,VLOOKUP($R$3,'Datos listas población'!$A:$Z,'Datos listas población'!P$1,FALSE),VLOOKUP($R$3,'Datos listas población'!$A:$L,'Datos listas población'!F$1,FALSE)) -> 3314.61 | R12: =IF(Ajustes!$O$21=TRUE,VLOOKUP($R$3,'Datos listas población'!$A:$Z,'Datos listas población'!Q$1,FALSE),VLOOKUP($R$3,'Datos listas población'!$A:$L,'Datos listas población'!G$1,FALSE)) -> 3314.61 | S12: =IF(Ajustes!$O$21=TRUE,VLOOKUP($R$3,'Datos listas población'!$A:$Z,'Datos listas población'!R$1,FALSE),VLOOKUP($R$3,'Datos listas población'!$A:$L,'Datos listas población'!H$1,FALSE)) -> 3314.61
C14: Pacientes hospitalizados anualmente | E14: =E10*(E12/10000) -> 12958223.74 | F14: =F10*(F12/10000) -> 13005091.25 | G14: 13056224.19 | H14: =CONCATENATE(VLOOKUP($Q$3,'Datos listas población'!$A:$E,'Datos listas población'!E$1,FALSE),", ",VLOOKUP($R$3,'Datos listas población'!$A:$I,'Datos listas población'!I$1,FALSE)) -> 10, 13 | Q14: =Ajustes!$E$6=R14 -> FALSE | R14: Introducción Manual
C16: Introducir población deseada | E16: 1000 | F16: 1000 | G16: 1000 | Q16: 1000 | R16: 1000 | S16: 1000
C18: Población Objetivo | E18: =IF(Ajustes!$E$6=Listas!$A$4,Población!E16,Población!E14) -> 12958223.74 | F18: =IF(Ajustes!$E$6=Listas!$A$4,Población!F16,Población!F14) -> 13005091.25 | G18: =IF(Ajustes!$E$6=Listas!$A$4,Población!G16,Población!G14) -> 13056224.19
C21: Tasas
C23: =CONCATENATE("Pacientes que se someterán a una valoración nutricional ",Q23) -> Pacientes que se someterán a una valoración nutricional NRS 2002® | Q23: =Ajustes!$E$19 -> NRS 2002® | S23: =IF(S24=Q23,TRUE,IF(S25=Q23,TRUE,IF(S26=Q23,TRUE,FALSE))) -> TRUE
C24: Positividad del cuestionario de desnutrición | D24: 0.230228471 | E24: =E18*$D$24 -> 2983352.039 | F24: =F18*$D$24 -> 2994142.274 | G24: =G18*$D$24 -> 3005914.533 | H24: =VLOOKUP($Q$23,'Datos listas cuestionarios'!$A$1:$E$8,'Datos listas cuestionarios'!$C$1,FALSE) -> 6 | Q24: =VLOOKUP($Q$23,'Datos listas cuestionarios'!$A$1:$E$8,'Datos listas cuestionarios'!$B$1,FALSE) -> 0.230228471 | S24: NRS 2002®
C25: =CONCATENATE("Pacientes que tendrán que recibir un tratamiento o seguimiento ",Q23) -> Pacientes que tendrán que recibir un tratamiento o seguimiento NRS 2002® | S25: SNAQ
C26: Prevalencia de desnutrición tras valoración nutricional | D26: 1 | E26: =E24*$D$26 -> 2983352.039 | F26: =F24*$D$26 -> 2994142.274 | G26: =G24*$D$26 -> 3005914.533 | H26: =VLOOKUP($Q$23,'Datos listas cuestionarios'!$A$1:$E$8,'Datos listas cuestionarios'!$E$1,FALSE) -> 6 | Q26: =VLOOKUP($Q$23,'Datos listas cuestionarios'!$A$1:$E$8,'Datos listas cuestionarios'!$D$1,FALSE) -> 1 | S26: VSG
C28: Características de la población desnutrida
H30: Referencia
C31: Edad media de los pacientes | E31: 58.5 | H31: =Referencias!$C$7 -> 6 | Q31: 71.4
C32: Peso medio de los pacientes | E32: 58.5 | H32: =Referencias!$C$7 -> 6 | Q32: 58.5
C33: Altura media de los pacientes | E33: 162.3 | H33: =Referencias!$C$7 -> 6 | Q33: 162.3
C34: Índice de masa corporal medio de los pacientes | E34: =E32/(E33/100)^2 -> 22.20847954 | H34: =Referencias!$C$7 -> 6

Sheet Costes
C3: Costes asociados al cribado de DRE y la valoración nutricional
C4: (i) A través del botón de la derecha podrá obtener información extra sobre los costes derivados de este apartado.
D6: Coste
C7: Coste cribado | D7: =VLOOKUP(TRUE,'Coste cribado y VN'!N5:U10,8,FALSE) -> 1.774571918 | O7: =IF($P$16=TRUE,$O$8,$P$8) -> España
C8: Coste Valoración Nutricional Inicial | D8: ='Coste cribado y VN'!$I$15+'Coste cribado y VN'!$I$18+'Coste cribado y VN'!$I$21+'Coste cribado y VN'!$I$24+'Coste cribado y VN'!$I$31+'Coste cribado y VN'!$I$34+'Coste cribado y VN'!$I$38+'Coste cribado y VN'!$I$44 -> 31.81636432 | O8: =Ajustes!$E$6 -> España | P8: =IF(Ajustes!$E$8=0,Ajustes!$E$14,Ajustes!$E$8) -> 0
C9: Coste seguimiento del cribado (por semana) | D9: ='Coste cribado y VN'!$N$45 -> 29.13439538
C11: Tiempo de inicio de la nutrición
D13: Dato | E13: Referencia
C14: Días hasta que se inicia la nutrición tras el cribado | D14: 1 | E14: =Referencias!$C$15 -> 14 | O14: 1
C15: Días hasta que se inicia la nutrición sin cribado | D15: =D14*2 -> 2 | E15: =Referencias!$C$15 -> 14
O16: España | P16: =$O$16=$O$8 -> TRUE
C17: Coste estancia y reingreso | O17: Comunidad Autónoma
C18: (i) A través del botón de la derecha podrá obtener información extra sobre los costes derivados de este apartado.
O19: Hospital
C20: Pacientes desnutridos con cribado | D20: Dato | F20: Pacientes desnutridos sin cribado | I20: Dato
C21: Días de Estancia | D21: ='Estancia Media'!$D$6 -> 5.265177398 | F21: Días de Estancia | I21: ='Estancia Media'!$G$6 -> 7.2
C22: Coste por paciente por estancia/reingreso | D22: ='Estancia Media'!$D$19 -> 2044.300831 | F22: Coste por paciente por estancia/reingreso | I22: ='Estancia Media'!$G$19 -> 2795.530876
C23: Coste por reingreso de más | D23: =EstanciaMedia_cribado*D24 -> 579.2185688 | I23: =EstanciaMedia_sincribar*I24 -> 1345.996348 | K23: Oculto
C24: % pacientes que reingresan | D24: ='Estancia Media'!$D$25 -> 0.2833333333 | F24: % pacientes que reingresan | I24: ='Estancia Media'!$G$25 -> 0.4814814815
C26: Nutrición enteral
C28: Oral
C30: Cribado | F30: Sin cribado
C32: % de tiempo que se administra la nutrición enteral durante la estancia | D32: 1 | F32: % de tiempo que se administra la nutrición enteral durante la estancia | I32: 1 | O32: 1
C34: Pacientes desnutridos con cribado | D34: Coste | F34: Pacientes desnutridos sin cribado | I34: Coste
C35: Coste suplemento/día | D35: ='Nutrición Enteral'!$J$24 -> 9.295298892 | F35: Coste suplemento/día | I35: ='Nutrición Enteral'!$J$36 -> 9.295298892
C36: Coste de administración | F36: Coste de administración
C38: Coste total durante la hospitalización | D38: =D35*(D21-D14)*D32 -> 39.64609874 | F38: Coste total durante la hospitalización | I38: =I35*(I21-D15)*I32 -> 48.33555424
C40: Sonda
C42: Cribado | F42: Sin cribado
C44: % de tiempo que se administra la nutrición enteral durante la estancia | D44: 1 | F44: % de tiempo que se administra la nutrición enteral durante la estancia | I44: 1 | O44: 1
C46: Pacientes desnutridos con cribado | D46: Coste | F46: Pacientes desnutridos sin cribado | I46: Coste
C47: Coste nutrición enteral | D47: ='Nutrición Enteral Sonda'!$J$20 -> 35.5977516 | F47: Coste nutrición enteral | I47: ='Nutrición Enteral Sonda'!$J$28 -> 35.5977516
C48: Coste de la sonda y de la colocación de la sonda | D48: ='Nutrición Enteral Sonda'!$J$40+'Nutrición Enteral Sonda'!$E$37 -> 37.11644122 | F48: Coste de la sonda y de la colocación de la sonda | I48: ='Nutrición Enteral Sonda'!$J$40+'Nutrición Enteral Sonda'!$E$37 -> 37.11644122
C50: Coste total durante la hospitalización | D50: =(D47*(D21-D14)*D44)+D48 -> 188.9471668 | F50: Coste total durante la hospitalización | I50: =(I47*(I21-D15)*I44)+I48 -> 222.2247495
C52: Nutrición parenteral
C54: Cribado | F54: Sin cribado
C56: =CONCATENATE("% de tiempo que se administra la nutrición parenteral durante la estancia (",Referencias!$C$15,")") -> % de tiempo que se administra la nutrición parenteral durante la estancia (14) | D56: 0.8 | F56: =CONCATENATE("% de tiempo que se administra la nutrición parenteral durante la estancia (",Referencias!$C$15,")") -> % de tiempo que se administra la nutrición parenteral durante la estancia (14) | I56: 0.8 | P56: 0.8
O57: =1-I56 -> 0.2
C58: =CONCATENATE("% Pacientes que pasan a nutrición enteral tras nutrición parenteral (",Referencias!$C$15,")") -> % Pacientes que pasan a nutrición enteral tras nutrición parenteral (14) | D58: 0.9 | F58: =CONCATENATE("% Pacientes que pasan a nutrición enteral tras nutrición parenteral (",Referencias!$C$15,")") -> % Pacientes que pasan a nutrición enteral tras nutrición parenteral (14) | I58: 0.9 | O58: =1-D56 -> 0.2 | P58: 0.9
C59: =CONCATENATE("Tras la nutrición pareneteral, el ",TEXT($D$58,"0%")," de los pacientes recibiran nutrición enteral oral o por sonda. La nutrición parenteral supone un ",TEXT($D$56,"0%")," del tiempo, por favor, indique para el ",TEXT($O$58,"0%")," restante, que % del tiempo se administrará nutrición enteral.") -> Tras la nutrición pareneteral, el 90% de los pacientes recibiran nutrición enteral oral o por sonda. La nutrición parenteral supone un 80% del tiempo, por favor, indique para el 20% restante, que % del tiempo se administrará nutrición enteral. | D59: 1 | F59: =CONCATENATE("Tras la nutrición pareneteral, el ",TEXT($I$58,"0%")," de los pacientes recibiran nutrición enteral oral o por sonda. La nutrición parenteral supone un ",TEXT($I$56,"0%")," del tiempo, por favor, indique del ",TEXT($O$57,"0%")," restante, que % del tiempo se administrará nutrición enteral.") -> Tras la nutrición pareneteral, el 90% de los pacientes recibiran nutrición enteral oral o por sonda. La nutrición parenteral supone un 80% del tiempo, por favor, indique del 20% restante, que % del tiempo se administrará nutrición enteral. | I59: 1 | P59: 1
C60: =CONCATENATE("% de tiempo que se administra la nutrición enteral durante la estancia (",Referencias!$C$15,")") -> % de tiempo que se administra la nutrición enteral durante la estancia (14) | D60: =(1-D56)*D59 -> 0.2 | F60: =CONCATENATE("% de tiempo que se administra la nutrición enteral durante la estancia (",Referencias!$C$15,")") -> % de tiempo que se administra la nutrición enteral durante la estancia (14) | I60: =(1-I56)*I59 -> 0.2 | O60: Cribado | P60: Sin cribado
C61: =CONCATENATE("Distribución de los tratamientos tras nutrición parenteral (",Referencias!$C$56,")") -> Distribución de los tratamientos tras nutrición parenteral (55) | F61: =CONCATENATE("Distribución de los tratamientos tras nutrición parenteral (",Referencias!$C$56,")") -> Distribución de los tratamientos tras nutrición parenteral (55) | N61: Coste suplemento día | O61: =(D35*D62)+(D63*D47) -> 13.93690819 | P61: =(I35*I62)+(I63*I47) -> 16.18403651
C62: Nutrición enteral Oral | D62: =IFERROR(D76/SUM($D$76:$D$77),0) -> 0.8235294118 | F62: Nutrición enteral Oral | I62: =IFERROR(I76/SUM($I$76:$I$77),0) -> 0.7380952381 | N62: Coste admin | O62: =(D63*D48) -> 6.549960214 | P62: =(I63*I48) -> 9.720972699
C63: Nutrición Enteral por Sonda | D63: =IFERROR(D77/SUM($D$76:$D$77),0) -> 0.1764705882 | F63: Nutrición Enteral por Sonda | I63: =IFERROR(I77/SUM($I$76:$I$77),0) -> 0.2619047619 | O63: =IF(D60=0,0,(O61*(D21-D14)*D60)+O62)*D58 -> 16.59477364 | P63: =IF(I60=0,0,(P61*(I21-D15)*I60)+P62)*I58 -> 23.8971336
C65: Pacientes desnutridos con cribado | D65: Coste | F65: Pacientes desnutridos sin cribado | I65: Coste
C66: Coste farmacológico/día parenteral | D66: =SUMPRODUCT('Nutrición Parenteral'!$G$27:$G$32,'Nutrición Parenteral'!$H$27:$H$32) -> 52.008606 | F66: Coste farmacológico/día parenteral | I66: =SUMPRODUCT('Nutrición Parenteral'!$G$36:$G$41,'Nutrición Parenteral'!$H$36:$H$41) -> 52.008606
C67: Coste de administración/fungible | D67: ='Nutrición Parenteral'!$P$48 -> 79.09963439 | F67: Coste de administración/fungible | I67: ='Nutrición Parenteral'!$P$58 -> 83.5699112
C69: Coste total durante la hospitalización | D69: =(D66*(D21-D14)*D56)+D67+O63 -> 273.1551527 | F69: Coste total durante la hospitalización | I69: =(I66*(I21-D15)*I56)+I67+P63 -> 323.8228458
C71: Distribución de los tratamientos
D73: =CONCATENATE("Pacientes desnutridos con cribado (",Referencias!$C$56,")") -> Pacientes desnutridos con cribado (55) | G73: =CONCATENATE("Pacientes desnutridos sin cribado (",Referencias!$C$56,")") -> Pacientes desnutridos sin cribado (55)
D74: 2021 | E74: 2022 | F74: 2023 | G74: 2021 | H74: 2022 | I74: 2023
C75: Dieta o sin tratamiento | D75: =1-SUM(D76:D78) -> 0.6228070175 | E75: =1-SUM(E76:E78) -> 0.6228070175 | F75: 0.6228070175 | G75: =1-SUM(G76:G78) -> 0.8672316384 | H75: =1-SUM(H76:H78) -> 0.8672316384 | I75: 0.8672316384
C76: Nutrición enteral Oral | D76: 0.2456140351 | E76: 0.2456140351 | F76: 0.2456140351 | G76: 0.08757062147 | H76: 0.08757062147 | I76: 0.08757062147 | O76: 0.2456140351 | P76: 0.2456140351 | Q76: 0.2456140351 | R76: 0.08757062147 | S76: 0.08757062147 | T76: 0.08757062147
C77: Nutrición enteral sonda | D77: 0.05263157895 | E77: 0.05263157895 | F77: 0.05263157895 | G77: 0.03107344633 | H77: 0.03107344633 | I77: 0.03107344633 | O77: 0.05263157895 | P77: 0.05263157895 | Q77: 0.05263157895 | R77: 0.03107344633 | S77: 0.03107344633 | T77: 0.03107344633
C78: Nutrición Parenteral | D78: 0.07894736842 | E78: 0.07894736842 | F78: 0.07894736842 | G78: 0.01412429379 | H78: 0.01412429379 | I78: 0.01412429379 | O78: 0.07894736842 | P78: 0.07894736842 | Q78: 0.07894736842 | R78: 0.01412429379 | S78: 0.01412429379 | T78: 0.01412429379
D80: con cribado | G80: sin cribado
D81: 2021 | E81: 2022 | F81: 2023 | G81: 2021 | H81: 2022 | I81: 2023
C82: Dieta o sin tratamiento | D82: =IFERROR(Población!E$26*D75,0) -> 1858052.585 | E82: =IFERROR(Población!F$26*E75,0) -> 1864772.819 | F82: =IFERROR(Población!G$26*F75,0) -> 1872104.665 | G82: =IFERROR(Población!E$26*G75,0) -> 2587257.276 | H82: =IFERROR(Población!F$26*H75,0) -> 2596614.91 | I82: =IFERROR(Población!G$26*I75,0) -> 2606824.185
C83: Nutrición Enteral Oral | D83: =IFERROR(Población!E$26*D76,0) -> 732753.1323 | E83: =IFERROR(Población!F$26*E76,0) -> 735403.3654 | F83: =IFERROR(Población!G$26*F76,0) -> 738294.7975 | G83: =IFERROR(Población!E$26*G76,0) -> 261253.9921 | H83: =IFERROR(Población!F$26*H76,0) -> 262198.8997 | I83: =IFERROR(Población!G$26*I76,0) -> 263229.8037
C84: Nutrición Enteral Sonda | D84: =IFERROR(Población!E$26*D77,0) -> 157018.5284 | E84: =IFERROR(Población!F$26*E77,0) -> 157586.4354 | F84: =IFERROR(Población!G$26*F77,0) -> 158206.028 | G84: =IFERROR(Población!E$26*G77,0) -> 92703.02945 | H84: =IFERROR(Población!F$26*H77,0) -> 93038.31923 | I84: =IFERROR(Población!G$26*I77,0) -> 93404.1239
C85: Nutrición Parenteral | D85: =IFERROR(Población!E$26*D78,0) -> 235527.7925 | E85: =IFERROR(Población!F$26*E78,0) -> 236379.6532 | F85: =IFERROR(Población!G$26*F78,0) -> 237309.0421 | G85: =IFERROR(Población!E$26*G78,0) -> 42137.74066 | H85: =IFERROR(Población!F$26*H78,0) -> 42290.14511 | I85: =IFERROR(Población!G$26*I78,0) -> 42456.41995
C87: Tratados sin cribado | D87: =SUM(D83:D85) -> 1125299.453 | E87: 1129369.454 | F87: =SUM(F83:F85) -> 1133809.868 | G87: =SUM(G83:G85) -> 396094.7622 | H87: =SUM(H83:H85) -> 397527.364 | I87: =SUM(I83:I85) -> 399090.3476

Sheet Coste cribado y VN
C2: Cribado Nutricional
C4: Cuestionario | D4: Pasos/ Preguntas | E4: Tiempo por paso/pregunta | F4: Tiempo estimado (min) | G4: Coste minuto | H4: Profesional que realiza la prueba | I4: Referencia | Q4: Historia clinica | R4: Historia farmacologica | S4: VGS | T4: Antropometria | U4: Coste total
C5: MUST | D5: 5 | E5: 52.5 | F5: =D5*E5/60 -> 4.375 | G5: =VLOOKUP(H5,$C$85:$H$88,6,FALSE) -> 0.3380136986 | H5: Coste personal médico | I5: =CONCATENATE(Referencias!$C$6,", ",Referencias!$C$16) -> 5, 15 | M5: MUST | N5: =$C$5=Ajustes!$E$19 -> FALSE | O5: 5 | P5: 52.5 | Q5: TRUE | R5: FALSE | S5: FALSE | T5: TRUE | U5: =F5*G5 -> 1.478809932
C6: NRS 2002® | D6: 6 | E6: 52.5 | F6: =D6*E6/60 -> 5.25 | G6: =VLOOKUP(H6,$C$85:$H$88,6,FALSE) -> 0.3380136986 | H6: Coste personal médico | I6: =CONCATENATE(,Referencias!$C$7,", ",Referencias!$C$16) -> 6, 15 | M6: NRS 2002® | N6: =$C$6=Ajustes!$E$19 -> TRUE | O6: 6 | P6: 52.5 | Q6: TRUE | R6: FALSE | S6: FALSE | T6: TRUE | U6: =F6*G6 -> 1.774571918
C7: MNA® | D7: 18 | E7: 52.5 | F7: =D7*E7/60 -> 15.75 | G7: 0.3380136986 | H7: Coste personal médico | I7: =CONCATENATE(Referencias!$C$8,", ",Referencias!$C$16) -> 7, 15 | M7: MNA® | N7: =$C$7=Ajustes!$E$19 -> FALSE | O7: 18 | P7: 52.5 | Q7: TRUE | R7: FALSE | S7: FALSE | T7: TRUE | U7: 5.323715753
C8: MST | D8: 2 | E8: 52.5 | F8: 1.75 | G8: 0.3380136986 | H8: Coste personal médico | I8: =CONCATENATE(Referencias!$C$6,", ",Referencias!$C$16) -> 5, 15 | M8: MST | N8: =$C$8=Ajustes!$E$19 -> FALSE | O8: 2 | P8: 52.5 | Q8: FALSE | R8: FALSE | S8: FALSE | T8: FALSE | U8: 0.5915239726
C9: SNAQ | D9: 3 | E9: 52.5 | F9: 2.625 | G9: 0.3380136986 | H9: Coste personal médico | I9: =CONCATENATE(Referencias!$C$9,", ",Referencias!$C$16) -> 8, 15 | M9: SNAQ | N9: =$C$9=Ajustes!$E$19 -> FALSE | O9: 3 | P9: 52.5 | Q9: FALSE | R9: FALSE | S9: FALSE | T9: FALSE | U9: 0.8872859589
C10: VSG | D10: 15 | E10: 52.5 | F10: 13.125 | G10: 0.3380136986 | H10: Coste personal médico | I10: =CONCATENATE(Referencias!$C$10,", ",Referencias!$C$16) -> 9, 15 | M10: VSG | N10: =$C$10=Ajustes!$E$19 -> FALSE | O10: 15 | P10: 52.5 | Q10: TRUE | R10: TRUE | S10: TRUE | T10: TRUE | U10: 4.436429795
R11: 4 | S11: 5 | T11: 6 | U11: 7
C12: Valoración nutricional | O12: =Costes!$O$7 -> España | V12: VERDADERO = OCULTAR
R13: Historia clinica | S13: Historia farmacologica | T13: VGS | U13: Antropometria
D14: Coste | E14: Tiempo | F14: % de uso | G14: Coste minuto | H14: Profesional que realiza la prueba | I14: Referencia | R14: =VLOOKUP(TRUE,$N$5:$T$10,R11,FALSE) -> TRUE | S14: =VLOOKUP(TRUE,$N$5:$T$10,S11,FALSE) -> FALSE | T14: =VLOOKUP(TRUE,$N$5:$T$10,T11,FALSE) -> FALSE | U14: =VLOOKUP(TRUE,$N$5:$T$10,U11,FALSE) -> TRUE
C15: Historia clínica | E15: =IF(I15=0,"Se realiza en el cribado, por lo que no se imputa coste en este apartado.","") -> Se realiza en el cribado, por lo que no se imputa coste en este apartado. | I15: =IF(R14=TRUE,0,D16*F16) -> 0
C16: Historia clínica, con énfasis en enfermedades con repercusión sobre el estado nutricional | D16: =E16*(G16/60) -> 0.2957619863 | E16: 52.5 | F16: 1 | G16: =VLOOKUP(H16,$C$85:$H$88,6,FALSE) -> 0.3380136986 | H16: Coste personal médico | I16: =Referencias!$C$16 -> 15 | Q16: 1
C18: Historia farmacológica | E18: =IF(I18=0,"Se realiza en el cribado, por lo que no se imputa coste en este apartado.","") ->  | I18: =IF(S14=TRUE,0,D19*F19) -> 0.2957619863
C19: Historia farmacológica | D19: =E19*(G19/60) -> 0.2957619863 | E19: 52.5 | F19: 1 | G19: =VLOOKUP(H19,$C$85:$H$88,6,FALSE) -> 0.3380136986 | H19: Coste personal médico | I19: =Referencias!$C$16 -> 15 | Q19: 1
C21: Valoración global subjetiva | E21: =IF(I21=0,"Se realiza en el cribado, por lo que no se imputa coste en este apartado.","") ->  | I21: =IF(T14=TRUE,0,D22*F22) -> 0.2957619863
C22: Valoración global subjetiva | D22: =E22*(G22/60) -> 0.2957619863 | E22: 52.5 | F22: 1 | G22: =VLOOKUP(H22,$C$85:$H$88,6,FALSE) -> 0.3380136986 | H22: Coste personal médico | I22: =Referencias!$C$16 -> 15 | Q22: 1
C24: Antropometría | E24: =IF(I24=0,"Se realiza en el cribado, por lo que no se imputa coste en este apartado.","") -> Se realiza en el cribado, por lo que no se imputa coste en este apartado. | I24: =IF(U14=TRUE,0,SUMPRODUCT(D25:D29,F25:F29)) -> 0
C25: Peso: habitual, actual, ajustado, ideal, historia de variaciones | D25: =E25*(G25/60) -> 0.1712717808 | E25: 52.5 | F25: 1 | G25: =VLOOKUP(H25,$C$85:$H$88,6,FALSE) -> 0.1957391781 | H25: Coste personal de enfermería | I25: =Referencias!$C$16 -> 15 | Q25: 1
C26: Talla: real, estimada por distancia cubital | D26: 0.1712717808 | E26: 52.5 | F26: 1 | G26: 0.1957391781 | H26: Coste personal de enfermería | I26: =Referencias!$C$16 -> 15 | Q26: 1
C27: Índice de masa corporal | D27: 0.1712717808 | E27: 52.5 | F27: 1 | G27: 0.1957391781 | H27: Coste personal de enfermería | I27: =Referencias!$C$16 -> 15 | Q27: 1
C28: Pliegues cutáneos: tricipital, bicipital, subescapular | D28: 0.1712717808 | E28: 52.5 | F28: 1 | G28: 0.1957391781 | H28: Coste personal de enfermería | I28: =Referencias!$C$16 -> 15 | Q28: 1
C29: Perímetros: brazo, pantorrilla, cintura, cadera | D29: 0.1712717808 | E29: 52.5 | F29: 1 | G29: 0.1957391781 | H29: Coste personal de enfermería | I29: =Referencias!$C$16 -> 15 | Q29: 1
C31: Función muscular | I31: =D32*F32 -> 0.01712717808
C32: Dinamometría | D32: =E32*(G32/60) -> 0.1712717808 | E32: 52.5 | F32: 0.1 | G32: =VLOOKUP(H32,$C$85:$H$88,6,FALSE) -> 0.1957391781 | H32: Coste personal de enfermería | I32: =Referencias!$C$16 -> 15 | Q32: 0.1
C34: Valoración dietética | I34: =SUMPRODUCT(D35:D36,F35:F36) -> 0.3404157534
C35: Métodos retrospectivos: recordatorio de 24 horas | D35: =E35*(G35/60) -> 0.1702078767 | E35: 52.5 | F35: 1 | G35: =VLOOKUP(H35,$C$85:$H$88,6,FALSE) -> 0.1945232877 | H35: Coste nutricionista | I35: =Referencias!$C$16 -> 15 | Q35: 1
C36: Métodos prospectivos: registro dietético, escalas visuales | D36: 0.1702078767 | E36: 52.5 | F36: 1 | G36: 0.1945232877 | H36: Coste nutricionista | I36: =Referencias!$C$16 -> 15 | Q36: 1
C38: Composición corporal | I38: =SUMPRODUCT(D39:D42,F39:F42) -> 2.891098116 | O38: pegar | P38: RESET
C39: Bioimpedancia | D39: =E39*(G39/60) -> 0.1712717808 | E39: 52.5 | F39: 1 | G39: =VLOOKUP(H39,$C$85:$H$88,6,FALSE) -> 0.1957391781 | H39: Coste personal de enfermería | I39: =Referencias!$C$16 -> 15 | Q39: 1
C40: Ecografía | D40: 77.70932386 | F40: 0.035 | I40: =VLOOKUP($O$12,'Costes por CCAA cribado '!$A$1:$G$23,'Costes por CCAA cribado '!$G$1,FALSE) -> 16, 17, 19-28, 30-35 | O40: =VLOOKUP($O$12,'Costes por CCAA cribado '!$A$1:$G$23,'Costes por CCAA cribado '!$F$1,FALSE) -> 77.70932386 | Q40: 0.035
C41: DEXA | D41: 77.94227065 | F41: 0 | I41: =VLOOKUP($O$12,'Costes por CCAA cribado '!$A$1:$E$23,'Costes por CCAA cribado '!$E$1,FALSE) -> 16, 19-21, 24-26, 28, 30-35 | O41: =VLOOKUP($O$12,'Costes por CCAA cribado '!$A$1:$E$23,'Costes por CCAA cribado '!$D$1,FALSE) -> 77.94227065 | Q41: 0
C42: Tac Lumbar sin contraste | D42: 82 | F42: 0 | I42: =VLOOKUP($O$12,'Costes por CCAA cribado '!$A:$O,'Costes por CCAA cribado '!$O$1,FALSE) -> 20, 23, 25-27, 32, 35 | O42: =VLOOKUP($O$12,'Costes por CCAA cribado '!$A:$O,'Costes por CCAA cribado '!$N$1,FALSE) -> 82 | Q42: 0
C44: Determinaciones analíticas para valorar la inflamación y alteraciones de iones y micronutrientes | I44: =I46+I51+I54+I56+I62+I64+I69+I74+I78 -> 27.9761993 | N44: Seguimiento cribado
C45: (i) La casilla de seguimiento es modificable y calculará la cuantía para el apartado seguimiento durante la estancia hospitalaria. Para modificarla, intruzca el número de las veces que se realizará a la semana tras el cribado. En el caso de que no tenga seguimiento, introduzca 0. | N45: =SUMPRODUCT(D47:D79,E47:E79,F47:F79) -> 29.13439538
C46: Proteínas viscerales | D46: Coste | E46: Seguimiento | F46: % de uso | I46: =SUMPRODUCT(D47:D50,F47:F50) -> 8.00337821 | O46: pegar | P46: RESET
C47: Albúmina | D47: 0.615150835 | E47: 1 | F47: 0.85 | G47: =IF(E47=0,"No tiene seguimiento durante el ingreso","") ->  | I47: =VLOOKUP($O$12,'Costes por CCAA cribado '!$A:$S,'Costes por CCAA cribado '!$Q$1,FALSE) -> 16, 18, 20, 21, 25-27, 32, 35 | O47: =VLOOKUP($O$12,'Costes por CCAA cribado '!$A:$S,'Costes por CCAA cribado '!$P$1,FALSE) -> 0.615150835 | P47: 1 | Q47: 0.85
C48: Prealbúmina | D48: 11.615 | E48: 1 | F48: 0.3 | I48: =VLOOKUP($O$12,'Costes por CCAA cribado '!$A:$S,'Costes por CCAA cribado '!$S$1,FALSE) -> 16, 21, 25-27, 32 | O48: =VLOOKUP($O$12,'Costes por CCAA cribado '!$A:$S,'Costes por CCAA cribado '!$R$1,FALSE) -> 11.615 | P48: 1 | Q48: 0.3
C49: Proteína ligadora de retinol | D49: 13.32 | E49: 1 | F49: 0.3 | I49: =VLOOKUP($O$12,'Costes por CCAA cribado '!$A:$U,'Costes por CCAA cribado '!$U$1,FALSE) -> 16, 20, 21, 25-27 | O49: =VLOOKUP($O$12,'Costes por CCAA cribado '!$A:$T,'Costes por CCAA cribado '!$T$1,FALSE) -> 13.32 | P49: 1 | Q49: 0.3
C50: Transferrina | D50: 8.39 | E50: 0 | F50: 0 | G50: No tiene seguimiento durante el ingreso | I50: =VLOOKUP($O$12,'Costes por CCAA cribado '!$A:$AD,'Costes por CCAA cribado '!$AD$1,FALSE) -> 16, 20, 21, 25-27, 32 | O50: =VLOOKUP($O$12,'Costes por CCAA cribado '!$A:$AD,'Costes por CCAA cribado '!$V$1,FALSE) -> 8.39 | P50: 0 | Q50: 0
C51: Colesterol total | I51: =SUMPRODUCT(D52:D53,F52:F53) -> 0.2325
C52: Colesterol total | D52: 0.69030167 | E52: 0 | F52: 0 | G52: =IF(E52=0,"No tiene seguimiento durante el ingreso","") -> No tiene seguimiento durante el ingreso | I52: =VLOOKUP($O$12,'Costes por CCAA cribado '!$A:$AD,'Costes por CCAA cribado '!$AD$1,FALSE) -> 16, 20, 21, 25-27, 32 | O52: =VLOOKUP($O$12,'Costes por CCAA cribado '!$A:$AD,'Costes por CCAA cribado '!$W$1,FALSE) -> 0.69030167 | P52: 0 | Q52: 0
C53: Triglicéridos | D53: 0.93 | E53: 1 | F53: 0.25 | G53: =IF(E53=0,"No tiene seguimiento durante el ingreso","") ->  | I53: =VLOOKUP($O$12,'Costes por CCAA cribado '!$A:$AD,'Costes por CCAA cribado '!$AD$1,FALSE) -> 16, 20, 21, 25-27, 32 | O53: =VLOOKUP($O$12,'Costes por CCAA cribado '!$A:$AD,'Costes por CCAA cribado '!$X$1,FALSE) -> 0.93 | P53: 1 | Q53: 0.25
C54: Parámetros inflamatorios | I54: =D55*F55 -> 2.1835
C55: Proteína C reactiva | D55: 7.94 | E55: 2 | F55: 0.275 | G55: =IF(E55=0,"No tiene seguimiento durante el ingreso","") ->  | I55: =VLOOKUP($O$12,'Costes por CCAA cribado '!$A:$AD,'Costes por CCAA cribado '!$AD$1,FALSE) -> 16, 20, 21, 25-27, 32 | O55: =VLOOKUP($O$12,'Costes por CCAA cribado '!$A:$AD,'Costes por CCAA cribado '!$Y$1,FALSE) -> 7.94 | P55: 2 | Q55: 0.275
C56: Iones | I56: =SUMPRODUCT(D57:D61,F57:F61) -> 3.587196086
C57: Calcio Total | D57: 0.71 | E57: 1 | F57: 0.85 | G57: =IF(E57=0,"No tiene seguimiento durante el ingreso","") ->  | I57: =VLOOKUP($O$12,'Costes por CCAA cribado '!$A:$BS,'Costes por CCAA cribado '!$AF$1,FALSE) -> 16, 25 - 27, 32 | O57: =VLOOKUP($O$12,'Costes por CCAA cribado '!$A:$BS,'Costes por CCAA cribado '!$AE$1,FALSE) -> 0.71 | P57: 1 | Q57: 0.85
C58: Fósforo | D58: 0.69030167 | E58: 2 | F58: 0.65 | I58: =VLOOKUP($O$12,'Costes por CCAA cribado '!$A:$BS,'Costes por CCAA cribado '!$AF$1,FALSE) -> 16, 25 - 27, 32 | O58: =VLOOKUP($O$12,'Costes por CCAA cribado '!$A:$BS,'Costes por CCAA cribado '!$AB$1,FALSE) -> 0.69030167 | P58: 2 | Q58: 0.65
C59: Cloro | D59: 0.7766666667 | E59: 3 | F59: 0.9 | I59: =VLOOKUP($O$12,'Costes por CCAA cribado '!$A:$BS,'Costes por CCAA cribado '!$AH$1,FALSE) -> 16, 18, 21, 25-27, 32, 35 | O59: =VLOOKUP($O$12,'Costes por CCAA cribado '!$A:$BS,'Costes por CCAA cribado '!$AG$1,FALSE) -> 0.7766666667 | P59: 3 | Q59: 0.9
C60: Potasio | D60: 1.02 | E60: 3 | F60: 0.9 | I60: =VLOOKUP($O$12,'Costes por CCAA cribado '!$A:$BS,'Costes por CCAA cribado '!$AK$1,FALSE) -> 16, 18, 20, 21, 25-27, 32, 35 | O60: =VLOOKUP($O$12,'Costes por CCAA cribado '!$A:$BS,'Costes por CCAA cribado '!$AI$1,FALSE) -> 1.02 | P60: 3 | Q60: 0.9
C61: Sodio | D61: 1.02 | E61: 3 | F61: 0.9 | I61: =VLOOKUP($O$12,'Costes por CCAA cribado '!$A:$BS,'Costes por CCAA cribado '!$AK$1,FALSE) -> 16, 18, 20, 21, 25-27, 32, 35 | O61: =VLOOKUP($O$12,'Costes por CCAA cribado '!$A:$BS,'Costes por CCAA cribado '!$AJ$1,FALSE) -> 1.02 | P61: 3 | Q61: 0.9
C62: Minerales | I62: =D63*F63 -> 0.708
C63: Magnesio | D63: 1.18 | E63: 1 | F63: 0.6 | G63: =IF(E63=0,"No tiene seguimiento durante el ingreso","") ->  | I63: =VLOOKUP($O$12,'Costes por CCAA cribado '!$A:$BS,'Costes por CCAA cribado '!$AD$1,FALSE) -> 16, 20, 21, 25-27, 32 | O63: =VLOOKUP($O$12,'Costes por CCAA cribado '!$A:$BS,'Costes por CCAA cribado '!$Z$1,FALSE) -> 1.18 | P63: 1 | Q63: 0.6
C64: Vitaminas Liposolubles | I64: =SUMPRODUCT(D65:D68,F65:F68) -> 5.5155
C65: Vitamina A | D65: 17.315 | E65: 0 | F65: 0.05 | G65: =IF(E65=0,"No tiene seguimiento durante el ingreso","") -> No tiene seguimiento durante el ingreso | I65: =VLOOKUP($O$12,'Costes por CCAA cribado '!$A:$BS,'Costes por CCAA cribado '!$AS$1,FALSE) -> 16, 20, 25-27, 32 | O65: =VLOOKUP($O$12,'Costes por CCAA cribado '!$A:$BS,'Costes por CCAA cribado '!$AL$1,FALSE) -> 17.315 | P65: 0 | Q65: 0.05
C66: Vitamina D | D66: 33.15 | E66: 0 | F66: 0.05 | G66: No tiene seguimiento durante el ingreso | I66: =VLOOKUP($O$12,'Costes por CCAA cribado '!$A:$BS,'Costes por CCAA cribado '!$AS$1,FALSE) -> 16, 20, 25-27, 32 | O66: =VLOOKUP($O$12,'Costes por CCAA cribado '!$A:$BS,'Costes por CCAA cribado '!$AM$1,FALSE) -> 33.15 | P66: 0 | Q66: 0.05
C67: Vitamina E | D67: 17.47 | E67: 0 | F67: 0.05 | G67: No tiene seguimiento durante el ingreso | I67: =VLOOKUP($O$12,'Costes por CCAA cribado '!$A:$BS,'Costes por CCAA cribado '!$AX$1,FALSE) -> 16, 20, 25, 26, 32 | O67: =VLOOKUP($O$12,'Costes por CCAA cribado '!$A:$BS,'Costes por CCAA cribado '!$AV$1,FALSE) -> 17.47 | P67: 0 | Q67: 0.05
C68: Vitamina K | D68: 42.375 | E68: 0 | F68: 0.05 | G68: No tiene seguimiento durante el ingreso | I68: =VLOOKUP($O$12,'Costes por CCAA cribado '!$A:$BS,'Costes por CCAA cribado '!$AZ$1,FALSE) -> 25, 32 | O68: =VLOOKUP($O$12,'Costes por CCAA cribado '!$A:$BS,'Costes por CCAA cribado '!$AY$1,FALSE) -> 42.375 | P68: 0 | Q68: 0.05
C69: Vitaminas Hidrosolubles | I69: =SUMPRODUCT(D70:D73,F70:F73) -> 1.0285
C70: Vitamina B1 | D70: 30.25 | E70: 0 | F70: 0 | G70: =IF(E70=0,"No tiene seguimiento durante el ingreso","") -> No tiene seguimiento durante el ingreso | I70: =VLOOKUP($O$12,'Costes por CCAA cribado '!$A:$BS,'Costes por CCAA cribado '!$AS$1,FALSE) -> 16, 20, 25-27, 32 | O70: =VLOOKUP($O$12,'Costes por CCAA cribado '!$A:$BS,'Costes por CCAA cribado '!$AN$1,FALSE) -> 30.25 | P70: 0 | Q70: 0
C71: Vitamina B12 | D71: 11.28 | E71: 0 | F71: 0.05 | G71: =IF(E71=0,"No tiene seguimiento durante el ingreso","") -> No tiene seguimiento durante el ingreso | I71: =VLOOKUP($O$12,'Costes por CCAA cribado '!$A:$BS,'Costes por CCAA cribado '!$AU$1,FALSE) -> 16, 20, 25, 27, 32 | O71: =VLOOKUP($O$12,'Costes por CCAA cribado '!$A:$BS,'Costes por CCAA cribado '!$AT$1,FALSE) -> 11.28 | P71: 0 | Q71: 0.05
C72: Vitamina C | D72: 13.95 | E72: 0 | F72: 0 | G72: No tiene seguimiento durante el ingreso | I72: =VLOOKUP($O$12,'Costes por CCAA cribado '!$A:$BS,'Costes por CCAA cribado '!$BH$1,FALSE) -> 16, 20, 25-27 | O72: =VLOOKUP($O$12,'Costes por CCAA cribado '!$A:$BS,'Costes por CCAA cribado '!$BG$1,FALSE) -> 13.95 | P72: 0 | Q72: 0
C73: Ácido Fólico | D73: 9.29 | E73: 0 | F73: 0.05 | G73: No tiene seguimiento durante el ingreso | I73: =VLOOKUP($O$12,'Costes por CCAA cribado '!$A:$BS,'Costes por CCAA cribado '!$AX$1,FALSE) -> 16, 20, 25, 26, 32 | O73: =VLOOKUP($O$12,'Costes por CCAA cribado '!$A:$BS,'Costes por CCAA cribado '!$AW$1,FALSE) -> 9.29 | P73: 0 | Q73: 0.05
C74: Oligoelementos | I74: =SUMPRODUCT(D75:D77,F75:F77) -> 2.307625
C75: Ferritina | D75: 9.95 | E75: 0 | F75: 0 | G75: =IF(E75=0,"No tiene seguimiento durante el ingreso","") -> No tiene seguimiento durante el ingreso | I75: =VLOOKUP($O$12,'Costes por CCAA cribado '!$A:$BS,'Costes por CCAA cribado '!$AF$1,FALSE) -> 16, 25 - 27, 32 | O75: =VLOOKUP($O$12,'Costes por CCAA cribado '!$A:$BS,'Costes por CCAA cribado '!$AC$1,FALSE) -> 9.95 | P75: 0 | Q75: 0
C76: Cobre | D76: 10.825 | E76: 1 | F76: 0.025 | I76: =VLOOKUP($O$12,'Costes por CCAA cribado '!$A:$BS,'Costes por CCAA cribado '!$AS$1,FALSE) -> 16, 20, 25-27, 32 | O76: =VLOOKUP($O$12,'Costes por CCAA cribado '!$A:$BS,'Costes por CCAA cribado '!$AP$1,FALSE) -> 10.825 | P76: 1 | Q76: 0.025
C77: Zinc | D77: 11.64 | E77: 1 | F77: 0.175 | I77: =VLOOKUP($O$12,'Costes por CCAA cribado '!$A:$BS,'Costes por CCAA cribado '!$AS$1,FALSE) -> 16, 20, 25-27, 32 | O77: =VLOOKUP($O$12,'Costes por CCAA cribado '!$A:$BS,'Costes por CCAA cribado '!$AR$1,FALSE) -> 11.64 | P77: 1 | Q77: 0.175
C78: Hemograma | I78: =D79*F79 -> 4.41
C79: Hemograma | D79: 4.41 | E79: 1 | F79: 1 | G79: =IF(E79=0,"No tiene seguimiento durante el ingreso","") ->  | I79: =VLOOKUP($O$12,'Costes por CCAA cribado '!$A$1:$C$23,'Costes por CCAA cribado '!$C$1,FALSE) -> 16, 18, 25, 26, 29, 32, 35 | O79: =VLOOKUP($O$12,'Costes por CCAA cribado '!$A$1:$C$23,'Costes por CCAA cribado '!$B$1,FALSE) -> 4.41 | P79: 1 | Q79: 1
C82: Coste del personal
C83: El coste por hora se ha calculado en base a la realización de 40 horas semanales. En el caso de no disponer la Comunidad Autónoma de coste especial para nutricionista, se ha utilizado el del personal de enfermería.
D85: Tipo de coste | F85: Coste mensual | G85: Coste hora | H85: Coste minuto | I85: Referencia | Q85: =365/7 -> 52.14285714
C86: Coste personal médico | D86: Facultativo especialista de Área | F86: 3525 | G86: =F86/$Q$86/40 -> 20.28082192 | H86: =G86/60 -> 0.3380136986 | I86: =VLOOKUP($O$12,'Costes por CCAA cribado '!$A:$M,'Costes por CCAA cribado '!$M$1,FALSE) -> 35-53 | O86: =VLOOKUP($O$12,'Costes por CCAA cribado '!$A:$M,'Costes por CCAA cribado '!$J$1,FALSE) -> 3525 | Q86: =Q85/12 -> 4.345238095
C87: Coste personal de enfermería | D87: Enfermero/a de hospitalización | F87: 2041.28 | G87: =F87/$Q$86/40 -> 11.74435068 | H87: =G87/60 -> 0.1957391781 | I87: =VLOOKUP($O$12,'Costes por CCAA cribado '!$A:$M,'Costes por CCAA cribado '!$M$1,FALSE) -> 35-53 | O87: =VLOOKUP($O$12,'Costes por CCAA cribado '!$A:$M,'Costes por CCAA cribado '!$K$1,FALSE) -> 2041.28
C88: Coste nutricionista | D88: Dietista/ nutricionista | F88: 2028.6 | G88: =F88/$Q$86/40 -> 11.67139726 | H88: =G88/60 -> 0.1945232877 | I88: =VLOOKUP($O$12,'Costes por CCAA cribado '!$A:$M,'Costes por CCAA cribado '!$M$1,FALSE) -> 35-53 | O88: =VLOOKUP($O$12,'Costes por CCAA cribado '!$A:$M,'Costes por CCAA cribado '!$L$1,FALSE) -> 2028.6

Sheet Estancia Media
C2: Estancia media de los pacientes en hospitalización
N3: =Ajustes!$O$20 -> FALSE | O3: =Ajustes!$O$21 -> FALSE
C4: Pacientes desnutridos con cribado | D4: Días | E4: Referencia | F4: Pacientes desnutridos sin cribado | G4: Días | H4: Referencia | N4: ≥ 18 años | O4: ≥ 65 años | P4: ELEGIR
C5: Reducción de la estancia media | D5: 0.2687253614 | E5: =Referencias!$C$56 -> 55 | N5: 0.2687253614
C6: =CONCATENATE("Estancia media del paciente hospitalizado ",IF(Ajustes!$O$21=FALSE,"≥ 18 años",Ajustes!$N$21)) -> Estancia media del paciente hospitalizado ≥ 18 años | D6: =G6*(1-$D$5) -> 5.265177398 | F6: =CONCATENATE("Estancia media del paciente hospitalizado ",IF(Ajustes!$O$21=FALSE,"≥ 18 años",Ajustes!$N$21)) -> Estancia media del paciente hospitalizado ≥ 18 años | G6: 7.2 | H6: =VLOOKUP(Costes!$O$7,'Datos listas población'!$A$1:$V$23,'Datos listas población'!$V$1,FALSE) -> 13 | N6: =VLOOKUP(Costes!$O$7,'Datos listas población'!$A$1:$N$23,'Datos listas población'!$N$1,FALSE) -> 7.2 | O6: =VLOOKUP(Costes!$O$7,'Datos listas población'!$A$1:$V$23,'Datos listas población'!$T$1,FALSE) -> 8.04 | P6: =IF(O3=TRUE,O6,N6) -> 7.2
C8: Reducción de la estancia
C10: Estancia media pacientes con cribado | D10: 11.13
C11: Estancia media pacientes sin cribado | D11: 15.22
C14: Coste de la estancia
N15: =Ajustes!$O$20 -> FALSE | O15: =Ajustes!$O$21 -> FALSE
C16: Pacientes desnutridos con cribado | D16: Coste | F16: Pacientes desnutridos sin cribado | G16: Coste | H16: Referencia | N16: ≥ 18 años | O16: ≥ 65 años | P16: ELEGIR
C17: =CONCATENATE("Coste por día del paciente ",IF(Ajustes!$O$21=TRUE,Ajustes!$N$21,"≥ 18 años")) -> Coste por día del paciente ≥ 18 años | D17: 388.2681772 | F17: =CONCATENATE("Coste por día del paciente ",IF(Ajustes!$O$21=TRUE,Ajustes!$N$21,"≥ 18 años")) -> Coste por día del paciente ≥ 18 años | G17: 388.2681772 | H17: =VLOOKUP(Costes!$O$7,'Datos listas población'!$A$1:$V$23,'Datos listas población'!$V$1,FALSE) -> 13 | N17: =VLOOKUP(Costes!$O$7,'Datos listas población'!$A$1:$O$23,'Datos listas población'!$O$1,FALSE) -> 388.2681772 | O17: =VLOOKUP(Costes!$O$7,'Datos listas población'!$A$1:$V$23,'Datos listas población'!$U$1,FALSE) -> 381.8794062 | P17: =IF(O15=TRUE,O17,N17) -> 388.2681772
C19: Coste total estancia por paciente | D19: =D17*D6 -> 2044.300831 | F19: Coste total estancia por paciente | G19: =G17*G6 -> 2795.530876
C21: Reingreso hospitalario
C22: (i) El tiempo y coste del reingreso se asume que es igual que el de la estancia.
C24: Pacientes desnutridos con cribado | D24: Tasa de reingreso | E24: Referencia | F24: Pacientes desnutridos sin cribado | G24: Tasa de reingreso | H24: Referencia
C25: Tasa de reingreso | D25: 0.2833333333 | E25: =Referencias!$C$55 -> 54 | F25: Tasa de reingreso | G25: 0.4814814815 | H25: =Referencias!$C$55 -> 54 | N25: =17/60 -> 0.2833333333 | O25: =26/54 -> 0.4814814815

Sheet Nutrición Enteral
C2: Coste suplementos
C3: (i) Seleccione los porcentajes de uso de las distintas alternativas. Puede seleccionar el coste desde "información de Suplementos" o puede introducir el coste en las casillas verdes. Si va a realizar la introducción manual, seleccione si desea introducir PVL, PVL + IVA o coste por mililitro.
C5: Introducción del coste manual del usuario | E5: IVA (4%)
C7: Tipo | D7: Envases | E7: ml | F7: =CONCATENATE("PVL (",Referencias!$C$57,") ") -> PVL (56) | G7: =CONCATENATE(F7,R7,R8) -> PVL (56) + IVA | H7: PVL | I7: €/ml | J7: % de uso | P7: FALSE | Q7: FALSE
C8: Hipercalórica/Hiperproteica sin fibra | D8: =Presentaciones!$D$5 -> 26.45454545 | E8: =Presentaciones!$E$5 -> 201.8181818 | F8: =Presentaciones!$F$5 -> 120.3063636 | G8: =Presentaciones!$G$5 -> 125.1186182 | I8: =IF($P$7=TRUE,IF($Q$10<3,H8/E8/D8,H8),Presentaciones!$H$5) -> 0.02309043347 | J8: =1-SUM(J9:J16) -> 0.2 | P8: TRUE | Q8: TRUE | R8: =IF(P8=TRUE,"+ IVA","") -> + IVA | S8: 1.04
C9: Hipercalórica/Hiperproteica con fibra | D9: =Presentaciones!$D$36 -> 27.07692308 | E9: =Presentaciones!$E$36 -> 200 | F9: =Presentaciones!$F$36 -> 123.2669231 | G9: =Presentaciones!$G$36 -> 128.1976 | I9: =IFERROR(IF($P$7=TRUE,IF($Q$10<3,H9/E9/D9,H9),Presentaciones!$H$5),0) -> 0.02309043347 | J9: 0.2 | P9: Incluir | T9: 0.2
C10: Hipercalórica/Hiperproteica con CaHMB | D10: =Presentaciones!$D$58 -> 30 | E10: =Presentaciones!$E$58 -> 220 | F10: =Presentaciones!$F$58 -> 114.84 | G10: =Presentaciones!$G$58 -> 119.4336 | I10: =IFERROR(IF($P$7=TRUE,IF($Q$10<3,H10/E10/D10,H10),Presentaciones!$H$5),0) -> 0.02309043347 | J10: 0.2 | P10: PVL | Q10: =MATCH(H7,P10:P12,0) -> 1 | T10: 0.2
C11: Hipercalórica/Hiperproteica para diabetes sin fibra | D11: =Presentaciones!$D$68 -> 27 | E11: =Presentaciones!$E$68 -> 203.3333333 | F11: =Presentaciones!$F$68 -> 168.4616667 | G11: =Presentaciones!$G$68 -> 175.2001333 | I11: =IFERROR(IF($P$7=TRUE,IF($Q$10<3,H11/E11/D11,H11),Presentaciones!$H$5),0) -> 0.02309043347 | J11: 0.1 | P11: PVL + IVA | T11: 0.1
C12: Hipercalórica/Hiperproteica para diabetes con fibra | D12: =Presentaciones!$D$83 -> 24 | E12: =Presentaciones!$E$83 -> 200 | F12: =Presentaciones!$F$83 -> 132.19 | G12: =Presentaciones!$G$83 -> 137.4776 | I12: =IFERROR(IF($P$7=TRUE,IF($Q$10<3,H12/E12/D12,H12),Presentaciones!$H$5),0) -> 0.02309043347 | J12: 0.1 | P12: €/ml | T12: 0.1
C13: Hipercalórica/Hiperproteica para ancianos | D13: =Presentaciones!$D$94 -> 24 | E13: =Presentaciones!$E$94 -> 200 | F13: =Presentaciones!$F$94 -> 85.4 | G13: =Presentaciones!$G$94 -> 88.816 | I13: =IFERROR(IF($P$7=TRUE,IF($Q$10<3,H13/E13/D13,H13),Presentaciones!$H$5),0) -> 0.02309043347 | J13: 0.1 | T13: 0.1
C14: Hipercalórica/Hiperproteica para paciente de oncología | D14: =Presentaciones!$D$105 -> 48 | E14: =Presentaciones!$E$105 -> 125 | F14: =Presentaciones!$F$105 -> 156.67 | G14: =Presentaciones!$G$105 -> 162.9368 | I14: =IFERROR(IF($P$7=TRUE,IF($Q$10<3,H14/E14/D14,H14),Presentaciones!$H$5),0) -> 0.02309043347 | J14: 0.05 | T14: 0.05
C15: Hipercalórica/Hiperproteica para enfermedad renal | D15: =Presentaciones!D115 -> 26 | E15: =Presentaciones!E115 -> 206.6666667 | F15: =Presentaciones!F115 -> 151.35 | G15: =Presentaciones!G115 -> 157.404 | I15: =IFERROR(IF($P$7=TRUE,IF($Q$10<3,H15/E15/D15,H15),Presentaciones!$H$5),0) -> 0.02309043347 | J15: 0.05 | T15: 0.05
C16: Alternativa del usuario | G16: =(F16*(IF($P$8=TRUE,$S$8,1))) -> 0 | I16: =IFERROR(IF($P$7=TRUE,IF($Q$10<3,H16/E16/D16,H16),Presentaciones!$H$5),0) -> 0.02309043347 | J16: 0 | T16: 0
J17: =IF(SUM(J8:J16)=1,"","No suma 100%") -> 
C19: Posología
C20: (i) Seleccione el número de envases que se le administrará al ppaciente de cada alternativa.
C22: Pacientes desnutridos cribados
C23: Tipo | F23: Envases al día | G23: ml al día | I23: Coste día | J23: Coste día promedio
C24: Hipercalórica/Hiperproteica sin fibra | F24: 2 | G24: =F24*E8 -> 403.6363636 | I24: =IF(J8=0,0,G24*I8) -> 9.320138601 | J24: =SUMPRODUCT(I24:I32,J8:J16) -> 9.295298892 | R24: 2
C25: Hipercalórica/Hiperproteica con fibra | F25: 2 | G25: 400 | I25: 9.236173388 | R25: 2
C26: Hipercalórica/Hiperproteica con CaHMB | F26: 2 | G26: 440 | I26: 10.15979073 | R26: 2
C27: Hipercalórica/Hiperproteica para diabetes sin fibra | F27: 2 | G27: 406.6666667 | I27: 9.390109612 | R27: 2
C28: Hipercalórica/Hiperproteica para diabetes con fibra | F28: 2 | G28: 400 | I28: 9.236173388 | R28: 2
C29: Hipercalórica/Hiperproteica para ancianos | F29: 2 | G29: 400 | I29: 9.236173388 | R29: 2
C30: Hipercalórica/Hiperproteica para paciente de oncología | F30: 2 | G30: 250 | I30: 5.772608368 | R30: 2
C31: Hipercalórica/Hiperproteica para enfermedad renal | F31: 2 | G31: 413.3333333 | I31: 9.544045835 | R31: 2
C32: Alternativa del usuario | F32: 2 | G32: 0 | I32: 0 | R32: 2
C34: Pacientes desnutridos no cribados
C35: Tipo | F35: Envases al día | G35: ml al día | I35: Coste día | J35: Coste día promedio | R35: Envases al día
C36: Hipercalórica/Hiperproteica sin fibra | F36: 2 | G36: =F36*E8 -> 403.6363636 | I36: =IF(J8=0,0,G36*I8) -> 9.320138601 | J36: =SUMPRODUCT(I36:I44,J8:J16) -> 9.295298892 | R36: 2
C37: Hipercalórica/Hiperproteica con fibra | F37: 2 | G37: =F37*E9 -> 400 | I37: =IF(J9=0,0,G37*I9) -> 9.236173388 | R37: 2
C38: Hipercalórica/Hiperproteica con CaHMB | F38: 2 | G38: 440 | I38: 10.15979073 | R38: 2
C39: Hipercalórica/Hiperproteica para diabetes sin fibra | F39: 2 | G39: 406.6666667 | I39: 9.390109612 | R39: 2
C40: Hipercalórica/Hiperproteica para diabetes con fibra | F40: 2 | G40: 400 | I40: 9.236173388 | R40: 2
C41: Hipercalórica/Hiperproteica para ancianos | F41: 2 | G41: 400 | I41: 9.236173388 | R41: 2
C42: Hipercalórica/Hiperproteica para paciente de oncología | F42: 2 | G42: 250 | I42: 5.772608368 | R42: 2
C43: Hipercalórica/Hiperproteica para enfermedad renal | F43: 2 | G43: 413.3333333 | I43: 9.544045835 | R43: 2
C44: Alternativa del usuario | F44: 2 | G44: 0 | I44: 0 | R44: 2

Sheet Presentaciones
C2: Hipercalórico/Hiperproteico sin fibra
D4: Envases | E4: ml | F4: =CONCATENATE("PVL (",Referencias!$C$57,") ") -> PVL (56) | G4: =CONCATENATE(F4,'Nutrición Enteral'!$R$7,'Nutrición Enteral'!$R$8) -> PVL (56) + IVA | H4: €/ml | I4: % | N4: =CONCATENATE("PVL (",Referencias!$C$57,") ") -> PVL (56) | O4: %
C5: HC/HP sin fibra | D5: =SUMPRODUCT(D6:D31,$I$6:$I$31) -> 26.45454545 | E5: 201.8181818 | F5: =SUMPRODUCT(F6:F31,$I$6:$I$31) -> 120.3063636 | G5: =SUMPRODUCT(G6:G31,$I$6:$I$31) -> 125.1186182 | H5: 0.02309043347 | N5: =SUMPRODUCT(N6:N27,$I$6:$I$27) -> 120.3063636
C6: Delical effimax 2.0 | D6: 24 | E6: 200 | F6: 111.36 | G6: =(F6*(IF('Nutrición Enteral'!$P$8=TRUE,'Nutrición Enteral'!$S$8,1))) -> 115.8144 | H6: =G6/D6/E6 -> 0.024128 | I6: =1-SUM(I7:I31) -> 0.04545454545 | N6: 111.36 | O6: =1-SUM(O7:O31) -> 0.04545454545
C7: Fontactiv 2.0 | D7: 24 | E7: 200 | F7: 111.36 | G7: =(F7*(IF('Nutrición Enteral'!$P$8=TRUE,'Nutrición Enteral'!$S$8,1))) -> 115.8144 | H7: 0.024128 | I7: 0.04545454545 | N7: 111.36 | O7: 0.04545454545
C8: Fontactiv hp/hc | D8: 24 | E8: 200 | F8: 83.52 | G8: =(F8*(IF('Nutrición Enteral'!$P$8=TRUE,'Nutrición Enteral'!$S$8,1))) -> 86.8608 | H8: 0.018096 | I8: 0.04545454545 | N8: 83.52 | O8: 0.04545454545
C9: Fortimel peptide hehp | D9: 24 | E9: 200 | F9: 192.96 | G9: =(F9*(IF('Nutrición Enteral'!$P$8=TRUE,'Nutrición Enteral'!$S$8,1))) -> 200.6784 | H9: 0.041808 | I9: 0.04545454545 | N9: 192.96 | O9: 0.04545454545
C10: Fresubin 2kcal drink | D10: 24 | E10: 200 | F10: 111.36 | G10: =(F10*(IF('Nutrición Enteral'!$P$8=TRUE,'Nutrición Enteral'!$S$8,1))) -> 115.8144 | H10: 0.024128 | I10: 0.04545454545 | N10: 111.36 | O10: 0.04545454545
C11: Fresubin protein energy | D11: 24 | E11: 200 | F11: 83.52 | G11: =(F11*(IF('Nutrición Enteral'!$P$8=TRUE,'Nutrición Enteral'!$S$8,1))) -> 86.8608 | H11: 0.018096 | I11: 0.04545454545 | N11: 83.52 | O11: 0.04545454545
C12: Fresubin thickened 24 | D12: 24 | E12: 200 | F12: 83.52 | G12: =(F12*(IF('Nutrición Enteral'!$P$8=TRUE,'Nutrición Enteral'!$S$8,1))) -> 86.8608 | H12: 0.018096 | I12: 0.04545454545 | N12: 83.52 | O12: 0.04545454545
C13: Nutricomp drink plus | D13: 24 | E13: 200 | F13: 83.52 | G13: =(F13*(IF('Nutrición Enteral'!$P$8=TRUE,'Nutrición Enteral'!$S$8,1))) -> 86.8608 | H13: 0.018096 | I13: 0.04545454545 | N13: 83.52 | O13: 0.04545454545
C14: Resource dense 24 | D14: 24 | E14: 200 | F14: 111.36 | G14: =(F14*(IF('Nutrición Enteral'!$P$8=TRUE,'Nutrición Enteral'!$S$8,1))) -> 115.8144 | H14: 0.024128 | I14: 0.04545454545 | N14: 111.36 | O14: 0.04545454545
C15: Resource energy 24 | D15: 24 | E15: 200 | F15: 67.58 | G15: =(F15*(IF('Nutrición Enteral'!$P$8=TRUE,'Nutrición Enteral'!$S$8,1))) -> 70.2832 | H15: 0.01464233333 | I15: 0.04545454545 | N15: 67.58 | O15: 0.04545454545
C16: Resource hp/hc 24 | D16: 24 | E16: 200 | F16: 89.09 | G16: =(F16*(IF('Nutrición Enteral'!$P$8=TRUE,'Nutrición Enteral'!$S$8,1))) -> 92.6536 | H16: 0.01930283333 | I16: 0.04545454545 | N16: 89.09 | O16: 0.04545454545
C17: Resource protein 24 | D17: 24 | E17: 200 | F17: 69.6 | G17: =(F17*(IF('Nutrición Enteral'!$P$8=TRUE,'Nutrición Enteral'!$S$8,1))) -> 72.384 | H17: 0.01508 | I17: 0.04545454545 | N17: 69.6 | O17: 0.04545454545
C18: Supportan drink 24 | D18: 24 | E18: 200 | F18: 92.16 | G18: =(F18*(IF('Nutrición Enteral'!$P$8=TRUE,'Nutrición Enteral'!$S$8,1))) -> 95.8464 | H18: 0.019968 | I18: 0.04545454545 | N18: 92.16 | O18: 0.04545454545
C19: Tdiet | D19: 24 | E19: 200 | F19: 122.88 | G19: =(F19*(IF('Nutrición Enteral'!$P$8=TRUE,'Nutrición Enteral'!$S$8,1))) -> 127.7952 | H19: 0.026624 | I19: 0.04545454545 | N19: 122.88 | O19: 0.04545454545
C20: Tdiet HP sin fibra | D20: 24 | E20: 200 | F20: 72.38 | G20: =(F20*(IF('Nutrición Enteral'!$P$8=TRUE,'Nutrición Enteral'!$S$8,1))) -> 75.2752 | H20: 0.01568233333 | I20: 0.04545454545 | N20: 72.38 | O20: 0.04545454545
C21: Alenzi sin | D21: 30 | E21: 200 | F21: 154.2 | G21: =(F21*(IF('Nutrición Enteral'!$P$8=TRUE,'Nutrición Enteral'!$S$8,1))) -> 160.368 | H21: 0.026728 | I21: 0.04545454545 | N21: 154.2 | O21: 0.04545454545
C22: Alenzi-200 | D22: 30 | E22: 200 | F22: 147.46 | G22: =(F22*(IF('Nutrición Enteral'!$P$8=TRUE,'Nutrición Enteral'!$S$8,1))) -> 153.3584 | H22: 0.02555973333 | I22: 0.04545454545 | N22: 147.46 | O22: 0.04545454545
C23: Vital Peptido 1.5 | D23: 30 | E23: 200 | F23: 241.2 | G23: =(F23*(IF('Nutrición Enteral'!$P$8=TRUE,'Nutrición Enteral'!$S$8,1))) -> 250.848 | H23: 0.041808 | I23: 0.04545454545 | N23: 241.2 | O23: 0.04545454545
C24: Ensure Plus High Protein | D24: 30 | E24: 220 | F24: 95.7 | G24: =(F24*(IF('Nutrición Enteral'!$P$8=TRUE,'Nutrición Enteral'!$S$8,1))) -> 99.528 | H24: 0.01508 | I24: 0.04545454545 | N24: 95.7 | O24: 0.04545454545
C25: Prosure | D25: 30 | E25: 220 | F25: 107.29 | G25: =(F25*(IF('Nutrición Enteral'!$P$8=TRUE,'Nutrición Enteral'!$S$8,1))) -> 111.5816 | H25: 0.01690630303 | I25: 0.04545454545 | N25: 107.29 | O25: 0.04545454545
C26: Bi1 HP/HC | D26: 36 | E26: 200 | F26: 125.28 | G26: =(F26*(IF('Nutrición Enteral'!$P$8=TRUE,'Nutrición Enteral'!$S$8,1))) -> 130.2912 | H26: 0.018096 | I26: 0.04545454545 | N26: 125.28 | O26: 0.04545454545
C27: Bi1 peptidic | D27: 36 | E27: 200 | F27: 289.44 | G27: =(F27*(IF('Nutrición Enteral'!$P$8=TRUE,'Nutrición Enteral'!$S$8,1))) -> 301.0176 | H27: 0.041808 | I27: 0.04545454545 | N27: 289.44 | O27: 0.04545454545
G28: =(F28*(IF('Nutrición Enteral'!$P$8=TRUE,'Nutrición Enteral'!$S$8,1))) -> 0 | H28: =IFERROR(G28/D28/E28,0) -> 0 | I28: 0 | O28: 0
G29: =(F29*(IF('Nutrición Enteral'!$P$8=TRUE,'Nutrición Enteral'!$S$8,1))) -> 0 | H29: =IFERROR(G29/D29/E29,0) -> 0 | I29: 0 | O29: 0
G30: =(F30*(IF('Nutrición Enteral'!$P$8=TRUE,'Nutrición Enteral'!$S$8,1))) -> 0 | H30: 0 | I30: 0 | O30: 0
G31: =(F31*(IF('Nutrición Enteral'!$P$8=TRUE,'Nutrición Enteral'!$S$8,1))) -> 0 | H31: 0 | I31: 0 | O31: 0
C33: Hipercalórico/Hiperproteico con fibra
D35: Envases | E35: ml | F35: =CONCATENATE("PVL (",Referencias!$C$57,")") -> PVL (56) | G35: =CONCATENATE(F35,'Nutrición Enteral'!$R$7,'Nutrición Enteral'!$R$8) -> PVL (56)+ IVA | H35: €/ml | I35: % | N35: =CONCATENATE("PVL (",Referencias!$C$57,")") -> PVL (56)
C36: HC/HP con fibra | D36: =SUMPRODUCT(D37:D53,$I$37:$I$53) -> 27.07692308 | E36: 200 | F36: =SUMPRODUCT(F37:F53,$I$37:$I$53) -> 123.2669231 | G36: =SUMPRODUCT(G37:G53,$I$37:$I$53) -> 128.1976 | H36: 0.02374645833 | N36: =SUMPRODUCT(N37:N49,$I$37:$I$49) -> 123.2669231
C37: Atempero | D37: 24 | E37: 200 | F37: 166.7 | G37: =(F37*(IF('Nutrición Enteral'!$P$8=TRUE,'Nutrición Enteral'!$S$8,1))) -> 173.368 | H37: =G37/D37/E37 -> 0.03611833333 | I37: =1-SUM(I38:I53) -> 0.07692307692 | N37: 166.7 | O37: =1-SUM(O38:O53) -> 0.07692307692
C38: Atempero | D38: 24 | E38: 200 | F38: 166.7 | G38: =(F38*(IF('Nutrición Enteral'!$P$8=TRUE,'Nutrición Enteral'!$S$8,1))) -> 173.368 | H38: =G38/D38/E38 -> 0.03611833333 | I38: 0.07692307692 | N38: 166.7 | O38: 0.07692307692
C39: Delical Effimax 2.0 Fibres | D39: 24 | E39: 200 | F39: 123.49 | G39: =(F39*(IF('Nutrición Enteral'!$P$8=TRUE,'Nutrición Enteral'!$S$8,1))) -> 128.4296 | H39: 0.02675616667 | I39: 0.07692307692 | N39: 123.49 | O39: 0.07692307692
C40: Dietgrif Activ Protein Fibra | D40: 24 | E40: 200 | F40: 77.41 | G40: =(F40*(IF('Nutrición Enteral'!$P$8=TRUE,'Nutrición Enteral'!$S$8,1))) -> 80.5064 | H40: 0.01677216667 | I40: 0.07692307692 | N40: 77.41 | O40: 0.07692307692
C41: Fontactiv HO/HC Fibra | D41: 24 | E41: 200 | F41: 92.16 | G41: =(F41*(IF('Nutrición Enteral'!$P$8=TRUE,'Nutrición Enteral'!$S$8,1))) -> 95.8464 | H41: 0.019968 | I41: 0.07692307692 | N41: 92.16 | O41: 0.07692307692
C42: Fresubin 2Kcal Fibre | D42: 24 | E42: 200 | F42: 122.88 | G42: =(F42*(IF('Nutrición Enteral'!$P$8=TRUE,'Nutrición Enteral'!$S$8,1))) -> 127.7952 | H42: 0.026624 | I42: 0.07692307692 | N42: 122.88 | O42: 0.07692307692
C43: Nmdiethyper | D43: 24 | E43: 200 | F43: 87.2 | G43: =(F43*(IF('Nutrición Enteral'!$P$8=TRUE,'Nutrición Enteral'!$S$8,1))) -> 90.688 | H43: 0.01889333333 | I43: 0.07692307692 | N43: 87.2 | O43: 0.07692307692
C44: Nutricomp drink 2.0 kcal | D44: 24 | E44: 200 | F44: 97.92 | G44: =(F44*(IF('Nutrición Enteral'!$P$8=TRUE,'Nutrición Enteral'!$S$8,1))) -> 101.8368 | H44: 0.021216 | I44: 0.07692307692 | N44: 97.92 | O44: 0.07692307692
C45: Resource Protein Fibra | D45: 24 | E45: 200 | F45: 76.8 | G45: =(F45*(IF('Nutrición Enteral'!$P$8=TRUE,'Nutrición Enteral'!$S$8,1))) -> 79.872 | H45: 0.01664 | I45: 0.07692307692 | N45: 76.8 | O45: 0.07692307692
C46: Fortimel advanced | D46: 32 | E46: 200 | F46: 122.88 | G46: =(F46*(IF('Nutrición Enteral'!$P$8=TRUE,'Nutrición Enteral'!$S$8,1))) -> 127.7952 | H46: =G46/D46/E46 -> 0.019968 | I46: 0.07692307692 | N46: 122.88 | O46: 0.07692307692
C47: Fortimel complete | D47: 32 | E47: 200 | F47: 109.77 | G47: =(F47*(IF('Nutrición Enteral'!$P$8=TRUE,'Nutrición Enteral'!$S$8,1))) -> 114.1608 | H47: 0.017837625 | I47: 0.07692307692 | N47: 109.77 | O47: 0.07692307692
C48: Bi1 diacare hp/hc | D48: 36 | E48: 200 | F48: 220.32 | G48: =(F48*(IF('Nutrición Enteral'!$P$8=TRUE,'Nutrición Enteral'!$S$8,1))) -> 229.1328 | H48: =G48/D48/E48 -> 0.031824 | I48: 0.07692307692 | N48: 220.32 | O48: 0.07692307692
C49: Bi1 procare | D49: 36 | E49: 200 | F49: 138.24 | G49: =(F49*(IF('Nutrición Enteral'!$P$8=TRUE,'Nutrición Enteral'!$S$8,1))) -> 143.7696 | H49: 0.019968 | I49: 0.07692307692 | N49: 138.24 | O49: 0.07692307692
G50: =(F50*(IF('Nutrición Enteral'!$P$8=TRUE,'Nutrición Enteral'!$S$8,1))) -> 0 | H50: =IFERROR(G50/D50/E50,0) -> 0 | I50: 0 | O50: 0
G51: =(F51*(IF('Nutrición Enteral'!$P$8=TRUE,'Nutrición Enteral'!$S$8,1))) -> 0 | H51: =IFERROR(G51/D51/E51,0) -> 0 | I51: 0 | O51: 0
G52: =(F52*(IF('Nutrición Enteral'!$P$8=TRUE,'Nutrición Enteral'!$S$8,1))) -> 0 | H52: 0 | I52: 0 | O52: 0
G53: =(F53*(IF('Nutrición Enteral'!$P$8=TRUE,'Nutrición Enteral'!$S$8,1))) -> 0 | H53: 0 | I53: 0 | O53: 0
I54: =IF(SUM(I37:I49)=1,"","No suma 100%") ->  | O54: =IF(SUM(O37:O49)=1,"","No suma 100%") -> 
C55: Hipercalórico/Hiperproteico con CaHMB
D57: Envases | E57: ml | F57: =CONCATENATE("PVL (",Referencias!$C$57,")") -> PVL (56) | G57: =CONCATENATE(F57,'Nutrición Enteral'!$R$7,'Nutrición Enteral'!$R$8) -> PVL (56)+ IVA | H57: €/ml | N57: =CONCATENATE("PVL (",Referencias!$C$57,")") -> PVL (56)
C58: HC/HP con CaHMB | D58: =SUMPRODUCT(D59:D63,$I$59:$I$63) -> 30 | E58: =SUMPRODUCT(E59:E63,$I$59:$I$63) -> 220 | F58: 114.84 | G58: 119.4336 | H58: 0.018096 | N58: =N59 -> 114.84
C59: Ensure Plus Advance | D59: 30 | E59: 220 | F59: 114.84 | G59: =(F59*(IF('Nutrición Enteral'!$P$8=TRUE,'Nutrición Enteral'!$S$8,1))) -> 119.4336 | H59: =G59/D59/E59 -> 0.018096 | I59: =1-SUM(I60:I63) -> 1 | N59: 114.84 | O59: =1-SUM(O60:O63) -> 1
G60: =(F60*(IF('Nutrición Enteral'!$P$8=TRUE,'Nutrición Enteral'!$S$8,1))) -> 0 | H60: =IFERROR(G60/D60/E60,0) -> 0 | I60: 0 | O60: 0
G61: =(F61*(IF('Nutrición Enteral'!$P$8=TRUE,'Nutrición Enteral'!$S$8,1))) -> 0 | H61: =IFERROR(G61/D61/E61,0) -> 0 | I61: 0 | O61: 0
G62: =(F62*(IF('Nutrición Enteral'!$P$8=TRUE,'Nutrición Enteral'!$S$8,1))) -> 0 | H62: 0 | I62: 0 | O62: 0
G63: =(F63*(IF('Nutrición Enteral'!$P$8=TRUE,'Nutrición Enteral'!$S$8,1))) -> 0 | H63: 0 | I63: 0 | O63: 0
C65: Hipercalórico/Hiperproteico para diabetes sin fibra
D67: Envases | E67: ml | F67: =CONCATENATE("PVL (",Referencias!$C$57,")") -> PVL (56) | G67: =CONCATENATE(F67,'Nutrición Enteral'!$R$7,'Nutrición Enteral'!$R$8) -> PVL (56)+ IVA | H67: €/ml | I67: % | N67: =CONCATENATE("PVL (",Referencias!$C$57,")") -> PVL (56) | O67: %
C68: HC/HP Diabetes sin fibra | D68: =SUMPRODUCT(D69:D78,$I$69:$I$78) -> 27 | E68: =SUMPRODUCT(E69:E78,$I$69:$I$78) -> 203.3333333 | F68: 168.4616667 | G68: 175.2001333 | H68: 0.03190724596 | N68: =SUMPRODUCT(N69:N78,$I$69:$I$78) -> 168.4616667
C69: Bi1 Diacare HP/HC | D69: 36 | E69: 200 | F69: 220.32 | G69: =(F69*(IF('Nutrición Enteral'!$P$8=TRUE,'Nutrición Enteral'!$S$8,1))) -> 229.1328 | H69: =G69/D69/E69 -> 0.031824 | I69: =1-SUM(I70:I78) -> 0.1666666667 | N69: 220.32 | O69: =1-SUM(O70:O78) -> 0.1666666667
C70: Diaba Plus | D70: 24 | E70: 200 | F70: 138.06 | G70: =(F70*(IF('Nutrición Enteral'!$P$8=TRUE,'Nutrición Enteral'!$S$8,1))) -> 143.5824 | H70: 0.029913 | I70: 0.1666666667 | N70: 138.06 | O70: 0.1666666667
C71: Diben drink | D71: 24 | E71: 200 | F71: 146.88 | G71: =(F71*(IF('Nutrición Enteral'!$P$8=TRUE,'Nutrición Enteral'!$S$8,1))) -> 152.7552 | H71: 0.031824 | I71: 0.1666666667 | N71: 146.88 | O71: 0.1666666667
C72: Glucerna 1.5 | D72: 30 | E72: 200 | F72: 201.96 | G72: =(F72*(IF('Nutrición Enteral'!$P$8=TRUE,'Nutrición Enteral'!$S$8,1))) -> 210.0384 | H72: 0.0350064 | I72: 0.1666666667 | N72: 201.96 | O72: 0.1666666667
C73: Nutavant plus diabetica | D73: 24 | E73: 220 | F73: 146.88 | G73: =(F73*(IF('Nutrición Enteral'!$P$8=TRUE,'Nutrición Enteral'!$S$8,1))) -> 152.7552 | H73: 0.02893090909 | I73: 0.1666666667 | N73: 146.88 | O73: 0.1666666667
C74: Resource diabet | D74: 24 | E74: 200 | F74: 156.67 | G74: =(F74*(IF('Nutrición Enteral'!$P$8=TRUE,'Nutrición Enteral'!$S$8,1))) -> 162.9368 | H74: 0.03394516667 | I74: 0.1666666667 | N74: 156.67 | O74: 0.1666666667
G75: =(F75*(IF('Nutrición Enteral'!$P$8=TRUE,'Nutrición Enteral'!$S$8,1))) -> 0 | H75: =IFERROR(G75/D75/E75,0) -> 0 | I75: 0 | O75: 0
G76: =(F76*(IF('Nutrición Enteral'!$P$8=TRUE,'Nutrición Enteral'!$S$8,1))) -> 0 | H76: =IFERROR(G76/D76/E76,0) -> 0 | I76: 0 | O76: 0
G77: =(F77*(IF('Nutrición Enteral'!$P$8=TRUE,'Nutrición Enteral'!$S$8,1))) -> 0 | H77: 0 | I77: 0 | O77: 0
G78: =(F78*(IF('Nutrición Enteral'!$P$8=TRUE,'Nutrición Enteral'!$S$8,1))) -> 0 | H78: 0 | I78: 0 | O78: 0
I79: =IF(SUM(I69:I74)=1,"","No suma 100%") ->  | O79: =IF(SUM(O69:O74)=1,"","No suma 100%") -> 
C80: Hipercalórico/Hiperproteico para diabetes con fibra
D82: Envases | E82: ml | F82: =CONCATENATE("PVL (",Referencias!$C$57,")") -> PVL (56) | G82: =CONCATENATE(F82,'Nutrición Enteral'!$R$7,'Nutrición Enteral'!$R$8) -> PVL (56)+ IVA | H82: €/ml | I82: % | N82: =CONCATENATE("PVL (",Referencias!$C$57,")") -> PVL (56) | O82: %
C83: HC/HP Diabetes con fibra | D83: =SUMPRODUCT(D84:D89,$I$84:$I$89) -> 24 | E83: =SUMPRODUCT(E84:E89,$I$84:$I$89) -> 200 | F83: 132.19 | G83: 137.4776 | H83: 0.02864116667 | N83: =SUMPRODUCT(N84:N89,$I$84:$I$89) -> 132.19
C84: Dietgrif Activ protein diabet | D84: 24 | E84: 200 | F84: 117.5 | G84: =(F84*(IF('Nutrición Enteral'!$P$8=TRUE,'Nutrición Enteral'!$S$8,1))) -> 122.2 | H84: =G84/D84/E84 -> 0.02545833333 | I84: =1-SUM(I85:I89) -> 0.5 | N84: 117.5 | O84: =1-SUM(O85:O89) -> 0.5
C85: Delical Edulcoree | D85: 24 | E85: 200 | F85: 146.88 | G85: =(F85*(IF('Nutrición Enteral'!$P$8=TRUE,'Nutrición Enteral'!$S$8,1))) -> 152.7552 | H85: =G85/D85/E85 -> 0.031824 | I85: 0.5 | N85: 146.88 | O85: 0.5
G86: =(F86*(IF('Nutrición Enteral'!$P$8=TRUE,'Nutrición Enteral'!$S$8,1))) -> 0 | H86: =IFERROR(G86/D86/E86,0) -> 0 | I86: 0 | O86: 0
G87: =(F87*(IF('Nutrición Enteral'!$P$8=TRUE,'Nutrición Enteral'!$S$8,1))) -> 0 | H87: =IFERROR(G87/D87/E87,0) -> 0 | I87: 0 | O87: 0
G88: =(F88*(IF('Nutrición Enteral'!$P$8=TRUE,'Nutrición Enteral'!$S$8,1))) -> 0 | H88: 0 | I88: 0 | O88: 0
G89: =(F89*(IF('Nutrición Enteral'!$P$8=TRUE,'Nutrición Enteral'!$S$8,1))) -> 0 | H89: 0 | I89: 0 | O89: 0
I90: =IF(SUM(I84:I85)=1,"","No suma 100%") ->  | O90: =IF(SUM(O84:O85)=1,"","No suma 100%") -> 
C91: Hipercalórico/Hiperproteico para paciente anciano
D93: Envases | E93: ml | F93: =CONCATENATE("PVL (",Referencias!$C$57,")") -> PVL (56) | G93: =CONCATENATE(F93,'Nutrición Enteral'!$R$7,'Nutrición Enteral'!$R$8) -> PVL (56)+ IVA | H93: €/ml | I93: % | N93: =CONCATENATE("PVL (",Referencias!$C$57,")") -> PVL (56) | O93: %
C94: HC/HP Ancianos | D94: =SUMPRODUCT(D95:D100,$I$95:$I$100) -> 24 | E94: =SUMPRODUCT(E95:E100,$I$95:$I$100) -> 200 | F94: 85.4 | G94: 88.816 | H94: 0.01850333333 | N94: =SUMPRODUCT(N95:N100,$I$95:$I$100) -> 85.4
C95: Resource Senior Activ | D95: 24 | E95: 200 | F95: 92.16 | G95: =(F95*(IF('Nutrición Enteral'!$P$8=TRUE,'Nutrición Enteral'!$S$8,1))) -> 95.8464 | H95: =G95/D95/E95 -> 0.019968 | I95: =1-SUM(I96:I100) -> 0.5 | N95: 92.16 | O95: =1-SUM(O96:O100) -> 0.5
C96: Supressi | D96: 24 | E96: 200 | F96: 78.64 | G96: =(F96*(IF('Nutrición Enteral'!$P$8=TRUE,'Nutrición Enteral'!$S$8,1))) -> 81.7856 | H96: =G96/D96/E96 -> 0.01703866667 | I96: 0.5 | N96: 78.64 | O96: 0.5
G97: =(F97*(IF('Nutrición Enteral'!$P$8=TRUE,'Nutrición Enteral'!$S$8,1))) -> 0 | H97: =IFERROR(G97/D97/E97,0) -> 0 | I97: 0 | O97: 0
G98: =(F98*(IF('Nutrición Enteral'!$P$8=TRUE,'Nutrición Enteral'!$S$8,1))) -> 0 | H98: =IFERROR(G98/D98/E98,0) -> 0 | I98: 0 | O98: 0
G99: =(F99*(IF('Nutrición Enteral'!$P$8=TRUE,'Nutrición Enteral'!$S$8,1))) -> 0 | H99: 0 | I99: 0 | O99: 0
G100: =(F100*(IF('Nutrición Enteral'!$P$8=TRUE,'Nutrición Enteral'!$S$8,1))) -> 0 | H100: 0 | I100: 0 | O100: 0
I101: =IF(SUM(I95:I96)=1,"","No suma 100%") ->  | O101: =IF(SUM(O95:O96)=1,"","No suma 100%") -> 
C102: Hipercalórico/Hiperproteico para paciente oncológico
D104: Envases | E104: ml | F104: =CONCATENATE("PVL (",Referencias!$C$57,")") -> PVL (56) | G104: =CONCATENATE(F104,'Nutrición Enteral'!$R$7,'Nutrición Enteral'!$R$8) -> PVL (56)+ IVA | H104: €/ml | N104: =CONCATENATE("PVL (",Referencias!$C$57,")") -> PVL (56)
C105: HC/HP Oncología | D105: =SUMPRODUCT(D106:D110,$I$106:$I$110) -> 48 | E105: =SUMPRODUCT(E106:E110,$I$106:$I$110) -> 125 | F105: 156.67 | G105: 162.9368 | H105: 0.02715613333 | N105: =N106 -> 156.67
C106: Resource Support plus | D106: 48 | E106: 125 | F106: 156.67 | G106: =(F106*(IF('Nutrición Enteral'!$P$8=TRUE,'Nutrición Enteral'!$S$8,1))) -> 162.9368 | H106: =G106/D106/E106 -> 0.02715613333 | I106: =1-SUM(I107:I110) -> 1 | N106: 156.67 | O106: =1-SUM(O107:O110) -> 1
G107: =(F107*(IF('Nutrición Enteral'!$P$8=TRUE,'Nutrición Enteral'!$S$8,1))) -> 0 | H107: =IFERROR(G107/D107/E107,0) -> 0 | I107: 0 | O107: 0
G108: =(F108*(IF('Nutrición Enteral'!$P$8=TRUE,'Nutrición Enteral'!$S$8,1))) -> 0 | H108: =IFERROR(G108/D108/E108,0) -> 0 | I108: 0 | O108: 0
G109: =(F109*(IF('Nutrición Enteral'!$P$8=TRUE,'Nutrición Enteral'!$S$8,1))) -> 0 | H109: 0 | I109: 0 | O109: 0
G110: =(F110*(IF('Nutrición Enteral'!$P$8=TRUE,'Nutrición Enteral'!$S$8,1))) -> 0 | H110: 0 | I110: 0 | O110: 0
C112: Hipercalórico/Hiperproteico para patología renal
D114: Envases | E114: ml | F114: =CONCATENATE("PVL (",Referencias!$C$57,")") -> PVL (56) | G114: =CONCATENATE(F114,'Nutrición Enteral'!$R$7,'Nutrición Enteral'!$R$8) -> PVL (56)+ IVA | H114: €/ml | I114: % | N114: =CONCATENATE("PVL (",Referencias!$C$57,")") -> PVL (56) | O114: %
C115: HC/HP Renal | D115: =SUMPRODUCT(D116:D122,$I$116:$I$122) -> 26 | E115: =SUMPRODUCT(E116:E122,$I$116:$I$122) -> 206.6666667 | F115: 151.35 | G115: 157.404 | H115: 0.02953993939 | N115: =SUMPRODUCT(N116:N118,$I$116:$I$118) -> 151.35
C116: Fresubin Renal | D116: 24 | E116: 200 | F116: 133.4 | G116: =(F116*(IF('Nutrición Enteral'!$P$8=TRUE,'Nutrición Enteral'!$S$8,1))) -> 138.736 | H116: =G116/D116/E116 -> 0.02890333333 | I116: =1-SUM(I117:I122) -> 0.3333333333 | N116: 133.4 | O116: =1-SUM(O117:O118) -> 0.3333333333
C117: Nepro LP | D117: 30 | E117: 220 | F117: 165.13 | G117: =(F117*(IF('Nutrición Enteral'!$P$8=TRUE,'Nutrición Enteral'!$S$8,1))) -> 171.7352 | H117: =G117/D117/E117 -> 0.02602048485 | I117: 0.3333333333 | N117: 165.13 | O117: =1/3 -> 0.3333333333
C118: Nutricomp Drink Renal | D118: 24 | E118: 200 | F118: 155.52 | G118: =(F118*(IF('Nutrición Enteral'!$P$8=TRUE,'Nutrición Enteral'!$S$8,1))) -> 161.7408 | H118: =G118/D118/E118 -> 0.033696 | I118: 0.3333333333 | N118: 155.52 | O118: =1/3 -> 0.3333333333
G119: =(F119*(IF('Nutrición Enteral'!$P$8=TRUE,'Nutrición Enteral'!$S$8,1))) -> 0 | H119: =IFERROR(G119/D119/E119,0) -> 0 | I119: 0 | O119: 0
G120: =(F120*(IF('Nutrición Enteral'!$P$8=TRUE,'Nutrición Enteral'!$S$8,1))) -> 0 | H120: =IFERROR(G120/D120/E120,0) -> 0 | I120: 0 | O120: 0
G121: =(F121*(IF('Nutrición Enteral'!$P$8=TRUE,'Nutrición Enteral'!$S$8,1))) -> 0 | H121: 0 | I121: 0 | O121: 0
G122: =(F122*(IF('Nutrición Enteral'!$P$8=TRUE,'Nutrición Enteral'!$S$8,1))) -> 0 | H122: 0 | I122: 0 | O122: 0
O123: =IF(SUM(O116:O118)=1,"","No suma 100%") -> 

Sheet Nutrición Enteral Sonda
C2: Coste nutrición enteral
C3: (i) Seleccione los porcentajes de uso de las distintas alternativas. Puede seleccionar el coste desde "Coste nutricional enteral" o puede introducir el coste en las casillas verdes. Si va a realizar la introducción manual, seleccione si desea introducir PVL, PVL + IVA o coste por mililitro.
C5: Introducción del coste manual del usuario | F5: IVA (4%)
C7: Tipo | D7: Envases | E7: ml | F7: =CONCATENATE("PVL (",Referencias!$C$57,") ") -> PVL (56) | G7: =CONCATENATE(F7,R7,R8) -> PVL (56) + IVA | H7: PVL | I7: €/ml | J7: % de uso | P7: FALSE | Q7: FALSE
C8: Hipercalórica/Hiperproteica sin fibra | D8: ='Presentaciones Sonda'!$D$5 -> 12.55555556 | E8: ='Presentaciones Sonda'!$E$5 -> 555.5555556 | F8: ='Presentaciones Sonda'!$F$5 -> 147.1044444 | G8: ='Presentaciones Sonda'!$G$5 -> 152.9886222 | I8: =IF($P$7=TRUE,IF($Q$10<3,H8/E8/D8,H8),Presentaciones!$H$5) -> 0.02309043347 | J8: =1-SUM(J9:J12) -> 0.25 | P8: TRUE | Q8: TRUE | R8: =IF(P8=TRUE,"+ IVA","") -> + IVA | S8: 1.04
C9: Hipercalórica/Hiperproteica con fibra | D9: ='Presentaciones Sonda'!$D$32 -> 12.66666667 | E9: ='Presentaciones Sonda'!$E$32 -> 500 | F9: ='Presentaciones Sonda'!$F$32 -> 144.8888889 | G9: ='Presentaciones Sonda'!$G$32 -> 150.6844444 | I9: =IF($P$7=TRUE,IF($Q$10<3,H9/E9/D9,H9),Presentaciones!$H$5) -> 0.02309043347 | J9: 0.25 | P9: Incluir | T9: 0.25
C10: Hipercalórica/Hiperproteica con CaHMB | D10: ='Presentaciones Sonda'!$D$50 -> 16 | E10: ='Presentaciones Sonda'!$E$50 -> 500 | F10: ='Presentaciones Sonda'!$F$50 -> 139.2 | G10: ='Presentaciones Sonda'!$G$50 -> 144.768 | I10: =IF($P$7=TRUE,IF($Q$10<3,H10/E10/D10,H10),Presentaciones!$H$5) -> 0.02309043347 | J10: 0.25 | P10: PVL | Q10: =MATCH(H7,P10:P12,0) -> 1 | T10: 0.25
C11: Hipercalórica/Hiperproteica para diabetes sin fibra | D11: ='Presentaciones Sonda'!$D$60 -> 13.2 | E11: ='Presentaciones Sonda'!$E$60 -> 500 | F11: ='Presentaciones Sonda'!$F$60 -> 176.016 | G11: ='Presentaciones Sonda'!$G$60 -> 183.05664 | I11: =IF($P$7=TRUE,IF($Q$10<3,H11/E11/D11,H11),Presentaciones!$H$5) -> 0.02309043347 | J11: 0.25 | P11: PVL + IVA | T11: 0.25
C12: Alternativa del usuario | G12: =(F12*(IF($P$8=TRUE,$S$8,1))) -> 0 | I12: =IFERROR(IF($P$7=TRUE,IF($Q$10<3,H12/E12/D12,H12),Presentaciones!$H$5),0) -> 0.02309043347 | J12: 0 | P12: €/ml | T12: 0
J13: =IF(SUM(J8:J12)=1,"","No suma 100%") -> 
C15: Posología
C16: (i) Seleccione los ml que se le administrará al paciente de cada alternativa.
C18: Pacientes desnutridos cribados
C19: Tipo | E19: ml/día | F19: Envases | G19: ml totales / día | I19: Coste día | J19: Coste día promedio | T19: ml/día
C20: Hipercalórica/Hiperproteica sin fibra | E20: 1500 | F20: =ROUNDUP(IFERROR(E20/E8,0),0) -> 3 | G20: =F20*E8 -> 1666.666667 | I20: =G20*I8 -> 38.48405579 | J20: =SUMPRODUCT($J$8:$J$12,I20:I24) -> 35.5977516 | T20: 1500
C21: Hipercalórica/Hiperproteica con fibra | E21: 1500 | F21: =ROUNDUP(IFERROR(E21/E9,0),0) -> 3 | G21: =F21*E9 -> 1500 | I21: =G21*I9 -> 34.63565021 | T21: 1500
C22: Hipercalórica/Hiperproteica con CaHMB | E22: 1500 | F22: =ROUNDUP(IFERROR(E22/E10,0),0) -> 3 | G22: =F22*E10 -> 1500 | I22: =G22*I10 -> 34.63565021 | T22: 1500
C23: Hipercalórica/Hiperproteica para diabetes sin fibra | E23: 1500 | F23: =ROUNDUP(IFERROR(E23/E11,0),0) -> 3 | G23: =F23*E11 -> 1500 | I23: =G23*I11 -> 34.63565021 | T23: 1500
C24: Alternativa del usuario | E24: 1500 | F24: =ROUNDUP(IFERROR(E24/E12,0),0) -> 0 | G24: =F24*E12 -> 0 | I24: =G24*I12 -> 0 | T24: 1500
C26: Pacientes desnutridos no cribados
C27: Tipo | E27: ml/día | F27: Envases | G27: ml totales / día | I27: Coste día | J27: Coste día promedio | T27: ml/día
C28: Hipercalórica/Hiperproteica sin fibra | E28: 1500 | F28: =ROUNDUP(IFERROR(E28/E8,0),0) -> 3 | G28: =F28*E8 -> 1666.666667 | I28: =G28*I8 -> 38.48405579 | J28: =SUMPRODUCT($J$8:$J$12,I28:I32) -> 35.5977516 | T28: 1500
C29: Hipercalórica/Hiperproteica con fibra | E29: 1500 | F29: =ROUNDUP(IFERROR(E29/E9,0),0) -> 3 | G29: =F29*E9 -> 1500 | I29: =G29*I9 -> 34.63565021 | T29: 1500
C30: Hipercalórica/Hiperproteica con CaHMB | E30: 1500 | F30: =ROUNDUP(IFERROR(E30/E10,0),0) -> 3 | G30: =F30*E10 -> 1500 | I30: =G30*I10 -> 34.63565021 | T30: 1500
C31: Hipercalórica/Hiperproteica para diabetes sin fibra | E31: 1500 | F31: =ROUNDUP(IFERROR(E31/E11,0),0) -> 3 | G31: =F31*E11 -> 1500 | I31: =G31*I11 -> 34.63565021 | T31: 1500
C32: Alternativa del usuario | E32: 1500 | F32: =ROUNDUP(IFERROR(E32/E12,0),0) -> 0 | G32: =F32*E12 -> 0 | I32: =G32*I12 -> 0 | T32: 1500
C34: Sonda y colocación de la sonda
C36: Sonda | E36: Coste | F36: Referencia
C37: Coste de la sonda | E37: 4.741642574 | F37: =Referencias!$C$58 -> 57 | T37: 4.741642574
C39: Colocación de la Sonda | E39: % de uso | F39: Tiempo | G39: Coste | I39: Referencia | J39: Total
C40: Endoscopia | E40: =1-SUM($E$41:$E$44) -> 0.01 | F40: - | G40: 210 | I40: =VLOOKUP('Coste cribado y VN'!$O$12,'Costes por CCAA cribado '!$A$1:$BJ$23,'Costes por CCAA cribado '!$BJ$1,FALSE) -> 16, 17, 19-33, 35 | J40: =SUMPRODUCT(E40:E44,G40:G44) -> 32.37479864 | V40: =VLOOKUP('Coste cribado y VN'!$O$12,'Costes por CCAA cribado '!$A$1:$BJ$23,'Costes por CCAA cribado '!$BI$1,FALSE) -> 210
C41: Radiología intervencionista | E41: 0.01 | F41: - | G41: 479.45 | I41: =VLOOKUP('Coste cribado y VN'!$O$12,'Costes por CCAA cribado '!$A$1:$BP$23,'Costes por CCAA cribado '!$BL$1,FALSE) -> 16, 21, 26, 27, 32, 33, 35 | T41: 0.01 | V41: =VLOOKUP('Coste cribado y VN'!$O$12,'Costes por CCAA cribado '!$A$1:$BP$23,'Costes por CCAA cribado '!$BK$1,FALSE) -> 479.45
C42: Gastrostomía radioscópica | E42: 0.01 | F42: - | G42: 1424 | I42: =VLOOKUP('Coste cribado y VN'!$O$12,'Costes por CCAA cribado '!$A$1:$BP$23,'Costes por CCAA cribado '!$BN$1,FALSE) -> 16, 20, 21, 26-28, 32, 33, 35 | T42: 0.01 | V42: =VLOOKUP('Coste cribado y VN'!$O$12,'Costes por CCAA cribado '!$A$1:$BP$23,'Costes por CCAA cribado '!$BM$1,FALSE) -> 1424
C43: Gastrostomía endoscópica | E43: 0.01 | F43: - | G43: 748.2106422 | I43: =VLOOKUP('Coste cribado y VN'!$O$12,'Costes por CCAA cribado '!$A$1:$BP$23,'Costes por CCAA cribado '!$BP$1,FALSE) -> 16, 20, 21, 24, 26, 27, 30, 31, 35 | T43: 0.01 | V43: =VLOOKUP('Coste cribado y VN'!$O$12,'Costes por CCAA cribado '!$A$1:$BP$23,'Costes por CCAA cribado '!$BO$1,FALSE) -> 748.2106422
C44: Colocación por personal de enfermería | E44: 0.96 | F44: 20 | G44: 3.914783562 | I44: =CONCATENATE(Referencias!$C$15,", ",'Coste cribado y VN'!$I$87) -> 14, 35-53 | T44: 0.96 | U44: 20 | V44: =U44*'Coste cribado y VN'!$H$87 -> 3.914783562

Sheet Presentaciones Sonda
C2: Hipercalórico/Hiperproteico sin fibra | N2: RESET
D4: Envases | E4: ml | F4: =CONCATENATE("PVL (",Referencias!$C$57,") ") -> PVL (56) | G4: =CONCATENATE(F4,'Nutrición Enteral Sonda'!$R$7,'Nutrición Enteral Sonda'!$R$8) -> PVL (56) + IVA | H4: €/ml | I4: %
C5: HC/HP sin fibra | D5: =SUMPRODUCT(D6:D27,$I$6:$I$27) -> 12.55555556 | E5: =SUMPRODUCT(E6:E27,$I$6:$I$27) -> 555.5555556 | F5: 147.1044444 | G5: 152.9886222 | H5: 0.02266156148 | N5: =AVERAGE(N6:N8) -> 203.2
C6: Fresubin HP Energy | D6: 15 | E6: 500 | F6: 148.8 | G6: =(F6*(IF('Nutrición Enteral Sonda'!$P$8=TRUE,'Nutrición Enteral Sonda'!$S$8,1))) -> 154.752 | H6: =G6/D6/E6 -> 0.0206336 | I6: =1-SUM(I7:I27) -> 0.05555555556 | N6: 148.8 | O6: =1-SUM(O7:O23) -> 0.05555555556
C7: Fresubin 2Kcal HP | D7: 12 | E7: 500 | F7: 139.2 | G7: =(F7*(IF('Nutrición Enteral Sonda'!$P$8=TRUE,'Nutrición Enteral Sonda'!$S$8,1))) -> 144.768 | H7: =G7/D7/E7 -> 0.024128 | I7: 0.05555555556 | N7: 139.2 | O7: 0.05555555556
C8: Glucerna 1.2 | D8: 16 | E8: 500 | F8: 321.6 | G8: =(F8*(IF('Nutrición Enteral Sonda'!$P$8=TRUE,'Nutrición Enteral Sonda'!$S$8,1))) -> 334.464 | H8: =G8/D8/E8 -> 0.041808 | I8: 0.05555555556 | N8: 321.6 | O8: 0.05555555556
C9: Impact Enteral | D9: 12 | E9: 500 | F9: 139.2 | G9: =(F9*(IF('Nutrición Enteral Sonda'!$P$8=TRUE,'Nutrición Enteral Sonda'!$S$8,1))) -> 144.768 | H9: =G9/D9/E9 -> 0.024128 | I9: 0.05555555556 | N9: 139.2 | O9: 0.05555555556
C10: Jevity Plus | D10: 16 | E10: 500 | F10: 104.4 | G10: =(F10*(IF('Nutrición Enteral Sonda'!$P$8=TRUE,'Nutrición Enteral Sonda'!$S$8,1))) -> 108.576 | H10: 0.013572 | I10: 0.05555555556 | N10: 104.4 | O10: 0.05555555556
C11: Nutricomp Energy | D11: 12 | E11: 500 | F11: 83.6 | G11: =(F11*(IF('Nutrición Enteral Sonda'!$P$8=TRUE,'Nutrición Enteral Sonda'!$S$8,1))) -> 86.944 | H11: 0.01449066667 | I11: 0.05555555556 | N11: 83.6 | O11: 0.05555555556
C12: Nutricomp Energy HP | D12: 12 | E12: 500 | F12: 104.3 | G12: =(F12*(IF('Nutrición Enteral Sonda'!$P$8=TRUE,'Nutrición Enteral Sonda'!$S$8,1))) -> 108.472 | H12: 0.01807866667 | I12: 0.05555555556 | N12: 104.3 | O12: 0.05555555556
C13: Nutrison Peptisorb Plus | D13: 12 | E13: 500 | F13: 83.6 | G13: =(F13*(IF('Nutrición Enteral Sonda'!$P$8=TRUE,'Nutrición Enteral Sonda'!$S$8,1))) -> 86.944 | H13: 0.01449066667 | I13: 0.05555555556 | N13: 83.6 | O13: 0.05555555556
C14: Nutrison Potrein Plus | D14: 12 | E14: 500 | F14: 104.3 | G14: =(F14*(IF('Nutrición Enteral Sonda'!$P$8=TRUE,'Nutrición Enteral Sonda'!$S$8,1))) -> 108.472 | H14: 0.01807866667 | I14: 0.05555555556 | N14: 104.3 | O14: 0.05555555556
C15: Nutrison Potrein Plus Energy | D15: 12 | E15: 500 | F15: 225.12 | G15: =(F15*(IF('Nutrición Enteral Sonda'!$P$8=TRUE,'Nutrición Enteral Sonda'!$S$8,1))) -> 234.1248 | H15: 0.0390208 | I15: 0.05555555556 | N15: 225.12 | O15: 0.05555555556
C16: Osmolite Plus | D16: 16 | E16: 500 | F16: 96 | G16: =(F16*(IF('Nutrición Enteral Sonda'!$P$8=TRUE,'Nutrición Enteral Sonda'!$S$8,1))) -> 99.84 | H16: 0.01248 | I16: 0.05555555556 | N16: 96 | O16: 0.05555555556
C17: Peptamen AF | D17: 12 | E17: 500 | F17: 111.36 | G17: =(F17*(IF('Nutrición Enteral Sonda'!$P$8=TRUE,'Nutrición Enteral Sonda'!$S$8,1))) -> 115.8144 | H17: 0.0193024 | I17: 0.05555555556 | N17: 111.36 | O17: 0.05555555556
C18: Peptisens | D18: 12 | E18: 500 | F18: 225.12 | G18: =(F18*(IF('Nutrición Enteral Sonda'!$P$8=TRUE,'Nutrición Enteral Sonda'!$S$8,1))) -> 234.1248 | H18: 0.0390208 | I18: 0.05555555556 | N18: 225.12 | O18: 0.05555555556
C19: Tdiet HP | D19: 12 | E19: 500 | F19: 96 | G19: =(F19*(IF('Nutrición Enteral Sonda'!$P$8=TRUE,'Nutrición Enteral Sonda'!$S$8,1))) -> 99.84 | H19: 0.01664 | I19: 0.05555555556 | N19: 96 | O19: 0.05555555556
C20: Sondavant Plus | D20: 12 | E20: 500 | F20: 111.36 | G20: =(F20*(IF('Nutrición Enteral Sonda'!$P$8=TRUE,'Nutrición Enteral Sonda'!$S$8,1))) -> 115.8144 | H20: 0.0193024 | I20: 0.05555555556 | N20: 111.36 | O20: 0.05555555556
C21: Supportan | D21: 15 | E21: 500 | F21: 83.52 | G21: =(F21*(IF('Nutrición Enteral Sonda'!$P$8=TRUE,'Nutrición Enteral Sonda'!$S$8,1))) -> 86.8608 | H21: 0.01158144 | I21: 0.05555555556 | N21: 83.52 | O21: 0.05555555556
C22: Twocal | D22: 8 | E22: 1000 | F22: 148.8 | G22: =(F22*(IF('Nutrición Enteral Sonda'!$P$8=TRUE,'Nutrición Enteral Sonda'!$S$8,1))) -> 154.752 | H22: =G22/D22/E22 -> 0.019344 | I22: 0.05555555556 | N22: 148.8 | O22: 0.05555555556
C23: Vital peptido | D23: 8 | E23: 1000 | F23: 321.6 | G23: =(F23*(IF('Nutrición Enteral Sonda'!$P$8=TRUE,'Nutrición Enteral Sonda'!$S$8,1))) -> 334.464 | H23: =G23/D23/E23 -> 0.041808 | I23: 0.05555555556 | N23: 321.6 | O23: 0.05555555556
G24: =(F24*(IF('Nutrición Enteral'!$P$8=TRUE,'Nutrición Enteral'!$S$8,1))) -> 0 | H24: =IFERROR(G24/D24/E24,0) -> 0 | I24: 0 | O24: 0
G25: =(F25*(IF('Nutrición Enteral'!$P$8=TRUE,'Nutrición Enteral'!$S$8,1))) -> 0 | H25: =IFERROR(G25/D25/E25,0) -> 0 | I25: 0 | O25: 0
G26: =(F26*(IF('Nutrición Enteral'!$P$8=TRUE,'Nutrición Enteral'!$S$8,1))) -> 0 | H26: 0 | I26: 0 | O26: 0
G27: =(F27*(IF('Nutrición Enteral'!$P$8=TRUE,'Nutrición Enteral'!$S$8,1))) -> 0 | H27: 0 | I27: 0 | O27: 0
I28: =IF(I6>0,"","Error") -> 
C29: Hipercalórico/Hiperproteico con fibra
D31: Envases | E31: ml | F31: =CONCATENATE("PVL (",Referencias!$C$57,")") -> PVL (56) | G31: =CONCATENATE(F31,'Nutrición Enteral Sonda'!$R$7,'Nutrición Enteral Sonda'!$R$8) -> PVL (56)+ IVA | H31: €/ml | I31: % | N31: =CONCATENATE("PVL (",Referencias!$C$57,")") -> PVL (56)
C32: HC/HP con fibra | D32: =SUMPRODUCT(D33:D45,$I$33:$I$45) -> 12.66666667 | E32: =SUMPRODUCT(E33:E45,$I$33:$I$45) -> 500 | F32: 144.8888889 | G32: 150.6844444 | H32: 0.02404903704 | N32: =AVERAGE(N34:N40) -> 137.8285714
C33: Atempero Enteral | D33: 12 | E33: 500 | F33: 172.5 | G33: =(F33*(IF('Nutrición Enteral Sonda'!$P$8=TRUE,'Nutrición Enteral Sonda'!$S$8,1))) -> 179.4 | H33: 0.0299 | I33: =1-SUM(I34:I45) -> 0.1111111111 | N33: 172.5 | O33: =1-SUM(O34:O41) -> 0.1111111111
C34: Bi1 Via HP/HC | D34: 12 | E34: 500 | F34: 172.5 | G34: =(F34*(IF('Nutrición Enteral Sonda'!$P$8=TRUE,'Nutrición Enteral Sonda'!$S$8,1))) -> 179.4 | H34: =G34/D34/E34 -> 0.0299 | I34: 0.1111111111 | N34: 172.5 | O34: 0.1111111111
C35: Bi1 Via Diacare | D35: 12 | E35: 500 | F35: 183.6 | G35: =(F35*(IF('Nutrición Enteral Sonda'!$P$8=TRUE,'Nutrición Enteral Sonda'!$S$8,1))) -> 190.944 | H35: 0.031824 | I35: 0.1111111111 | N35: 183.6 | O35: 0.1111111111
C36: Fresubin 2Kcal HP Fibre | D36: 15 | E36: 500 | F36: 183.6 | G36: =(F36*(IF('Nutrición Enteral Sonda'!$P$8=TRUE,'Nutrición Enteral Sonda'!$S$8,1))) -> 190.944 | H36: 0.0254592 | I36: 0.1111111111 | N36: 183.6 | O36: 0.1111111111
C37: Fresubin HP energy fibre | D37: 15 | E37: 500 | F37: 92.9 | G37: =(F37*(IF('Nutrición Enteral Sonda'!$P$8=TRUE,'Nutrición Enteral Sonda'!$S$8,1))) -> 96.616 | H37: 0.01288213333 | I37: 0.1111111111 | N37: 92.9 | O37: 0.1111111111
C38: Nutricomp Energy Fibre | D38: 12 | E38: 500 | F38: 92.9 | G38: =(F38*(IF('Nutrición Enteral Sonda'!$P$8=TRUE,'Nutrición Enteral Sonda'!$S$8,1))) -> 96.616 | H38: 0.01610266667 | I38: 0.1111111111 | N38: 92.9 | O38: 0.1111111111
C39: Nutricomp Energy HP Fibre | D39: 12 | E39: 500 | F39: 119.65 | G39: =(F39*(IF('Nutrición Enteral Sonda'!$P$8=TRUE,'Nutrición Enteral Sonda'!$S$8,1))) -> 124.436 | H39: 0.02073933333 | I39: 0.1111111111 | N39: 119.65 | O39: 0.1111111111
C40: Nutrison Potrein Plus Energy | D40: 12 | E40: 500 | F40: 119.65 | G40: =(F40*(IF('Nutrición Enteral Sonda'!$P$8=TRUE,'Nutrición Enteral Sonda'!$S$8,1))) -> 124.436 | H40: 0.02073933333 | I40: 0.1111111111 | N40: 119.65 | O40: 0.1111111111
C41: Nutrison Potrein Plus | D41: 12 | E41: 500 | F41: 166.7 | G41: =(F41*(IF('Nutrición Enteral Sonda'!$P$8=TRUE,'Nutrición Enteral Sonda'!$S$8,1))) -> 173.368 | H41: =G41/D41/E41 -> 0.02889466667 | I41: 0.1111111111 | N41: 166.7 | O41: 0.1111111111
G42: =(F42*(IF('Nutrición Enteral Sonda'!$P$8=TRUE,'Nutrición Enteral Sonda'!$S$8,1))) -> 0 | H42: =IFERROR(G42/D42/E42,0) -> 0 | I42: 0 | O42: 0
G43: =(F43*(IF('Nutrición Enteral Sonda'!$P$8=TRUE,'Nutrición Enteral Sonda'!$S$8,1))) -> 0 | H43: =IFERROR(G43/D43/E43,0) -> 0 | I43: 0 | O43: 0
G44: =(F44*(IF('Nutrición Enteral Sonda'!$P$8=TRUE,'Nutrición Enteral Sonda'!$S$8,1))) -> 0 | H44: 0 | I44: 0 | O44: 0
G45: =(F45*(IF('Nutrición Enteral'!$P$8=TRUE,'Nutrición Enteral'!$S$8,1))) -> 0 | H45: 0 | I45: 0 | O45: 0
I46: =IF(I33>0,"","Error") -> 
C47: Hipercalórico/Hiperproteico con CaHMB
D49: Envases | E49: ml | F49: =CONCATENATE("PVL (",Referencias!$C$57,")") -> PVL (56) | G49: =CONCATENATE(F49,'Nutrición Enteral Sonda'!$R$7,'Nutrición Enteral Sonda'!$R$8) -> PVL (56)+ IVA | H49: €/ml
C50: HC/HP con CaHMB | D50: =SUMPRODUCT(D51:D55,$I$51:$I$55) -> 16 | E50: =SUMPRODUCT(E51:E55,$I$51:$I$55) -> 500 | F50: 139.2 | G50: 144.768 | H50: 0.018096
C51: Ensure Plus Advance RHT | D51: 16 | E51: 500 | F51: 139.2 | G51: =(F51*(IF('Nutrición Enteral Sonda'!$P$8=TRUE,'Nutrición Enteral Sonda'!$S$8,1))) -> 144.768 | H51: =G51/D51/E51 -> 0.018096 | I51: =1-SUM(I52:I55) -> 1 | N51: 139.2
G52: =(F52*(IF('Nutrición Enteral'!$P$8=TRUE,'Nutrición Enteral'!$S$8,1))) -> 0 | H52: =IFERROR(G52/D52/E52,0) -> 0 | I52: 0 | O52: 0
G53: =(F53*(IF('Nutrición Enteral'!$P$8=TRUE,'Nutrición Enteral'!$S$8,1))) -> 0 | H53: =IFERROR(G53/D53/E53,0) -> 0 | I53: 0 | O53: 0
G54: =(F54*(IF('Nutrición Enteral'!$P$8=TRUE,'Nutrición Enteral'!$S$8,1))) -> 0 | H54: 0 | I54: 0 | O54: 0
G55: =(F55*(IF('Nutrición Enteral'!$P$8=TRUE,'Nutrición Enteral'!$S$8,1))) -> 0 | H55: 0 | I55: 0 | O55: 0
C57: Hipercalórico/Hiperproteico para Diabetes sin fibra
D59: Envases | E59: ml | F59: =CONCATENATE("PVL (",Referencias!$C$57,")") -> PVL (56) | G59: =CONCATENATE(F59,'Nutrición Enteral Sonda'!$R$7,'Nutrición Enteral Sonda'!$R$8) -> PVL (56)+ IVA | H59: €/ml | I59: %
C60: HC/HP Diabetes sin fibra | D60: =SUMPRODUCT(D61:D69,$I$61:$I$69) -> 13.2 | E60: =SUMPRODUCT(E61:E69,$I$61:$I$69) -> 500 | F60: 176.016 | G60: 183.05664 | H60: 0.02797184 | N60: =SUMPRODUCT(N61:N65,$I$61:$I$65) -> 176.016
C61: Diben 1.5 Kcal HP | D61: 15 | E61: 500 | F61: 229.5 | G61: =(F61*(IF('Nutrición Enteral Sonda'!$P$8=TRUE,'Nutrición Enteral Sonda'!$S$8,1))) -> 238.68 | H61: =G61/D61/E61 -> 0.031824 | I61: =1-SUM(I62:I69) -> 0.2 | N61: 229.5 | O61: =1-SUM(O62:O65) -> 0.2
C62: Diben | D62: 15 | E62: 500 | F62: 136.5 | G62: =(F62*(IF('Nutrición Enteral Sonda'!$P$8=TRUE,'Nutrición Enteral Sonda'!$S$8,1))) -> 141.96 | H62: 0.018928 | I62: 0.2 | N62: 136.5 | O62: 0.2
C63: Novasource Diabet Plus | D63: 12 | E63: 500 | F63: 183.6 | G63: =(F63*(IF('Nutrición Enteral Sonda'!$P$8=TRUE,'Nutrición Enteral Sonda'!$S$8,1))) -> 190.944 | H63: 0.031824 | I63: 0.2 | N63: 183.6 | O63: 0.2
C64: Nutrison Advanced Diason | D64: 12 | E64: 500 | F64: 183.6 | G64: =(F64*(IF('Nutrición Enteral Sonda'!$P$8=TRUE,'Nutrición Enteral Sonda'!$S$8,1))) -> 190.944 | H64: 0.031824 | I64: 0.2 | N64: 183.6 | O64: 0.2
C65: Sondavant Plus Diabética | D65: 12 | E65: 500 | F65: 146.88 | G65: =(F65*(IF('Nutrición Enteral Sonda'!$P$8=TRUE,'Nutrición Enteral Sonda'!$S$8,1))) -> 152.7552 | H65: 0.0254592 | I65: 0.2 | N65: 146.88 | O65: 0.2
G66: =(F66*(IF('Nutrición Enteral'!$P$8=TRUE,'Nutrición Enteral'!$S$8,1))) -> 0 | H66: =IFERROR(G66/D66/E66,0) -> 0 | I66: 0 | O66: 0
G67: =(F67*(IF('Nutrición Enteral'!$P$8=TRUE,'Nutrición Enteral'!$S$8,1))) -> 0 | H67: =IFERROR(G67/D67/E67,0) -> 0 | I67: 0 | O67: 0
G68: =(F68*(IF('Nutrición Enteral'!$P$8=TRUE,'Nutrición Enteral'!$S$8,1))) -> 0 | H68: 0 | I68: 0 | O68: 0
G69: =(F69*(IF('Nutrición Enteral'!$P$8=TRUE,'Nutrición Enteral'!$S$8,1))) -> 0 | H69: 0 | I69: 0 | O69: 0

Sheet Nutrición Parenteral
C2: Coste farmacológico
D4: Dto. RDL 8/2010 | G4: IVA (4%)
C6: Fármaco | D6: Envases | E6: ml | F6: =CONCATENATE("PVL (",Referencias!$C$57,")") -> PVL (56) | G6: =CONCATENATE("Dto. RDL 8/2010 (",Referencias!$C$59,")") -> Dto. RDL 8/2010 (58) | H6: =CONCATENATE("PVL",R6,R7) -> PVL - Dto. RDL 8/2010 + IVA | I6: €/ml | O6: 0 | P6: TRUE | Q6: TRUE | R6: =IF(Q6=TRUE," - Dto. RDL 8/2010 ","") -> - Dto. RDL 8/2010
C7: =CONCATENATE("Olimel N7E (",Referencias!$C$60,")") -> Olimel N7E (59) | D7: 4 | E7: 1500 | F7: 210 | G7: 0.075 | H7: =(F7-IF($P$6=TRUE,(G7*F7),0))*(IF($P$7=TRUE,$S$7,1)) -> 202.02 | I7: =H7/D7/E7 -> 0.03367 | O7: 0.04 | P7: TRUE | Q7: TRUE | R7: =IF(Q7=TRUE,"+ IVA","") -> + IVA | S7: 1.04 | T7: 210 | U7: 0.075
D8: 4 | E8: 2000 | F8: 270 | G8: 0.075 | H8: 259.74 | I8: 0.0324675 | O8: 0.075 | T8: 270 | U8: 0.075
C9: =CONCATENATE("Olimel N9 (",Referencias!$C$61,")") -> Olimel N9 (60) | D9: 6 | E9: 1000 | F9: 269.73 | G9: 0.075 | H9: 259.48026 | I9: 0.04324671 | O9: 0.15 | T9: 269.73 | U9: 0.075
D10: 4 | E10: 1500 | F10: 269.73 | G10: 0.075 | H10: 259.48026 | I10: 0.04324671 | T10: 269.73 | U10: 0.075
D11: 4 | E11: 2000 | F11: 359.64 | G11: 0.075 | H11: 345.97368 | I11: 0.04324671 | T11: 359.64 | U11: 0.075
C12: =CONCATENATE("Olimel N9E (",Referencias!$C$62,")") -> Olimel N9E (61) | D12: 6 | E12: 1000 | F12: 269 | G12: 0.075 | H12: 258.778 | I12: 0.04312966667 | T12: 269 | U12: 0.075
D13: 4 | E13: 1500 | F13: 269.73 | G13: 0.075 | H13: 259.48026 | I13: 0.04324671 | T13: 269.73 | U13: 0.075
D14: 4 | E14: 2000 | F14: 269 | G14: 0.075 | H14: 258.778 | I14: 0.03234725 | T14: 269 | U14: 0.075
C15: =CONCATENATE("Periolimel N4E (",Referencias!$C$62,")") -> Periolimel N4E (61) | D15: 4 | E15: 1500 | F15: 197.8 | G15: 0.075 | H15: 190.2836 | I15: 0.03171393333 | T15: 197.8 | U15: 0.075
D16: 4 | E16: 2000 | F16: 199.8 | G16: 0.075 | H16: 192.2076 | I16: 0.02402595 | T16: 199.8 | U16: 0.075
D17: 2 | E17: 2500 | F17: 164.83 | G17: 0.075 | H17: 158.56646 | I17: 0.031713292 | T17: 164.83 | U17: 0.075
C18: =CONCATENATE("Smofkabiven (",Referencias!$C$64,")") -> Smofkabiven (63) | D18: 1 | E18: 1970 | F18: 41 | G18: 0.075 | H18: =(F18-IF($P$6=TRUE,(G18*F18),0))*(IF($P$7=TRUE,$S$7,1)) -> 39.442 | I18: =H18/D18/E18 -> 0.0200213198 | T18: 41 | U18: 0.075
D19: 4 | E19: 1477 | F19: 134 | G19: 0.075 | H19: 128.908 | I19: 0.02181922817 | T19: 134 | U19: 0.075
C20: Alternativa del usuario | H20: =(F20-IF($P$6=TRUE,(G20*F20),0))*(IF($P$7=TRUE,$S$7,1)) -> 0 | I20: =IFERROR(H20/D20/E20,0) -> 0
C22: Posología
C23: (i) Seleccione la presentación que administrará al paciente modificando los % de uso
C25: Pacientes desnutridos cribados
C26: Fármacos | D26: =CONCATENATE("Dosis máxima (",Referencias!$C$60," - ",Referencias!$C$63,")") -> Dosis máxima (59 - 62) | E26: =CONCATENATE("Dosis máxima recomendada (",Referencias!$C$60," - ",Referencias!$C$63,")") -> Dosis máxima recomendada (59 - 62) | F26: Dosis administrada/ día | G26: Coste día | H26: % de uso | I26: Velocidad según dosis administrada/ día | J26: =CONCATENATE("Vía de administración (",Referencias!$C$60," - ",Referencias!$C$63,")") -> Vía de administración (59 - 62)
C27: Olimel N7E | D27: 35 | E27: =D27*Población!$E$32 -> 2047.5 | F27: 1500 | G27: =F27*VLOOKUP(F27,$E$7:$I$8,5,FALSE) -> 50.505 | H27: =1-SUM(H28:H32) -> 0.2 | I27: =F27/24 -> 62.5 | J27: Venoso central | R27: 35 | S27: 1500
C28: Olimel N9 | D28: 35 | E28: =D28*Población!$E$32 -> 2047.5 | F28: 1500 | G28: =F28*VLOOKUP(F28,$E$9:$I$11,5,FALSE) -> 64.870065 | H28: 0.2 | I28: 62.5 | J28: Venoso central | R28: 35 | S28: 1500 | T28: 0.2
C29: Olimel N9E | D29: 35 | E29: =D29*Población!$E$32 -> 2047.5 | F29: 1500 | G29: =F29*VLOOKUP(F29,$E$12:$I$14,5,FALSE) -> 64.870065 | H29: 0.2 | I29: 62.5 | J29: Venoso central | R29: 35 | S29: 1500 | T29: 0.2
C30: Periolimel N4E | D30: 40 | E30: =D30*Población!$E$32 -> 2340 | F30: 1500 | G30: =F30*VLOOKUP(F30,$E$15:$I$17,5,FALSE) -> 47.5709 | H30: 0.2 | I30: 62.5 | J30: Venoso central | P30: Venoso central | R30: 40 | S30: 1500 | T30: 0.2 | U30: Venoso central
C31: Smofkabiven | D31: 35 | E31: =D31*Población!$E$32 -> 2047.5 | F31: 1477 | G31: =F31*VLOOKUP(F31,$E$18:$I$19,5,FALSE) -> 32.227 | H31: 0.2 | I31: 61.54166667 | J31: Venoso central | P31: Venoso periférico | R31: 35 | S31: 1477 | T31: 0.2
C32: Alternativa del usuario | D32: 0 | E32: =D32*Población!$E$32 -> 0 | F32: =E20 -> 0 | G32: =F32*$I$20 -> 0 | H32: 0 | I32: 0 | J32: Venoso periférico | R32: 0 | T32: 0 | U32: Venoso periférico
C34: Pacientes desnutridos no cribados
C35: Fármacos | D35: =CONCATENATE("Dosis máxima (",Referencias!$C$60," - ",Referencias!$C$63,")") -> Dosis máxima (59 - 62) | E35: =CONCATENATE("Dosis máxima recomendada (",Referencias!$C$60," - ",Referencias!$C$63,")") -> Dosis máxima recomendada (59 - 62) | F35: Dosis administrada/ día | G35: Coste día | H35: % de uso | I35: Velocidad según dosis administrada/ día | J35: =CONCATENATE("Vía de administración (",Referencias!$C$60," - ",Referencias!$C$63,")") -> Vía de administración (59 - 62)
C36: Olimel N7E | D36: 35 | E36: =D36*Población!$E$32 -> 2047.5 | F36: 1500 | G36: =F36*VLOOKUP(F36,$E$7:$I$8,5,FALSE) -> 50.505 | H36: =1-SUM(H37:H41) -> 0.2 | I36: =F36/24 -> 62.5 | J36: Venoso central
C37: Olimel N9 | D37: 35 | E37: =D37*Población!$E$32 -> 2047.5 | F37: 1500 | G37: =F37*VLOOKUP(F37,$E$9:$I$11,5,FALSE) -> 64.870065 | H37: 0.2 | I37: 62.5 | J37: Venoso central
C38: Olimel N9E | D38: 35 | E38: =D38*Población!$E$32 -> 2047.5 | F38: 1500 | G38: =F38*VLOOKUP(F38,$E$12:$I$14,5,FALSE) -> 64.870065 | H38: 0.2 | I38: 62.5 | J38: Venoso central
C39: Periolimel N4E | D39: 40 | E39: =D39*Población!$E$32 -> 2340 | F39: 1500 | G39: =F39*VLOOKUP(F39,$E$15:$I$17,5,FALSE) -> 47.5709 | H39: 0.2 | I39: 62.5 | J39: Venoso central
C40: Smofkabiven | D40: 35 | E40: =D40*Población!$E$32 -> 2047.5 | F40: 1477 | G40: =F40*VLOOKUP(F40,$E$18:$I$19,5,FALSE) -> 32.227 | H40: 0.2 | I40: 61.54166667 | J40: Venoso central
C41: Alternativa del usuario | D41: 0 | E41: =D41*Población!$E$32 -> 0 | F41: =E20 -> 0 | G41: =F41*$I$20 -> 0 | H41: 0 | I41: 0 | J41: Venoso periférico
C43: Coste de Administración - Material Fungible y Personal | T43: =IF(T46=TRUE,T44,U44) -> España
T44: =Ajustes!E6 -> España | U44: =Ajustes!$E$8 -> 0
C45: Pacientes desnutridos cribados
C46: Administración por vena central | F46: Coste | G46: Referencia | H46: Uso del recurso | I46: Referencia | J46: TOTAL | P46: =SUMIF($J$27:$J$32,Q46,$H$27:$H$32) -> 1 | Q46: Venoso central | S46: España | T46: =$T$44=S46 -> TRUE
C47: Colocación catéter venoso central | F47: =$F$67*$F$68 -> 15.21061644 | G47: =CONCATENATE(Referencias!$C$15,", ",VLOOKUP('Coste cribado y VN'!$O$12,'Costes por CCAA cribado '!$A:$M,'Costes por CCAA cribado '!$M$1,FALSE)) -> 14, 35-53 | H47: 1 | I47: =Referencias!$C$66 -> 65 | J47: =(F47*H47)+SUMPRODUCT(E48:E49,F48:F49,H48:H49)+(F50*H50) -> 79.09963439 | P47: =SUMIF($J$27:$J$32,Q47,$H$27:$H$32) -> 0 | Q47: Venoso periférico | S47: Comuniad Autónoma | T47: =$T$44=S47 -> FALSE
C48: Catéter de 2 luces | E48: 0.5 | F48: 15.01582139 | G48: =CONCATENATE(Referencias!$C$36,", ",Referencias!$C$65) -> 35, 64 | H48: 1 | I48: =Referencias!$C$66 -> 65 | P48: =(J47*P46)+(J52*P47) -> 79.09963439 | S48: Hospital | T48: FALSE
C49: Catéter de 2 luces acceso periférico | E49: 0.5 | F49: 77 | G49: =Referencias!$C$67 -> 66 | H49: 1 | I49: =Referencias!$C$66 -> 65
C50: Sistemas de infusión (cambio cada 24 h) | F50: 4.470276813 | G50: =CONCATENATE(Referencias!$C$36,", ",Referencias!$C$65) -> 35, 64 | H50: =ROUNDUP(('Estancia Media'!$D$6-Costes!$D$14)*Costes!$D$56,0) -> 4 | I50: =CONCATENATE(Referencias!$C$15,", ",Referencias!$C$66) -> 14, 65
C51: Administración por vena periférica | F51: Coste | G51: Referencia | H51: Uso del recurso | I51: Referencia | J51: TOTAL
C52: Colocación catéter venoso periférico | F52: =$F$67*$F$68 -> 15.21061644 | G52: =CONCATENATE(Referencias!$C$15,", ",VLOOKUP('Coste cribado y VN'!$O$12,'Costes por CCAA cribado '!$A:$M,'Costes por CCAA cribado '!$M$1,FALSE)) -> 14, 35-53 | H52: 1 | I52: =Referencias!$C$66 -> 65 | J52: =SUMPRODUCT(F52:F54,H52:H54) -> 33.61782219
C53: Catéter intravenoso | F53: 0.5260984986 | G53: =CONCATENATE(Referencias!$C$36,", ",Referencias!$C$68) -> 35, 67 | H53: 1 | I53: =Referencias!$C$66 -> 65
C54: Sistemas de infusión (cambio cada 24 h) | F54: 4.470276813 | G54: =CONCATENATE(Referencias!$C$36,", ",Referencias!$C$65) -> 35, 64 | H54: =ROUNDUP(('Estancia Media'!$D$6-Costes!$D$14)*Costes!$D$56,0) -> 4 | I54: =CONCATENATE(Referencias!$C$15,", ",Referencias!$C$66) -> 14, 65
C56: Pacientes desnutridos no cribados | P56: =SUMIF($J$36:$J$41,Q56,$H$36:$H$41) -> 1 | Q56: Venoso central
C57: Administración por vena central | F57: Coste | G57: Referencia | H57: Uso del recurso | I57: Referencia | J57: TOTAL | P57: =SUMIF($J$36:$J$41,Q57,$H$36:$H$41) -> 0 | Q57: Venoso periférico
C58: Colocación catéter venoso central | F58: =$F$67*$F$68 -> 15.21061644 | G58: =CONCATENATE(Referencias!$C$15,", ",VLOOKUP('Coste cribado y VN'!$O$12,'Costes por CCAA cribado '!$A:$M,'Costes por CCAA cribado '!$M$1,FALSE)) -> 14, 35-53 | H58: 1 | I58: =Referencias!$C$66 -> 65 | J58: =(F58*H58)+SUMPRODUCT(E59:E60,F59:F60,H59:H60)+(F61*H61) -> 83.5699112 | P58: =(J58*P56)+(J63*P57) -> 83.5699112 | T58: 1
C59: Catéter de 2 luces | E59: 0.5 | F59: 15.01582139 | G59: =CONCATENATE(Referencias!$C$36,", ",Referencias!$C$65) -> 35, 64 | H59: 1 | I59: =Referencias!$C$66 -> 65 | R59: 0.5 | S59: 15.01582139 | T59: 1
C60: Catéter de 2 luces acceso periférico | E60: 0.5 | F60: 77 | G60: =Referencias!$C$67 -> 66 | H60: 1 | R60: 0.5 | S60: 77 | T60: 1
C61: Sistemas de infusión (cambio cada 24 h) | F61: 4.470276813 | G61: =CONCATENATE(Referencias!$C$36,", ",Referencias!$C$65) -> 35, 64 | H61: =ROUNDUP(('Estancia Media'!$G$6-Costes!$D$15)*Costes!$I$56,0) -> 5 | I61: =CONCATENATE(Referencias!$C$15,", ",Referencias!$C$66) -> 14, 65 | S61: 4.470276813
C62: Administración por vena periférica | F62: Coste | G62: Referencia | H62: Uso del recurso | I62: Referencia | J62: TOTAL
C63: Colocación catéter venoso periférico | F63: =$F$67*$F$68 -> 15.21061644 | G63: =CONCATENATE(Referencias!$C$15,", ",VLOOKUP('Coste cribado y VN'!$O$12,'Costes por CCAA cribado '!$A:$M,'Costes por CCAA cribado '!$M$1,FALSE)) -> 14, 35-53 | H63: 1 | I63: =Referencias!$C$66 -> 65 | J63: =SUMPRODUCT(F63:F65,H63:H65) -> 38.088099
C64: Catéter intravenoso | F64: 0.5260984986 | G64: =CONCATENATE(Referencias!$C$36,", ",Referencias!$C$68) -> 35, 67 | H64: 1 | I64: =Referencias!$C$66 -> 65 | S64: 0.5260984986
C65: Sistemas de infusión (cambio cada 24 h) | F65: 4.470276813 | G65: =CONCATENATE(Referencias!$C$36,", ",Referencias!$C$65) -> 35, 64 | H65: =ROUNDUP(('Estancia Media'!$G$6-Costes!$D$15)*Costes!$I$56,0) -> 5 | I65: =CONCATENATE(Referencias!$C$15,", ",Referencias!$C$66) -> 14, 65 | S65: 4.470276813
C67: Tiempo de colocación del catéter | E67: Coste personal médico | F67: 45 | G67: =Referencias!$C$15 -> 14 | S67: 45
C68: Coste del especialista por minuto | F68: =VLOOKUP(E67,'Coste cribado y VN'!$C$86:$H$88,6,FALSE) -> 0.3380136986 | G68: =VLOOKUP('Coste cribado y VN'!$O$12,'Costes por CCAA cribado '!$A:$M,'Costes por CCAA cribado '!$M$1,FALSE) -> 35-53

Sheet Utilidades
C2: Utilidades
D4: Utilidad al alta | E4: Día 90 | F4: Referencia
C5: Sin tratamiento | D5: 0.619 | E5: 0.671 | F5: =Referencias!$C$10 -> 9 | M5: 0.619 | N5: 0.671
C6: Tratamiento | D6: 0.594 | E6: 0.731 | M6: 0.594 | N6: 0.731
M9: Utilidad al alta | N9: Día 90 | O9: Utilidad Total | P9: Total pacientes
J10: =90-Costes!$I$21 -> 82.8 | K10: =Costes!$I$21 -> 7.2 | L10: Sin cribado | M10: =(D5/12/30)*K10 -> 0.01238 | N10: =((E5/12)/30)*J10 -> 0.15433 | O10: =SUM(M10:N10) -> 0.16671 | P10: =O10*Población!$E$26 -> 497354.6184
J11: =90-Costes!$D$21 -> 84.7348226 | K11: =Costes!$D$21 -> 5.265177398 | L11: Con cribado | M11: =(D6/12/30)*K11 -> 0.008687542707 | N11: =((E6/12)/30)*J11 -> 0.1720587648 | O11: =SUM(M11:N11) -> 0.1807463075 | P11: =O11*Población!$E$26 -> 539229.8649

Sheet Resultados
C3: Resultados AIP
D5: Año 1 | E5: Año 2 | F5: Año 3
C6: Escenario sin cribado
C7: Coste Cribado | D7: 0 | E7: 0 | F7: 0
C8: Coste valoración nutricional | D8: =Costes!$G$87*Coste_Valoración_Nutricional -> 12602295.26 | E8: =Costes!$H$87*Coste_Valoración_Nutricional -> 12647875.44 | F8: =Costes!$I$87*Coste_Valoración_Nutricional -> 12697603.89
C9: Coste seguimiento | D9: =Costes!$G$87*(Coste_seguimiento/7*Costes!$I$21) -> 11869695.16 | E9: =Costes!$H$87*(Coste_seguimiento/7*Costes!$I$21) -> 11912625.67 | F9: =Costes!$I$87*(Coste_seguimiento/7*Costes!$I$21) -> 11959463.29
C10: Coste nutrición enteral oral | D10: =Costes!$G$83*Costes!$I$38 -> 12627856.5 | E10: =Costes!$H$83*Costes!$I$38 -> 12673529.14 | F10: =Costes!$I$83*Costes!$I$38 -> 12723358.46
C11: Coste nutrición enteral sonda | D11: =Costes!$G$84*Costes!$I$50 -> 20600907.5 | E11: =Costes!$H$84*Costes!$I$50 -> 20675417.19 | F11: =Costes!$I$84*Costes!$I$50 -> 20756708.04
C12: Coste nutrición parenteral | D12: =IFERROR(Costes!$G$85*Costes!$I$69,0) -> 13645163.09 | E12: =IFERROR(Costes!$H$85*Costes!$I$69,0) -> 13694515.14 | F12: =IFERROR(Costes!$I$85*Costes!$I$69,0) -> 13748358.73
C13: Coste de la estancia | D13: =Población!$E$26*(EstanciaMedia_sincribar+Costes!$I$23) -> 1.235563369e+10 | E13: =Población!$F$26*(EstanciaMedia_sincribar+Costes!$I$23) -> 1.240032174e+10 | F13: =Población!$G$26*(EstanciaMedia_sincribar+Costes!$I$23) -> 1.244907687e+10
C14: Total | D14: =SUM(D7:D13) -> 1.24269796e+10 | E14: =SUM(E7:E13) -> 1.24719257e+10 | F14: 1.252096236e+10
C15: Escenario con cribado
C16: Coste Cribado | D16: =Población!$E$18*Coste_cribado -> 22995299.95 | E16: =Población!$F$18*Coste_cribado -> 23078469.72 | F16: =Población!$G$18*Coste_cribado -> 23169208.8
C17: Coste valoración nutricional | D17: =Población!$E$24*Coste_Valoración_Nutricional -> 94919415.34 | E17: =Población!$F$24*Coste_Valoración_Nutricional -> 95262721.39 | F17: =Población!$G$24*Coste_Valoración_Nutricional -> 95637271.87
C18: Coste seguimiento | D18: =Costes!$D$87*(Coste_seguimiento/7*Costes!$D$21) -> 24659773.65 | E18: =Costes!$E$87*(Coste_seguimiento/7*Costes!$D$21) -> 24748963.51 | F18: =Costes!$F$87*(Coste_seguimiento/7*Costes!$D$21) -> 24846270.58
C19: Coste nutrición enteral oral | D19: =Costes!$D$83*Costes!$D$38 -> 29050803.04 | E19: =Costes!$E$83*Costes!$D$38 -> 29155874.44 | F19: =Costes!$F$83*Costes!$D$38 -> 29270508.45
C20: Coste nutrición enteral sonda | D20: =Costes!$D$84*Costes!$D$50 -> 29668206.06 | E20: =Costes!$E$84*Costes!$D$50 -> 29775510.5 | F20: =Costes!$F$84*Costes!$D$50 -> 29892580.76
C21: Coste nutrición parenteral | D21: =IFERROR(Costes!$D$85*Costes!$D$69,0) -> 64335630.13 | E21: =IFERROR(Costes!$E$85*Costes!$D$69,0) -> 64568320.25 | F21: =IFERROR(Costes!$F$85*Costes!$D$69,0) -> 64822187.62
C22: Coste de la estancia | D22: =Población!$E$26*(EstanciaMedia_cribado+Costes!$D$23) -> 7826881951 | E22: =Población!$F$26*(EstanciaMedia_cribado+Costes!$D$23) -> 7855190341 | F22: =Población!$G$26*(EstanciaMedia_cribado+Costes!$D$23) -> 7886075092
C23: Total | D23: =SUM(D16:D22) -> 8092511079 | E23: =SUM(E16:E22) -> 8121780201 | F23: =SUM(F16:F22) -> 8153713120
C25: IMPACTO PRESUPUESTARIO | D25: =D23-D14 -> -4334468525 | E25: =E23-E14 -> -4350145500 | F25: =F23-F14 -> -4367249243
C29: Resultados ACU
D31: Escenario sin cribado | E31: Escenario con cribado | F31: Diferencia
C32: Coste Cribado | D32: 0 | E32: =Población!$E$18*Coste_cribado -> 22995299.95 | F32: =E32-D32 -> 22995299.95
C33: Coste valoración nutricional | D33: =Costes!$G$87*Coste_Valoración_Nutricional -> 12602295.26 | E33: =Población!$E$24*Coste_Valoración_Nutricional -> 94919415.34 | F33: =E33-D33 -> 82317120.09
C34: Coste seguimiento | D34: =Costes!$G$87*(Coste_seguimiento/7*Costes!$I$21) -> 11869695.16 | E34: =Costes!$D$87*(Coste_seguimiento/7*Costes!$D$21) -> 24659773.65 | F34: 12790078.48
C35: Coste nutrición enteral oral | D35: =Costes!$G$83*Costes!$I$38 -> 12627856.5 | E35: =Costes!$D$83*Costes!$D$38 -> 29050803.04 | F35: 16422946.53
C36: Coste nutrición enteral sonda | D36: =Costes!$G$84*Costes!$I$50 -> 20600907.5 | E36: =Costes!$D$84*Costes!$D$50 -> 29668206.06 | F36: 9067298.561
C37: Coste nutrición parenteral | D37: =Costes!$G$85*Costes!$I$69 -> 13645163.09 | E37: =Costes!$D$85*Costes!$D$69 -> 64335630.13 | F37: 50690467.04
C38: Coste de la estancia | D38: =Población!$E$26*(EstanciaMedia_sincribar+Costes!$I$23) -> 1.235563369e+10 | E38: =Población!$E$26*(EstanciaMedia_cribado+Costes!$D$23) -> 7826881951 | F38: -4528751736
C39: Total Coste | D39: =SUM(D32:D38) -> 1.24269796e+10 | E39: =SUM(E32:E38) -> 8092511079 | F39: =SUM(F32:F38) -> -4334468525
C41: Utilidad por paciente | D41: =Utilidades!$O$10 -> 0.16671 | E41: =Utilidades!$O$11 -> 0.1807463075 | F41: =E41-D41 -> 0.01403630749
C42: Utilidades totales | D42: =Utilidades!$P$10 -> 497354.6184 | E42: =Utilidades!$P$11 -> 539229.8649 | F42: 41875.24657
C44: RCUI | D44: =IF($F$39/$F$42<0,"Dominante",$F$39/$F$42) -> Dominante
K47: =CONCATENATE(TEXT(Ajustes!$E$38,"#.##0")," €/AVAC") -> 25.000 €/AVAC

Sheet Referencias
C2: 1 | D2: Álvarez J, Ballesteros M, Olveira G, Rodriguez T. Cuaderno nº0. Coste - Efectividad de la intervención nutricional [Internet]. 2018 [citado 22 de enero de 2021]. Disponible en: https://www.alianzamasnutridos.es/uploads/cuadernos/pdf/d939b55519166bab0056782ee1b550aa.pdf
C3: =C2+1 -> 2 | D3: Ortega Eslava A, Marín Gil R, Fraga Fuentes MD, López-Briz E, Puigventós Latorre F. Guía de evaluación económica e impacto presupuestario en los informes de evaluación de medicamentos. GENESIS, Grupo de Evaluación de Novedades, Estandarización e Investigación en Selección de Medicamentos .SEFH, Sociedad Española de Farmacia Hospitalaria; 2017.
C4: =C3+1 -> 3 | D4: Sacristán JA, Oliva J, Campillo-Artero C, Puig-Junoy J, Pinto-Prades JL, Dilla T, et al. ¿Qué es una intervención sanitaria eficiente en España en 2020? Gac Sanit. 2019;34(2):189–93.
C5: =C4+1 -> 4 | D5: Vallejo-Torres L, García-Lorenzo B, Castilla I, Valcárcel-Nazco C, García-Pérez L, Linertová R, et al. Valor Monetario de un Año de Vida Ajustado por Calidad: Estimación empírica del coste de oportunidad en el Sistema Nacional de Salud [Internet]. Ministerio de Sanidad, Servicios Sociales e Igualdad. Servicio Canario de la Salud; 2015. Available from: https://www3.gobiernodecanarias.org/sanidad/scs/content/3382aaa2-cb58-11e5-a9c5-a398589805dc/SESCS%202015_Umbral%20C.O.%20AVAC.pdf
C6: 5 | D6: Castro-Vega I, Martín SV, Llorca JC, Vendrell CS, Bañuls C. Validación del cribado nutricional Malnutrition Screening Tool comparado con la valoración nutricional completa y otros cribados en distintos ámbitos sociosanitarios. Nutr Hosp. 2017;8.
C7: 6 | D7: Álvarez-Hernández J, Planas Vila M, León-Sanz M, García de Lorenzo A, Celaya-Pérez S, García-Lorda P, et al. Prevalence and costs of malnutrition in hospitalized patients; the PREDyCES Study. Nutr Hosp. agosto de 2012;27(4):1049-59.
C8: 7 | D8: Cuerda C, Álvarez J, Ramos P, Abánades JC, García-de-Lorenzo A, Gil P, et al. Prevalence of malnutrition in subjects over 65 years of age in the Community of Madrid: the DREAM + 65 Study. Nutrición Hospitalaria. abril de 2016;33(2):263-9.
C9: 8 | D9: Kruizenga H, van Keeken S, Weijs P, Bastiaanse L, Beijer S, Huisman-de Waal G, et al. Undernutrition screening survey in 564,063 patients: patients with a positive undernutrition screening score stay in hospital 1.4 d longer. The American Journal of Clinical Nutrition. 1 de abril de 2016;103(4):1026-32
C10: 9 | D10: Norman K, Pirlich M, Smoliner C, Kilbert A, Schulzke JD, Ockenga J, et al. Cost-effectiveness of a 3-month intervention with oral nutritional supplements in disease-related malnutrition: a randomised controlled pilot study. Eur J Clin Nutr. junio de 2011;65(6):735-42.
C11: 10 | D11: Instituto Nacional de Estadística. Población y fenómenos demográficos. Resultados por comunidades autónomas: serie 2020-2035. Población residente en España a 1 de enero, por sexo, edad y año. [Internet]. INE. [citado 14 de abril de 2021]. Disponible en: https://www.ine.es/jaxiT3/Datos.htm?t=36680
C12: 11 | D12: Instituto Nacional de Estadística. Población y fenómenos demográficos. Resultados por provincias: serie 2020-2035. Población residente en España a 1 de enero, por sexo, edad y año. [Internet]. INE. [citado 14 de abril de 2021]. Disponible en: https://www.ine.es/jaxiT3/Datos.htm?t=36726
C13: 12 | D13: Ministerio de Sanidad, Consumo y Bienestar Social. Catálogo Nacional de Hospitales [Internet]. [citado 15 de abril de 2021]. Disponible en: https://www.mscbs.gob.es/ciudadanos/prestaciones/centrosServiciosSNS/hospitales/home.htm
C14: 13 | D14: Ministerio de Sanidad, Consumo y Bienestar Social. Subdirección General de Información Sanitaria. Registro de Actividad de Atención Especializada – RAE-CMBD. [Internet]. [citado 06 de septiembre de 2021]. Disponible en: https://pestadistico.inteligenciadegestion.mscbs.es/publicoSNS/C/rae-cmbd/rae-cmbd/diagnosticos-principales/diagnosticos-principales
C15: 14 | D15: Panel de expertos
C16: 15 | D16: Suárez-Llanos JP, Vallejo-Torres L, García-Bello MÁ, Hernández-Carballo C, Calderón-Ledezma EM, Rosat-Rodrigo A, et al. Cost-effectiveness of the hospital nutrition screening tool CIPA. Arch Med Sci. 11 de enero de 2019;16(2):273-81.
C17: 16 | D17: BOJA núm. 105, del 1 de junio de 2018. Corrección de errores de la Orden de 8 de mayo de 2018, por la que se modifica la Orden de 14 de octubre de 2005, por la que se fijan los precios públicos de los servicios sanitarios prestados por Centros dependientes del Sistema Sanitario Público de Andalucía. [Internet]. Servicio Andaluz de Salud. [citado 12 de junio de 2019]. Disponible en: https://www.juntadeandalucia.es/servicioandaluzdesalud/profesionales/recursos-para-profesionales/precios-publicos
C18: 17 | D18: BOA núm. 165, del 21 de julio de 2017. ORDEN SAN/1221/2017, de 21 de julio, por la que se establecen los precios y tarifas máximas aplicables en la prestación de servicios sanitarios con medios ajenos al Sistema de Salud de Aragón. 2017;(29):74.
C19: 18 | D19: BOA núm. 135, del 12 de julio de 2011.RESOLUCIÓN de 1 de enero de 2011, de la Directora-Gerente del Consorcio de Salud, por la que se aprueban las tarifas a aplicar en el seno del Consorcio a los terceros obligados al pago o a los usuarios sin derecho a la asistencia sanitaria de la Seguridad Social, con excepción de aquellos supuestos cuyas tarifas vengan reguladas por convenios, contratos o conciertos específicos [Internet]. 2011. Disponible en: http://www.boa.aragon.es/cgi-bin/EBOA/BRSCGI?CMD=VEROBJ&MLKOB=608653990707
C20: 19 | D20: BOPA núm. 34, del 19 de febrero de 2019. Convenio singular de vinculación a la Red Hospitalaria Pública del Principado de Asturias, como Hospital de Distrito, suscrito entre el Servicio de Salud del Principado de Asturias y la Fundación Hospital de Jove para la prestación de atención sanitaria a los usuarios del Sistema Nacional de Salud durante el ejercicio 2019. 2019;24.
C21: 20 | D21: BOIB núm. 2, del 1 de enero de 2018. Disposición Num. 14734. Resolución del director general del Servicio de Salud de las Islas Baleares por la que se modifica la Orden de la consejera de Salud y Consumo de 22 de diciembre de 2006 por la que se establecen los precios públicos a aplicar por los centros sanitarios de la Red Pública de las Islas Baleares por la prestación de servicios sanitarios, cuando existan terceros obligados al pago o usuarios sin derecho a asistencia sanitaria de la Seguridad Social [Internet]. [citado 14 de julio de 2020]. Disponible en: https://www.caib.es/eboibfront/pdf/ca/2018/2/998037
C22: 21 | D22: BOC núm. 67, del 5 de abril de 2017. Resolución de 29 de marzo de 2017, del Director, por la que se modifica la cuantía de los precios públicos de servicios sanitarios previstos en el Decreto 81/2009, de 16 de junio, por el que se establecen los precios públicos de los servicios sanitarios prestados por el Servicio Canario de la Salud y se fijan sus cuantías. 2017;
C23: 22 | D23: BOC núm. 85, del 5 de mayo de 2011. Orden SAN/12/2011, de 20 de abril, por la que se fijan las cuantías de los precios públicos de los Servicios Sanitarios prestados por el Servicio Cántabro de Salud. 2011. Disponible en: https://boc-cantabria.vlex.es/vid/fijan-cuantias-precios-prestados-cantabro-274247803.
C24: 23 | D24: BOCYL n.o 249, del 30 de diciembre 2013. DECRETO 825/2010, de 17 de junio, sobre precios públicos por actos asistenciales y servicios sanitarios prestados por la Gerencia Regional de Salud. 2013;
C25: 24 | D25: DOCM núm. 226, del 22 de noviembre de 2017. Resolución de 15/11/2017, de la Dirección-Gerencia, sobre las condiciones económicas aplicables a la prestación de determinados servicios de asistencia sanitaria a través de medios ajenos, en el ámbito de gestión del Sescam. [2017/13832]. 2017
C26: 25 | D26: DOGC núm. 8043, del 16 de enerode 2020. EDICTE de 10 de gener de 2020, pel qual se sotmet a informació pública el Projecte d’ordre pel qual s’aproven els preus públics del Servei Català de la Salut. 2020;
C27: 26 | D27: DOGV núm. 8453 del 28 de diciembre de 2018. LEY 27/2018, de 27 de diciembre, de medidas fiscales, de gestión administrativa y financiera y de organización de la Generalitat [2018/12241.
C28: 27 | D28: DOE núm. 28, del 11 de febrerode 2020. RESOLUCIÓN de 6 de febrero de 2020, de la Vicepresidenta Primera y Consejera, por la que se publican las tarifas actualizadas de las tasas y precios públicos de la Comunidad Autónoma de Extremadura en virtud de lo dispuesto en la Ley de Presupuestos Generales de la Comunidad Autónoma de Extremadura para 2020 [Internet]. 2020. Disponible en: http://doe.gobex.es/pdfs/doe/2020/280o/20060240.pdf
C29: 28 | D29: DOG núm. 96, del 21 de mayo de 2014. DECRETO 56/2014, de 30 de abril, por el que se establecen las tarifas de los servicios sanitarios prestados en los centros dependientes del Servicio Gallego de Salud y en las fundaciones públicas sanitarias. 2014;
C30: 29 | D30: BOCM 198, del 21 de agosto de 2017. Orden 727/2017, de 7 de agosto, del Consejo de Sanidad, por la que se fijan los precios públicos por la prestación de los servicios y actividades de naturaleza sanitaria de la red de centros de la Comunidad de Madrid. 2017;
C31: 30 | D31: BORM núm. 133, del 11 de juniode 2020. Orden de 29 de mayo de 2020 de la Consejería de Presidencia y Hacienda, por la que se publican las tarifas de las tasas y precios públicos aplicables en el año 2020 [Internet]. 2020. Disponible en: https://www.borm.es/services/anuncio/ano/2020/numero/2742/pdf?id=785222
C32: 31 | D32: BON núm. 14, del 22 de enero de 2019. RESOLUCIÓN 1564/2018, de 20 de diciembre, del Director Gerente del Servicio Navarro de Salud-Osasunbidea, por la que se establecen las tarifas por los servicios prestados por el Servicio Navarro de Salud-Osasunbidea. 2019;
C33: 32 | D33: Tarifas para facturación de servicios sanitarios y docentes de Osakidetza para el año 2020. Acuerdo del Consejo de Administración de 19 de diciembre de 2019. 2020.
C34: 33 | D34: BOR núm. 156, del 19 de diciembre de 2014. Orden 17/2014, de 16 de noviembre de 2014, de la Consejería de Administración Pública y Hacienda, por la que se establece y regula el precio público por los servicios sanitarios prestados a particulares en los centros del Servicio Riojano de Salud. 2014;
C35: 34 | D35: BOE núm. 180, del 29 de julio de 2013. Resolución de 19 de julio de 2013, del Instituto Nacional de Gestión Sanitaria, sobre revisión de precios a aplicar por los centros sanitarios del Instituto Nacional de Gestión Sanitaria en Ceuta y Melilla, por las asistencias prestadas en los supuestos cuyo importe ha de reclamarse a los terceros obligados al pago o a los usuarios sin derecho a la asistencia sanitaria de la Seguridad Social, así como por los servicios prestados por el Centro Nacional de Dosimetría y por la reproducción de documentos de la biblioteca de la entidad gestora. 2013;
C36: 35 | D36: Instituto Nacional de Estadística. Índice de Precios de Consumo. Base 2016. Medias anuales. Índices nacionales: general y de grupos ECOICOP [Internet]. 2021 [citado 26 de marzo de 2021]. Disponible en: http://www.ine.es/jaxiT3/Datos.htm?t=22553
C37: 36 | D37: Junta de Andalucía. Resolución: 0001/2021. Asunto: Retribuciones del personal de Centros e Instituciones Sanitarias. Ejercicio 2021. [Internet]. 2021. Disponible en: https://www.sspa.juntadeandalucia.es/servicioandaluzdesalud/sites/default/files/sincfiles/wsas-media-sas_normativa_mediafile/2021/Resolucion_0001_2021_Retribuciones.pdf
C38: 37 | D38: Servicio aragonés de salud. Retribuciones correspondientes al año 2020 del personal del servicio aragonés de salud al que resulta de aplicación el sistema retributivo establecido en la ley 55/2003, del estatuto marco del personal estatuario de los servicios de salud [Internet]. 2020. Disponible en: https://transparencia.aragon.es/sites/default/files/documents/tablas_retribuciones_salud_2020.pdf
C39: 38 | D39: Consejería de administración autonómica, medio ambiente y cambio clomático. Boletín Oficial del Principado de Asturias. Acuerdo de 5 de febrero de 2021, del Consejo de Gobierno, por el que se fijan para 2021 las cuantías de las retribuciones del personal al servicio de la Administración del Principado de Asturias. [Internet]. 2021. Disponible en: https://sede.asturias.es/bopa/2021/02/12/2021-01259.pdf
C40: 39 | D40: Conselleria salut i cosum. Servei salut Illes Balears. Tablas salariales del personal del Servicio de Salud de las Islas Baleares [Internet]. 2019 [citado 13 de septiembre de 2021]. Disponible en: https://www.ibsalut.es/es/profesionales/recursos-humanos/tablas-salariales
C41: 40 | D41: Servicio Canario de Salud. Instrucción núm. 1/21, del director del servicio canario de la salud, sobre el régien y cuantía de las retribuciones del personal adscrito a los órganos de prestación de servicios sanitarios del servicio canario de la salud para el ejercicio 2021 [Internet]. 2021. Disponible en: https://www3.gobiernodecanarias.org/sanidad/scs/content/42d0d609-5b17-11eb-a542-19f7f95493cf/2021-01-19_INSTRUCCION_RETRIBUCIONES_2021.pdf
C42: 41 | D42: Gobierno de Cantabria. Resolución de la dirección gerencia del servicio cántabro de salud por la que se dictan instrucxciones para la elaboración de las nóminas del personal que presta servicios en las instituciones para la elaboración de las nóminas del personal que presta servicios en las instituciones sanitarias del servicio cántabro de salud (SCS) en el año 2017 [Internet]. 2017. Disponible en: https://sanidad.ccoo.es/eeb05f7f725187b031c72fcbc56f1418000058.pdf
C43: 42 | D43: Junta de Castilla y León. Consejeria de Sanidad. Orden de 18 de marzo de 2021 de la consejera de sanidad de la junta de Castilla y León por la que se dictan instrucciones para la elaboración de las nóminas del personal que presta sus servicios en los ámbitos de atención especializada y atención primaria, en la gerencia de emergencias sanitarias en el centro regional de medicina deportiva de la gerencia reginal de salud en el año 2021 [Internet]. 2021. Disponible en: https://www.saludcastillayleon.es/profesionales/es/recursos-humanos/retribuciones-accion-social-compensaciones/retribuciones.ficheros/1855428-RETRIBUCIONES%20SACYL%202021%20%28actualizadas%20Orden%2017-08-2021%29.pdf
C44: 43 | D44: Consejeria de Hacienda y Administraciones Públicas. Orden 184/2019, de 27 de diciembre, de la Consejería de Hacienda y Administraciones Públicas, sobre normas de ejecución de los Presupuestos Generales de la Junta de Comunidades de Castilla-La Mancha para 2020. [2019/11646] [Internet]. ene 3, 2020. Disponible en: https://castillalamancha.es/sites/default/files/documentos/pdf/20200228/orden_184_2019_de_27-12_ejecucion_pg_para_2020.pdf
C45: 44 | D45: Generalitat de Catalunya. Libre de Retribucions 2020 [Internet]. [citado 13 de septiembre de 2021]. Disponible en: https://politiquesdigitals.gencat.cat/web/.content/funcio_publica/documents/empleats_publics/retribucions/2020/Llibre-de-retribucions-ICS-gener-2020_.pdf
C46: 45 | D46: Conselleria de Sanitat Universal i Salut Pública. Generalitat Valenciana. Tablas retributivas del personal al servicio de las instituciones sanitarias de la Conselleria competente en materia de sanidad [Internet]. 2021 [citado 13 de septiembre de 2021]. Disponible en: http://www.san.gva.es/documents/153662/0/TABLAS_2021.pdf
C47: 46 | D47: Servicio extremeño de salud. Resolución del director gerente de servicio extremeño de salud por la que se aprueban las tablas retributivas y se dictan instrucciones para la elaboración de la nómina del personal estatuario, funcionario, eventual, laboral y directivo servicio extremeño de salud correspondientes al año 2021. Anexos y tablas [Internet]. Disponible en: https://saludextremadura.ses.es/filescms/web/uploaded_files/CustomContentResources/ANEXOS%20Y%20TABLAS%202021_2524.pdf
C48: 47 | D48: Consellería de hacienda y administración pública. Xunta de Galicia. Orden del DOG nº 30 de 2021/2/15 - ORDEN de 8 de febrero de 2021 por la que se dictan instrucciones sobre la confección de nóminas del personal al servicio de la Administración autonómica para el año 2021. [Internet]. 2021 [citado 13 de septiembre de 2021]. Disponible en: https://www.xunta.gal/dog/Publicados/2021/20210215/AnuncioG0597-080221-0001_es.html
C49: 48 | D49: Consejería de Hacienda y Función Pública. BOCM Núm. 36. ORDEN de 4 de febrero de 2021, de la Consejería de Hacienda y Función Pública, por la que se dictan Instrucciones para la Gestión de las Nóminas del Personal de la Comunidad de Madrid para 2021. [Internet]. feb 12, 2021. Disponible en: https://www.comunidad.madrid/transparencia/sites/default/files/open-data/downloads/bocm-20210212-7.pdf
C50: 49 | D50: Region de Murcia. Retribuciones del personal del Servicio Murciano de Salud - Portal de la Transparencia [Internet]. [citado 13 de septiembre de 2021]. Disponible en: https://transparencia.carm.es/retribuciones-de-empleados-del-sms1
C51: 50 | D51: Osanubidea. Tablas salariales 2020 [Internet]. 2020. Disponible en: https://www.navarra.es/NR/rdonlyres/2C0387B3-0CA8-4986-83C7-59E504920CAD/459173/TablassalarialesOsasunbidea2020.pdf
C52: 51 | D52: Osakidetza. Instrucción Nº 3/2020, de 21 de febrero, de la dirección general de Osakidetza-Servicio Vasco de ÇSalud, sobre retribuciones del personal perteneciente al ente público Osakidetza-Servicio Vasco de Salud para el año 2020 y su aplicación en nómica. [Internet]. 2020 [citado 13 de septiembre de 2021]. Disponible en: https://www.osakidetza.euskadi.eus/contenidos/informacion/osk_trbg_informacion_economica/es_def/adjuntos/Tablas_retributivas_2020.pdf
C53: 52 | D53: Gobierno de La Rioja. Resolución de 4 de mayo de 2012, del Presidente del Servicio Riojano de Salud, por la que se dictan normas para la aplicación de la Ley 6/2011, de 22 de diciembre, de Presupuestos Generales de la Comunidad Autónoma de La Rioja para 2012, en relación con las retribuciones del personal de los centros, servicios y establecimientos sanitarios del Servicio Riojano de Salud [Internet]. may 4, 2012. Disponible en: https://web.larioja.org/bor-portada/boranuncio?n=927484-1-HTML-447554-X
C54: 53 | D54: Ministerio de Sanidad. Resolución de la dirección del Ingesa por la que se dictan instrucciones para la elaboración de las nóminas del personal que presta servicios en sus instituciones sanitarias en el año 2021. 2021.
C55: 54 | D55: Norman K, Pirlich M, Smoliner C, Kilbert A, Schulzke JD, Ockenga J, et al. Cost-effectiveness of a 3-month intervention with oral nutritional supplements in disease-related malnutrition: a randomised controlled pilot study. Eur J Clin Nutr. junio de 2011;65(6):735-42.
C56: 55 | D56: León-Sanz M, Brosa M, Planas M, García-de-Lorenzo A, Celaya-Pérez S, Hernández JÁ, et al. PREDyCES study: The cost of hospital malnutrition in Spain. Nutrition. septiembre de 2015;31(9):1096-102.
C57: 56 | D57: Consejo General de Colegios Oficiales de Farmacéuticos. Bot Plus 2.0. Base de Datos de Medicamentos [Internet]. [citado 3 de junio de 2021]. Disponible en: https://botplusweb.portalfarma.com/botplus.aspx
C58: 57 | D58: Hospital Universitario Infanta Leonor. Expediente: 2020-1-045. Resolución de la dirección genérica del Hospital Universitario Infanta Leonor por la que se adjudica el procedimiento excepcional de emergencia para la adquisición de sondas nasogástricas, vesicales y bolsas de orina.
C59: 58 | D59: Real Decreto-ley 8/2010, de 20 de mayo, por el que se adoptan medidas extraordinarias para la reducción del déficit público. Agencia Estatal Boletín Oficial del Estado [Internet]. Disponible en: https://www.boe.es/diario_boe/txt.php?id=BOE-A-2010-8228
C60: 59 | D60: Agencia Española de Medicamentos y Productos Sanitarios. Ficha técnica o resumen de las características del producto OLIMEL N7E® [Internet]. [citado 3 de junio de 2021]. Disponible en: http://cima.aemps.es/cima/pdfs/es/ft/72063/72063_ft.pdf
C61: 60 | D61: Agencia Española de Medicamentos y Productos Sanitarios. Ficha técnica o resumen de las características del producto OLIMEL N9® [Internet]. [citado 3 de junio de 2021]. Disponible en: https://cima.aemps.es/cima/pdfs/es/ft/72066/72066_ft.pdf
C62: 61 | D62: Agencia Española de Medicamentos y Productos Sanitarios. Ficha técnica o resumen de las características del producto OLIMEL N9E® [Internet]. [citado 3 de junio de 2021]. Disponible en: https://cima.aemps.es/cima/dochtml/ft/72065/FichaTecnica_72065.html
C63: 62 | D63: Agencia Española de Medicamentos y Productos Sanitarios. Ficha técnica o resumen de las características del producto PERIOLIMEL N4E® [Internet]. [citado 3 de junio de 2021]. Disponible en: https://cima.aemps.es/cima/dochtml/ft/72062/FichaTecnica_72062.htm
C64: 63 | D64: Agencia Española de Medicamentos y Productos Sanitarios. Ficha técnica o resumen de las características del producto SmofKabiven® [Internet]. [citado 6 de septiembre de 2021]. Disponible en: http://cima.aemps.es/cima/pdfs/es/ft/70895/70895_ft.pdf
C65: 64 | D65: N. Gil Fornier, F. J. Chacón, V. Rodríguez, R. Garriga, R. Ashbaug, I. Gonzalo, et al. Unidades relativas de valor, una nueva herramienta de gestión en las unidades de nutrición clínica. En Valencia; 2008.
C66: 65 | D66: Hospital Universitario Gregorio Marañón. Administración de la nutrición parenteral. Protocolo. [Internet]. 2014 [citado 3 de junio de 2021]. Disponible en: http://www.madrid.org/cs/Satellite?blobcol=urldata&blobheader=application%2Fpdf&blobheadername1=Content-disposition&blobheadername2=cadena&blobheadervalue1=filename%3DAdministraci%C3%B3n+de+la+Nutrici%C3%B3n+parenteral.pdf&blobheadervalue2=language%3Des%26site%3DHospitalGregorioMaranon&blobkey=id&blobtable=MungoBlobs&blobwhere=1352862881169&ssbinary=true
C67: 66 | D67: Hospital Universitario Ramón y Cajal. Expediente: 20200000039. [Internet]. 2021 [citado 08 de febrero de 2022]. Disponible en: http://www.madrid.org/cs/Satellite?op2=PCON&idPagina=1204201624785&c=CM_ConvocaPrestac_FA&pagename=PortalContratacion%2FPage%2FPCON_contratosPublicos&language=es&idConsejeria=1109266187224&cid=1354854623851
C68: 67 | D68: Resolución de adjudicación del procedimiento abierto del expediente A.M.P.A. SCS 2018/9 "Suministro de catéteres endovenosos, sistemas de infusión y otros dispositivos para los centro dependientes del servicio cántabro de salud. dic 26, 2018

Sheet Listas
A1: España | B1: Andalucía | C1: =Ajustes!$E$8 -> 0 | D1: 1 | E1: Andalucía | F1: Aragón | G1: Principado de Asturias | H1: Islas Baleares | I1: Canarias | J1: Cantabria | K1: Castilla y León | L1: Castilla - La Mancha | M1: Cataluña | N1: Comunidad Valenciana | O1: Extremadura | P1: Galicia | Q1: Comunidad de Madrid | R1: Región de Murcia | S1: Comunidad Foral de Navarra | T1: País Vasco | U1: La Rioja | V1: Ceuta | W1: Melilla
A2: Comunidad Autónoma | B2: Aragón | C2: =IF(HLOOKUP($C$1,$E$1:$W$10,$D2,FALSE)=0,"",HLOOKUP($C$1,$E$1:$W$10,$D2,FALSE)) ->  | D2: =D1+1 -> 2 | E2: Almería | F2: Huesca | G2: Principado de Asturias | H2: Islas Baleares | I2: Las Palmas | J2: Cantabria | K2: Ávila | L2: Albacete | M2: Barcelona | N2: Alicante | O2: Badajóz | P2: A Coruña | Q2: Madrid | R2: Murcia | S2: Navarra | T2: Álava | U2: La Rioja | V2: Ceuta | W2: Melilla
A3: Hospital | B3: Principado de Asturias | C3: =IF(HLOOKUP($C$1,$E$1:$W$10,$D3,FALSE)=0,"",HLOOKUP($C$1,$E$1:$W$10,$D3,FALSE)) ->  | D3: =D2+1 -> 3 | E3: Cádiz | F3: Zaragoza | I3: Santa Cruz de Tenerife | K3: Burgos | L3: Ciudad Real | M3: Girona | N3: Castellón | O3: Cáceres | P3: Lugo | T3: Bizkaia
A4: Introducción Manual | B4: Islas Baleares | D4: 4 | E4: Córdoba | F4: Teruel | K4: León | L4: Cuenca | M4: Lleida | N4: Valencia | P4: Ourense | T4: Gipuzkoa
B5: Canarias | D5: 5 | E5: Granada | K5: Palencia | L5: Guadalajara | M5: Tarragona | P5: Pontevedra
B6: Cantabria | D6: 6 | E6: Huelva | K6: Salamanca | L6: Toledo
B7: Castilla y León | D7: 7 | E7: Jaén | K7: Segovia
B8: Castilla - La Mancha | D8: 8 | E8: Málaga | K8: Soria
B9: Cataluña | D9: 9 | E9: Sevilla | K9: Valladolid
B10: Comunidad Valenciana | D10: 10 | K10: Zamora
B11: Extremadura
B12: Galicia
B13: Comunidad de Madrid
B14: Región de Murcia
B15: Comunidad Foral de Navarra
B16: País Vasco
B17: La Rioja
B18: Ceuta
B19: Melilla
B20: España
A22: =Ajustes!E10 -> 0 | B22: 1 | C22: Almería | D22: Cádiz | E22: Córdoba | F22: Granada | G22: Huelva | H22: Jaén | I22: Málaga | J22: Sevilla | K22: Huesca | L22: Teruel | M22: Zaragoza | N22: Principado de Asturias | O22: Islas Baleares | P22: Las Palmas | Q22: Santa Cruz de Tenerife | R22: Cantabria | S22: Ávila | T22: Burgos | U22: León | V22: Palencia | W22: Salamanca | X22: Segovia | Y22: Soria | Z22: Valladolid | AA22: Zamora | AB22: Albacete | AC22: Ciudad Real | AD22: Cuenca | AE22: Guadalajara | AF22: Toledo | AG22: Barcelona | AH22: Girona | AI22: Lleida | AJ22: Tarragona | AK22: Alicante | AL22: Castellón | AM22: Valencia | AN22: Badajóz | AO22: Cáceres | AP22: A Coruña | AQ22: Lugo | AR22: Ourense | AS22: Pontevedra | AT22: Madrid | AU22: Murcia | AV22: Navarra | AW22: Álava | AX22: Bizkaia | AY22: Gipuzkoa | AZ22: La Rioja | BA22: Ceuta | BB22: Melilla
A23: =IFERROR(IF(HLOOKUP($A$22,$C$22:$BB$48,$B23,FALSE)=0,"",HLOOKUP($A$22,$C$22:$BB$48,$B23,FALSE)),"") ->  | B23: =B22+1 -> 2 | C23: HOSPITAL DE LA CRUZ ROJA DE ALMERIA | D23: HOSPITAL DE LA LINEA DE LA CONCEPCION | E23: HOSPITAL DE ALTA RESOLUCION DE PUENTE GENIL | F23: HOSPITAL DE ALTA RESOLUCION DE GUADIX | G23: HOSPITAL DE RIOTINTO | H23: HOSPITAL ALTO GUADALQUIVIR | I23: HOSPITAL CIVIL | J23: HOSPITAL DE ALTA RESOLUCION DE ECIJA | K23: HOSPITAL GENERAL SAN JORGE | L23: HOSPITAL DE ALCAÑIZ | M23: HOSPITAL CLINICO UNIVERSITARIO LOZANO BLESA | N23: HOSPITAL CARMEN Y SEVERO OCHOA | O23: HOSPITAL CAN MISSES | P23: COMPLEJO HOSPITALARIO UNIVERSITARIO INSULAR MATERNO INFANTIL | Q23: HOSPITAL DEL SUR | R23: HOSPITAL COMARCAL DE LAREDO | S23: COMPLEJO ASISTENCIAL DE AVILA | T23: HOSPITAL SANTOS REYES | U23: HOSPITAL EL BIERZO | V23: HOSPITAL RIO CARRION (COMPLEJO ASISTENCIAL DE PALENCIA) | W23: HOSPITAL CLINICO UNIVERSITARIO DE SALAMANCA (COMPLEJO ASISTENCIAL UNIV.SA) | X23: COMPLEJO ASISTENCIAL DE SEGOVIA | Y23: COMPLEJO ASISTENCIAL DE SORIA | Z23: HOSPITAL MEDINA DEL CAMPO | AA23: HOSPITAL VIRGEN DE LA CONCHA (COMPLEJO ASISTENCIAL DE ZAMORA) | AB23: HOSPITAL DE HELLIN | AC23: HOSPITAL GENERAL LA MANCHA CENTRO | AD23: HOSPITAL VIRGEN DE LA LUZ | AE23: HOSPITAL UNIVERSITARIO DE GUADALAJARA | AF23: HOSPITAL GENERAL NUESTRA SEÑORA DEL PRADO | AG23: SERVEIS SANITARIS SANT JOAN DE VILATORRADA | AH23: HOSPITAL UNIVERSITARI DE GIRONA DR. JOSEP TRUETA | AI23: HOSPITAL UNIVERSITARI ARNAU DE VILANOVA DE LLEIDA. | AJ23: HOSPITAL DE TORTOSA VERGE DE LA CINTA | AK23: HOSPITAL VEGA BAJA DE ORIHUELA | AL23: HOSPITAL COMARCAL DE VINAROS | AM23: HOSPITAL GENERAL DE REQUENA | AN23: HOSPITAL UNIVERSITARIO DE BADAJOZ | AO23: HOSPITAL VIRGEN DEL PUERTO | AP23: COMPLEXO HOSPITALARIO UNIVERSITARIO A CORUÑA | AQ23: HOSPITAL PUBLICO DE MONFORTE | AR23: HOSPITAL PUBLICO DE VALDEORRAS | AS23: HOSPITAL PUBLICO DO SALNES | AT23: HOSPITAL UNIVERSITARIO SANTA CRISTINA | AU23: HOSPITAL COMARCAL DEL NOROESTE | AV23: HOSPITAL GARCIA ORCOYEN | AW23: HOSPITAL UNIVERSITARIO ARABA (SEDE TXAGORRITXU Y SEDE SANTIAGO) | AX23: HOSPITAL SAN ELOY | AY23: HOSPITAL BIDASOA (OSI BIDASOA) | AZ23: FUNDACION HOSPITAL CALAHORRA | BA23: HOSPITAL UNIVERSITARIO DE CEUTA | BB23: HOSPITAL COMARCAL DE MELILLA
A24: =IFERROR(IF(HLOOKUP($A$22,$C$22:$BB$48,$B24,FALSE)=0,"",HLOOKUP($A$22,$C$22:$BB$48,$B24,FALSE)),"") ->  | B24: 3 | C24: HOSPITAL DE ALTA RESOLUCION ELTOYO | D24: HOSPITAL PUNTA DE EUROPA | E24: HOSPITAL DE ALTA RESOLUCION VALLE DEL GUADIATO | F24: HOSPITAL DE ALTA RESOLUCION DE LOJA | G24: HOSPITAL INFANTA ELENA | H24: HOSPITAL DE ALTA RESOLUCION DE ALCALA LA REAL | I24: HOSPITAL COSTA DEL SOL | J24: HOSPITAL DE ALTA RESOLUCION DE LEBRIJA | K24: HOSPITAL DE BARBASTRO | L24: HOSPITAL OBISPO POLANCO | M24: HOSPITAL ERNEST LLUCH MARTIN | N24: HOSPITAL DE JARRIO | O24: HOSPITAL COMARCAL D´INCA | P24: HOSPITAL DOCTOR JOSE MOLINA OROSA | Q24: HOSPITAL DEL TORAX | R24: HOSPITAL SIERRALLANA | T24: HOSPITAL SANTIAGO APOSTOL | U24: COMPLEJO ASISTENCIAL UNIVERSITARIO DE LEON | V24: HOSPITAL SAN TELMO (COMPLEJO ASISTENCIAL DE PALENCIA) | W24: HOSPITAL LOS MONTALVOS (COMPLEJO ASISTENCIAL UNIVERSITARIO DE SALAMANCA) | Z24: HOSPITAL UNIVERSITARIO DEL RIO HORTEGA | AA24: HOSPITAL PROVINCIAL DE ZAMORA (COMPLEJO ASISTENCIAL DE ZAMORA) | AB24: HOSPITAL GENERAL DE ALMANSA | AC24: HOSPITAL VIRGEN DE ALTAGRACIA | AF24: HOSPITAL PROVINCIAL NTRA.SRA.DE LA MISERICORDIA | AG24: HOSPITAL DE VILADECANS | AH24: HOSPITAL SANTA CATERINA-IAS | AI24: HOSPITAL SANTA MARIA | AJ24: HOSPITAL UNIVERSITARI JOAN XXIII DE TARRAGONA | AK24: HOSPITAL UNIVERSITARIO SAN JUAN DE ALICANTE | AL24: HOSPITAL UNIVERSITARIO DE LA PLANA | AM24: HOSPITAL DE SAGUNTO | AN24: HOSPITAL DON BENITO-VILLANUEVA DE LA SERENA | AO24: HOSPITAL CAMPO ARAÑUELO | AP24: COMPLEXO HOSPITALARIO UNIVERSITARIO DE FERROL | AQ24: COMPLEXO HOSPITALARIO UNIVERSITARIO DE LUGO | AR24: HOSPITAL PUBLICO DE VERIN | AS24: COMPLEXO HOSPITALARIO UNIVERSITARIO DE PONTEVEDRA | AT24: HOSPITAL DE EL ESCORIAL | AU24: HOSPITAL GENERAL UNIVERSITARIO LOS ARCOS DEL MAR MENOR | AV24: HOSPITAL REINA SOFIA | AX24: URDULIZ OSPITALEA | AY24: HOSPITAL DE MENDARO (OSI BAJO DEBA) | AZ24: HOSPITAL DE LA RIOJA
B25: 4 | C25: HOSPITAL DE PONIENTE | D25: HOSPITAL SAN CARLOS DE SAN FERNANDO | E25: HOSPITAL DE MONTILLA | F25: HOSPITAL DE BAZA | G25: HOSPITAL UNIVERSITARIO JUAN RAMÓN JIMÉNEZ | H25: HOSPITAL DE ALTA RESOLUCION DE ALCAUDETE | I25: HOSPITAL DE ALTA RESOLUCION DE BENALMADENA | J25: HOSPITAL DE ALTA RESOLUCION DE MORON DE LA FRONTERA | K25: HOSPITAL DE JACA SALUD | M25: HOSPITAL NUESTRA SEÑORA DE GRACIA | N25: HOSPITAL DEL ORIENTE DE ASTURIAS FRANCISCO GRANDE COVIAN | O25: HOSPITAL DE FORMENTERA | P25: HOSPITAL GENERAL DE FUERTEVENTURA | Q25: HOSPITAL GENERAL DE LA PALMA | R25: HOSPITAL UNIVERSITARIO MARQUES DE VALDECILLA | T25: COMPLEJO ASISTENCIAL UNIVER. DE BURGOS | U25: HOSPITAL DE LA REINA | Z25: HOSPITAL CLINICO UNIVERSITARIO | AA25: HOSPITAL DE BENAVENTE (COMPLEJO ASISTENCIAL DE ZAMORA) | AB25: HOSPITAL GENERAL DE VILLARROBLEDO | AC25: HOSPITAL SANTA BARBARA | AF25: HOSPITAL VIRGEN DE LA SALUD | AG25: SERVEIS SANITARIS LA ROCA DEL VALLES 2 | AH25: HOSPITAL COMARCAL DE BLANES | AI25: HOSPITAL COMARCAL DEL PALLARS | AJ25: CLINICA TERRES DE L'EBRE | AK25: HOSPITAL MARINA BAIXA DE LA VILA JOIOSA | AL25: HOSPITAL GENERAL UNIVERSITARIO DE CASTELLON | AM25: HOSPITAL GENERAL DE ONTINYENT | AN25: HOSPITAL GENERAL DE LLERENA | AO25: HOSPITAL CIUDAD DE CORIA | AP25: COMPLEXO HOSPITALARIO UNIVERSITARIO DE SANTIAGO | AQ25: HOSPITAL PUBLICO DA MARIÑA | AR25: COMPLEXO HOSPITALARIO UNIVERSITARIO DE OURENSE | AS25: COMPLEXO HOSPITALARIO UNIVERSITARIO DE VIGO | AT25: HOSPITAL UNIVERSITARIO DE MOSTOLES | AU25: HOSPITAL VIRGEN DEL CASTILLO | AV25: COMPLEJO HOSPITALARIO DE NAVARRA | AX25: HOSPITAL GALDAKAO-USANSOLO | AY25: HOSPITAL ALTO DEBA (ORGANIZACION SANITARIA INTEGRADA ALTO DEBA) | AZ25: HOSPITAL SAN PEDRO
B26: 5 | C26: HOSPITAL LA INMACULADA | D26: HOSPITAL UNIVERSITARIO DE JEREZ DE LA FRONTERA | E26: HOSPITAL INFANTA MARGARITA | F26: HOSPITAL SANTA ANA | G26: HOSPITAL VAZQUEZ DIAZ | H26: HOSPITAL DE ALTA RESOLUCION SIERRA DE SEGURA | I26: HOSPITAL DE ANTEQUERA | J26: HOSPITAL DE ALTA RESOLUCION DE UTRERA | M26: HOSPITAL ROYO VILLANOVA | N26: HOSPITAL UNIVERSITARIO CENTRAL DE ASTURIAS | O26: HOSPITAL DE MANACOR | P26: HOSPITAL UNIVERSITARIO DE GRAN CANARIA DR. NEGRIN | Q26: HOSPITAL INSULAR NUESTRA SEÑORA DE LOS REYES | U26: HOSPITAL SAN JUAN DE DIOS LEON | Z26: SANATORIO SAGRADO CORAZON | AB26: HOSPITAL GENERAL UNIVERSITARIO DE ALBACETE | AC26: HOSPITAL GENERAL DE VALDEPEÑAS | AF26: HOSPITAL GERIATRICO VIRGEN DEL VALLE | AG26: PARC SANITARI SANT JOAN DE DEU-SERVEIS SANITARIS CENTRE PENITENCIARI BRIANS-2 | AH26: HOSPITAL DE CERDANYA / HOPITAL DE CERDAGNE | AJ26: HOSPITAL COMARCAL D'AMPOSTA | AK26: HOSPITAL GENERAL UNIVERSITARIO DE ALICANTE | AL26: CONSORCIO HOSPITALARIO PROVINCIAL DE CASTELLON | AM26: HOSPITAL FRANCESC DE BORJA DE GANDIA | AN26: HOSPITAL DE MERIDA | AO26: HOSPITAL SAN PEDRO DE ALCANTARA | AP26: HOSPITAL PUBLICO DA BARBANZA | AT26: HOSPITAL UNIVERSITARIO SEVERO OCHOA | AU26: HOSPITAL G. UNIVERSITARIO J.M. MORALES MESEGUER | AX26: HOSPITAL UNIVERSITARIO BASURTO | AY26: HOSPITAL DE ZUMARRAGA (OSI GOIERRI - ALTO UROLA)
B27: 6 | C27: HOSPITAL UNIVERSITARIO TORRECARDENAS | D27: HOSPITAL UNIVERSITARIO DE PUERTO REAL | E27: HOSPITAL LOS MORALES | F27: HOSPITAL UNIVERSITARIO CLINICO SAN CECILIO | H27: HOSPITAL DOCTOR SAGAZ | I27: HOSPITAL DE LA AXARQUIA | J27: HOSPITAL DUQUES DEL INFANTADO | M27: HOSPITAL UNIVERSITARIO MIGUEL SERVET | N27: HOSPITAL UNIVERSITARIO DE CABUEÑES | O27: HOSPITAL MATEU ORFILA | P27: HOSPITAL SAN ROQUE MASPALOMAS | Q27: HOSPITAL NUESTRA SEÑORA DE GUADALUPE | AB27: HOSPITAL UNIVERSITARIO NUESTRA SEÑORA DEL PERPETUO SOCORRO | AC27: HOSPITAL GENERAL DE TOMELLOSO | AG27: HOSPITAL UNIVERSITARI GERMANS TRIAS I PUJOL DE BADALONA | AJ27: HOSPITAL UNIVERSITARI DE SANT JOAN DE REUS | AK27: HOSPITAL UNIVERSITARIO DE TORREVIEJA | AM27: HOSPITAL ARNAU DE VILANOVA | AN27: HOSPITAL DE ZAFRA | AO27: HOSPITAL UNIVERSITARIO DE CACERES | AP27: HOSPITAL PUBLICO VIRXE DA XUNQUEIRA | AT27: HOSPITAL UNIVERSITARIO FUNDACION ALCORCON | AU27: HOSPITAL CLINICO UNIVERSITARIO VIRGEN DE LA ARRIXACA | AX27: HOSPITAL UNIVERSITARIO CRUCES | AY27: HOSPITAL UNIVERSITARIO DONOSTIA
B28: 7 | D28: HOSPITAL UNIVERSITARIO PUERTA DEL MAR | E28: HOSPITAL PROVINCIAL | F28: HOSPITAL UNIVERSITARIO VIRGEN DE LAS NIEVES | H28: HOSPITAL NEUROTRAUMATOLOGICO DEL H.U. DE JAEN | I28: HOSPITAL DE LA SERRANIA | J28: HOSPITAL EL TOMILLAR | M28: HOSPITAL GENERAL DE LA DEFENSA EN ZARAGOZA | N28: HOSPITAL UNIVERSITARIO SAN AGUSTIN | O28: HOSPITAL SON LLATZER | Q28: HOSPITAL UNIVERSITARIO DE CANARIAS | AC28: HOSPITAL GENERAL DE CIUDAD REAL | AG28: HOSPITAL UNIVERSITARI DE BELLVITGE | AK28: HOSPITAL DE DENIA | AM28: HOSPITAL DE MANISES | AN28: HOSPITAL PERPETUO SOCORRO | AT28: HOSPITAL UNIVERSITARIO CLINICO SAN CARLOS | AU28: HOSPITAL GENERAL UNIVERSITARIO REINA SOFIA | AX28: HOSPITAL CRUZ ROJA DE BILBAO (VICTORIA EUGENIA)
B29: 8 | E29: HOSPITAL UNIVERSITARIO REINA SOFIA | H29: HOSPITAL SAN AGUSTIN | I29: HOSPITAL MARITIMO DE TORREMOLINOS | J29: HOSPITAL LA MERCED | N29: HOSPITAL VALLE DEL NALON | O29: HOSPITAL UNIVERSITARI SON ESPASES | Q29: HOSPITAL UNIVERSITARIO NUESTRA SEÑORA DE LA CANDELARIA | AG29: HOSPITAL UNIVERSITARI VALL D'HEBRON | AK29: HOSPITAL UNIVERSITARIO VINALOPO | AM29: HOSPITAL DE LLIRIA | AN29: HOSPITAL SIBERIA-SERENA | AT29: HOSPITAL UNIVERSITARIO RAMON Y CAJAL | AU29: HOSPITAL RAFAEL MENDEZ | AX29: SANATORIO BILBAINO
B30: 9 | E30: HOSPITAL VALLE DE LOS PEDROCHES | H30: HOSPITAL SAN JUAN DE LA CRUZ | I30: HOSPITAL UNIVERSITARIO REGIONAL DE MALAGA | J30: HOSPITAL SAN LAZARO | N30: HOSPITAL VITAL ALVAREZ BUYLLA | Q30: HOSPITAL SAN JUAN DE DIOS TENERIFE | AG30: HOSPITAL MUNICIPAL DE BADALONA | AK30: HOSPITAL GENERAL UNIVERSITARIO DE ELCHE | AM30: HOSPITAL CLINICO UNIVERSITARIO DE VALENCIA | AN30: HOSPITAL TIERRA DE BARROS | AT30: HOSPITAL UNIVERSITARIO 12 DE OCTUBRE | AU30: HOSPITAL DE LA VEGA LORENZO GUIRAO | AX30: HOSPITAL SAN JUAN DE DIOS
B31: 10 | H31: HOSPITAL UNIVERSITARIO DE JAEN | I31: HOSPITAL UNIVERSITARIO VIRGEN DE LA VICTORIA | J31: HOSPITAL UNIVERSITARIO VIRGEN DE VALME | AG31: HOSPITAL DE L'ESPERANÇA. | AK31: HOSPITAL VIRGEN DE LOS LIRIOS | AM31: HOSPITAL UNIVERSITARIO Y POLITECNICO LA FE | AT31: HOSPITAL UNIVERSITARIO DE LA PRINCESA | AU31: HOSPITAL GENERAL UNIVERSITARIO SANTA LUCIA
B32: 11 | I32: HOSPITAL VALLE DE GUADALHORCE DE CARTAMA | J32: HOSPITAL UNIVERSITARIO VIRGEN DEL ROCIO | AG32: HOSPITAL DE MATARO | AK32: HOSPITAL GENERAL UNIVERSITARIO DE ELDA-VIRGEN DE LA SALUD | AM32: HOSPITAL UNIVERSITARIO DE LA RIBERA | AT32: HOSPITAL UNIVERSITARIO PRINCIPE DE ASTURIAS | AU32: HOSPITAL SANTA MARIA DEL ROSELL
B33: 12 | J33: HOSPITAL UNIVERSITARIO VIRGEN MACARENA | AG33: HOSPITAL DOS DE MAIG | AM33: HOSPITAL UNIVERSITARIO DR. PESET ALEIXANDRE | AT33: HOSPITAL UNIVERSITARIO DE GETAFE
B34: 13 | J34: HOSPITAL SAN JUAN DE DIOS DEL ALJARAFE | AG34: HOSPITAL GENERAL DE L'HOSPITALET | AM34: HOSPITAL LLUIS ALCANYIS DE XATIVA | AT34: HOSPITAL UNIVERSITARIO DE FUENLABRADA
B35: 14 | AG35: HOSPITAL RESIDENCIA SANT CAMIL - CONSORCI SANITARI DEL GARRAF. | AM35: CONSORCIO HOSPITAL GENERAL UNIVERSITARIO DE VALENCIA | AT35: HOSPITAL UNIVERSITARIO INFANTA ELENA
B36: 15 | AG36: HOSPITAL COMARCAL SANT JAUME DE CALELLA | AT36: HOSPITAL UNIVERSITARIO INFANTA SOFIA
B37: 16 | AG37: HOSPITAL COMARCAL DE L'ALT PENEDES. | AT37: EMPRESA PUBLICA HOSPITAL DEL HENARES
B38: 17 | AG38: HOSPITAL GENERAL PENITENCIARI | AT38: HOSPITAL UNIVERSITARIO DEL SURESTE
B39: 18 | AG39: HOSPITAL GENERAL DE VIC | AT39: HOSPITAL DEL TAJO S.A.
B40: 19 | AG40: HOSPITAL D'IGUALADA | AT40: EMPRESA PUBLICA HOSPITAL DEL SUR HOSPITAL INFANTA CRISTINA
B41: 20 | AG41: HOSPITAL DEL MAR. | AT41: HOSPITAL UNIVERSITARIO PUERTA DE HIERRO MAJADAHONDA
B42: 21 | AG42: HOSPITAL DE SABADELL | AT42: HOSPITAL UNIVERSITARIO DE TORREJON
B43: 22 | AG43: HOSPITAL CLINIC DE BARCELONA | AT43: HOSPITAL UNIVERSITARIO REY JUAN CARLOS
B44: 23 | AG44: HOSPITAL DE TERRASSA. | AT44: IDCSALUD VILLALBA, S.A.
B45: 24 | AG45: HOSPITAL DE SANT JOAN DESPI MOISES BROGGI | AT45: HOSPITAL DE CANTOBLANCO
B46: 25 | AT46: HOSPITAL GENERAL UNIVERSITARIO GREGORIO MARAÑON
B47: 26 | AT47: HOSPITAL UNIVERSITARIO LA PAZ
B48: 27 | AT48: HOSPITAL UNIVERSITARIO INFANTA LEONOR
A49: =IFERROR(IF(HLOOKUP($A$22,$C$22:$BB$49,$B49,FALSE)=0,"",HLOOKUP($A$22,$C$22:$BB$49,$B49,FALSE)),"") ->  | B49: 28 | AT49: HOSPITAL CENTRAL DE LA DEFENSA EN MADRID
A51: MUST
A52: NRS 2002®
A53: MNA®
A54: MST
A55: SNAQ
A56: VSG

Sheet Datos listas población
A1: 1 | B1: 2 | C1: 3 | D1: 4 | E1: =D1+1 -> 5 | F1: 6 | G1: 7 | H1: 8 | I1: 9 | J1: 10 | K1: 11 | L1: 12 | M1: 13 | N1: =M1+1 -> 14 | O1: =N1+1 -> 15 | P1: =O1+1 -> 16 | Q1: 17 | R1: 18 | S1: 19 | T1: 20 | U1: =T1+1 -> 21 | V1: =U1+1 -> 22 | W1: 23 | X1: 24
B2: Población | C2: Población | D2: Población | E2: Referencia | F2: Tasa Actividad (10.000 hab.) | G2: Tasa Actividad (10.000 hab.) | H2: Tasa Actividad (10.000 hab.) | I2: Referencia | J2: Población mayor 65 | K2: Población mayor 65 | L2: Población mayor 65 | M2: Referencia | N2: Estancia > 18 (misma referencia que > 65) | O2: Coste | P2: Tasa Actividad (10.000 hab.) | Q2: Tasa Actividad (10.000 hab.) | R2: Tasa Actividad (10.000 hab.) | S2: Referencia | T2: Estancia > 65 | U2: Coste | V2: Referencia Estancias y coste estancia
B3: 2021 | C3: 2022 | D3: 2023 | F3: 2021 | G3: 2022 | H3: 2023 | J3: 2021 | K3: 2022 | L3: 2023 | P3: 2021 | Q3: 2022 | R3: 2023
A4: España | B4: 39094263.7 | C4: 39235660.45 | D4: 39389925.79 | E4: =Referencias!$C$11 -> 10 | F4: 3314.61 | G4: 3314.61 | H4: 3314.61 | I4: =Referencias!$C$14 -> 13 | J4: 0.2403923272 | K4: 0.2439944665 | L4: 0.2483300249 | M4: =Referencias!$C$11 -> 10 | N4: 7.2 | O4: 388.2681772 | P4: 5512.64 | Q4: 5512.64 | R4: 5512.64 | S4: =Referencias!$C$14 -> 13 | T4: 8.04 | U4: 381.8794062 | V4: =Referencias!$C$14 -> 13
A5: Andalucía | B5: 6895897.339 | C5: 6920432.848 | D5: 6946965.573 | E5: =Referencias!$C$11 -> 10 | F5: 7174.76 | G5: 7174.76 | H5: 7174.76 | I5: =Referencias!$C$14 -> 13 | J5: 0.2185154447 | K5: 0.2226140604 | L5: 0.2278310505 | M5: =Referencias!$C$11 -> 10 | N5: 6.98 | O5: 322.0226638 | P5: 10794.05 | Q5: 10794.05 | R5: 10794.05 | S5: =Referencias!$C$14 -> 13 | T5: 8.12 | U5: 299.034624 | V5: =Referencias!$C$14 -> 13
A6: Aragón | B6: 1105731.55 | C6: 1106693.286 | D6: 1108091.877 | E6: =Referencias!$C$11 -> 10 | F6: 5679.79 | G6: 5679.79 | H6: 5679.79 | I6: =Referencias!$C$14 -> 13 | J6: 0.2639970945 | K6: 0.2673482842 | L6: 0.2714017209 | M6: =Referencias!$C$11 -> 10 | N6: 7.34 | O6: 530.3559027 | P6: 8462.4 | Q6: 8462.4 | R6: 8462.4 | S6: =Referencias!$C$14 -> 13 | T6: 8.51 | U6: 477.9982501 | V6: =Referencias!$C$14 -> 13
A7: Principado de Asturias | B7: 879115.5539 | C7: 874353.8665 | D7: 869906.7619 | E7: =Referencias!$C$11 -> 10 | F7: 1785.73 | G7: 1785.73 | H7: 1785.73 | I7: =Referencias!$C$14 -> 13 | J7: 0.3058271746 | K7: 0.3121651992 | L7: 0.3189411196 | M7: =Referencias!$C$11 -> 10 | N7: 8.06 | O7: 401.4849952 | P7: 3407.47 | Q7: 3407.47 | R7: 3407.47 | S7: =Referencias!$C$14 -> 13 | T7: 8.92 | U7: 385.2776308 | V7: =Referencias!$C$14 -> 13
A8: Islas Baleares | B8: 1009074.24 | C8: 1020472.794 | D8: 1032416.495 | E8: =Referencias!$C$11 -> 10 | F8: 985.53 | G8: 985.53 | H8: 985.53 | I8: =Referencias!$C$14 -> 13 | J8: 0.1966139786 | K8: 0.1997057343 | L8: 0.2032541842 | M8: =Referencias!$C$11 -> 10 | N8: 7.07 | O8: 512.2313189 | P8: 2290.47 | Q8: 2290.47 | R8: 2290.47 | S8: =Referencias!$C$14 -> 13 | T8: 8.29 | U8: 475.1861396 | V8: =Referencias!$C$14 -> 13
A9: Canarias | B9: 1896943.162 | C9: 1912435.842 | D9: 1928805.636 | E9: =Referencias!$C$11 -> 10 | F9: 2137.51 | G9: 2137.51 | H9: 2137.51 | I9: =Referencias!$C$14 -> 13 | J9: 0.2009632881 | K9: 0.2054018396 | L9: 0.2099704456 | M9: =Referencias!$C$11 -> 10 | N9: 10.06 | O9: 323.7201741 | P9: 4217.85 | Q9: 4217.85 | R9: 4217.85 | S9: =Referencias!$C$14 -> 13 | T9: 11.67 | U9: 304.6221915 | V9: =Referencias!$C$14 -> 13
A10: Cantabria | B10: 489318.055 | C10: 489170.5114 | D10: 489155.6042 | E10: =Referencias!$C$11 -> 10 | F10: 4388.49 | G10: 4388.49 | H10: 4388.49 | I10: =Referencias!$C$14 -> 13 | J10: 0.2700179263 | K10: 0.2756679506 | L10: 0.2825895034 | M10: =Referencias!$C$11 -> 10 | N10: 7.3 | O10: 329.5890035 | P10: 6966.93 | Q10: 6966.93 | R10: 6966.93 | S10: =Referencias!$C$14 -> 13 | T10: 7.79 | U10: 345.1435506 | V10: =Referencias!$C$14 -> 13
A11: Castilla y León | B11: 2039244.635 | C11: 2027891.367 | D11: 2017128.786 | E11: =Referencias!$C$11 -> 10 | F11: 2155.75 | G11: 2155.75 | H11: 2155.75 | I11: =Referencias!$C$14 -> 13 | J11: 0.3014288635 | K11: 0.3066160579 | L11: 0.3125587505 | M11: =Referencias!$C$11 -> 10 | N11: 7.3 | O11: 467.484678 | P11: 3787.14 | Q11: 3787.14 | R11: 3787.14 | S11: =Referencias!$C$14 -> 13 | T11: 8.03 | U11: 449.5420438 | V11: =Referencias!$C$14 -> 13
A12: Castilla - La Mancha | B12: 1670585.413 | C12: 1670803.314 | D12: 1671422.204 | E12: =Referencias!$C$11 -> 10 | F12: 1306.04 | G12: 1306.04 | H12: 1306.04 | I12: =Referencias!$C$14 -> 13 | J12: 0.2336044669 | K12: 0.2366569776 | L12: 0.2410403256 | M12: =Referencias!$C$11 -> 10 | N12: 7.57 | O12: 459.7445996 | P12: 2799.29 | Q12: 2799.29 | R12: 2799.29 | S12: =Referencias!$C$14 -> 13 | T12: 8.51 | U12: 448.4631802 | V12: =Referencias!$C$14 -> 13
A13: Cataluña | B13: 6264204.897 | C13: 6299022.058 | D13: 6337015.934 | E13: =Referencias!$C$11 -> 10 | F13: 1836.94 | G13: 1836.94 | H13: 1836.94 | I13: =Referencias!$C$14 -> 13 | J13: 0.2374500344 | K13: 0.2401059757 | L13: 0.2433181552 | M13: =Referencias!$C$11 -> 10 | N13: 6.19 | O13: 494.2277645 | P13: 4045.21 | Q13: 4045.21 | R13: 4045.21 | S13: =Referencias!$C$14 -> 13 | T13: 6.9 | U13: 465.5059369 | V13: =Referencias!$C$14 -> 13
A14: Comunidad Valenciana | B14: 4150299.982 | C14: 4169177.831 | D14: 4189161.875 | E14: =Referencias!$C$11 -> 10 | F14: 1311.33 | G14: 1311.33 | H14: 1311.33 | I14: =Referencias!$C$14 -> 13 | J14: 0.2427016327 | K14: 0.2462847076 | L14: 0.2506648382 | M14: =Referencias!$C$11 -> 10 | N14: 6.49 | O14: 555.4614315 | P14: 2738.15 | Q14: 2738.15 | R14: 2738.15 | S14: =Referencias!$C$14 -> 13 | T14: 7.2 | U14: 526.4425011 | V14: =Referencias!$C$14 -> 13
A15: Extremadura | B15: 882984.5151 | C15: 879911.6697 | D15: 876790.2245 | E15: =Referencias!$C$11 -> 10 | F15: 1627.2 | G15: 1627.2 | H15: 1627.2 | I15: =Referencias!$C$14 -> 13 | J15: 0.2531553975 | K15: 0.2572038054 | L15: 0.2624587161 | M15: =Referencias!$C$11 -> 10 | N15: 6.65 | O15: 466.7524585 | P15: 3172.61 | Q15: 3172.61 | R15: 3172.61 | S15: =Referencias!$C$14 -> 13 | T15: 7.75 | U15: 437.5572778 | V15: =Referencias!$C$14 -> 13
A16: Galicia | B16: 2310040.637 | C16: 2303424.603 | D16: 2297354.632 | E16: =Referencias!$C$11 -> 10 | F16: 1694.52 | G16: 1694.52 | H16: 1694.52 | I16: =Referencias!$C$14 -> 13 | J16: 0.3002450887 | K16: 0.3044587309 | L16: 0.3088967928 | M16: =Referencias!$C$11 -> 10 | N16: 8.17 | O16: 405.1949424 | P16: 3097.76 | Q16: 3097.76 | R16: 3097.76 | S16: =Referencias!$C$14 -> 13 | T16: 8.96 | U16: 399.9504585 | V16: =Referencias!$C$14 -> 13
A17: Comunidad de Madrid | B17: 5549625.888 | C17: 5596506.446 | D17: 5645704.863 | E17: =Referencias!$C$11 -> 10 | F17: 2790.5 | G17: 2790.5 | H17: 2790.5 | I17: =Referencias!$C$14 -> 13 | J17: 0.2215298057 | K17: 0.2246023508 | L17: 0.2282685192 | M17: =Referencias!$C$11 -> 10 | N17: 7.47 | O17: 296.6669391 | P17: 5455.38 | Q17: 5455.38 | R17: 5455.38 | S17: =Referencias!$C$14 -> 13 | T17: 8.45 | U17: 305.4262886 | V17: =Referencias!$C$14 -> 13
A18: Región de Murcia | B18: 1205387.461 | C18: 1213863.764 | D18: 1222516.8 | E18: =Referencias!$C$11 -> 10 | F18: 7011.23 | G18: 7011.23 | H18: 7011.23 | I18: =Referencias!$C$14 -> 13 | J18: 0.2024085998 | K18: 0.205358158 | L18: 0.2097667274 | M18: =Referencias!$C$11 -> 10 | N18: 6.97 | O18: 369.9863151 | P18: 10243.87 | Q18: 10243.87 | R18: 10243.87 | S18: =Referencias!$C$14 -> 13 | T18: 8.34 | U18: 342.375405 | V18: =Referencias!$C$14 -> 13
A19: Comunidad Foral de Navarra | B19: 536587.0163 | C19: 539325.2833 | D19: 542061.9733 | E19: =Referencias!$C$11 -> 10 | F19: 1474.67 | G19: 1474.67 | H19: 1474.67 | I19: =Referencias!$C$14 -> 13 | J19: 0.2474650817 | K19: 0.2510190231 | L19: 0.2551288403 | M19: =Referencias!$C$11 -> 10 | N19: 7.61 | O19: 433.3925619 | P19: 3121.24 | Q19: 3121.24 | R19: 3121.24 | S19: =Referencias!$C$14 -> 13 | T19: 8.71 | U19: 399.1565262 | V19: =Referencias!$C$14 -> 13
A20: País Vasco | B20: 1823074.128 | C20: 1825088.477 | D20: 1827349.084 | E20: =Referencias!$C$11 -> 10 | F20: 5586.42 | G20: 5586.42 | H20: 5586.42 | I20: =Referencias!$C$14 -> 13 | J20: 0.2782581218 | K20: 0.2829323937 | L20: 0.2880930164 | M20: =Referencias!$C$11 -> 10 | N20: 8.01 | O20: 360.1634526 | P20: 7958.05 | Q20: 7958.05 | R20: 7958.05 | S20: =Referencias!$C$14 -> 13 | T20: 7.7 | U20: 398.7390067 | V20: =Referencias!$C$14 -> 13
A21: La Rioja | B21: 261117.9801 | C21: 261829.2054 | D21: 262567.9231 | E21: =Referencias!$C$11 -> 10 | F21: 4345.61 | G21: 4345.61 | H21: 4345.61 | I21: =Referencias!$C$14 -> 13 | J21: 0.2605299842 | K21: 0.2649333954 | L21: 0.2701660275 | M21: =Referencias!$C$11 -> 10 | N21: 6.26 | O21: 436.7788619 | P21: 7158.62 | Q21: 7158.62 | R21: 7158.62 | S21: =Referencias!$C$14 -> 13 | T21: 6.87 | U21: 418.2674421 | V21: =Referencias!$C$14 -> 13
A22: Ceuta | B22: 63952.64442 | C22: 64075.70065 | D22: 64249.72992 | E22: =Referencias!$C$11 -> 10 | F22: 2153.41 | G22: 2153.41 | H22: 2153.41 | I22: =Referencias!$C$14 -> 13 | J22: 0.1671445567 | K22: 0.1712420373 | L22: 0.1760580443 | M22: =Referencias!$C$11 -> 10 | N22: 6.32 | O22: 326.4335051 | P22: 4538.06 | Q22: 4538.06 | R22: 4538.06 | S22: =Referencias!$C$14 -> 13 | T22: 8.05 | U22: 270.5605082 | V22: =Referencias!$C$14 -> 13
A23: Melilla | B23: 61078.60398 | C23: 61181.58337 | D23: 61259.81401 | E23: =Referencias!$C$11 -> 10 | F23: 1388.8 | G23: 1388.8 | H23: 1388.8 | I23: =Referencias!$C$14 -> 13 | J23: 0.1578647028 | K23: 0.1637149202 | L23: 0.1704018657 | M23: =Referencias!$C$11 -> 10 | N23: 5.93 | O23: 514.2773309 | P23: 2214.87 | Q23: 2214.87 | R23: 2214.87 | S23: =Referencias!$C$14 -> 13 | T23: 9.96 | U23: 380.557821 | V23: =Referencias!$C$14 -> 13
A24: HOSPITAL DE LA CRUZ ROJA DE ALMERIA | B24: 34468.27069 | C24: 34702.77595 | D24: 34957.04162 | E24: =CONCATENATE(Referencias!$C$12,", ",Referencias!$C$13) -> 11, 12 | F24: Mayores de 18 años | P24: Mayores de 65 años
A25: HOSPITAL DE ALTA RESOLUCION ELTOYO | B25: 19955.31461 | C25: 20091.08081 | D25: 20238.28725 | E25: =CONCATENATE(Referencias!$C$12,", ",Referencias!$C$13) -> 11, 12
A26: HOSPITAL DE PONIENTE | B26: 123813.6565 | C26: 124656.0241 | D26: 125569.3732 | E26: =CONCATENATE(Referencias!$C$12,", ",Referencias!$C$13) -> 11, 12
A27: HOSPITAL LA INMACULADA | B27: 83449.49745 | C27: 84017.24704 | D27: 84632.83759 | E27: =CONCATENATE(Referencias!$C$12,", ",Referencias!$C$13) -> 11, 12
A28: HOSPITAL UNIVERSITARIO TORRECARDENAS | B28: 311575.0258 | C28: 313694.83 | D28: 315993.2578 | E28: =CONCATENATE(Referencias!$C$12,", ",Referencias!$C$13) -> 11, 12
A29: HOSPITAL DE LA LINEA DE LA CONCEPCION | B29: 116281.0662 | C29: 116624.4734 | D29: 117011.7249 | E29: =CONCATENATE(Referencias!$C$12,", ",Referencias!$C$13) -> 11, 12
A30: HOSPITAL PUNTA DE EUROPA | B30: 156476.9903 | C30: 156939.1062 | D30: 157460.2225 | E30: =CONCATENATE(Referencias!$C$12,", ",Referencias!$C$13) -> 11, 12
A31: HOSPITAL SAN CARLOS DE SAN FERNANDO | B31: 31103.9889 | C31: 31195.8468 | D31: 31299.4326 | E31: =CONCATENATE(Referencias!$C$12,", ",Referencias!$C$13) -> 11, 12
A32: HOSPITAL UNIVERSITARIO DE JEREZ DE LA FRONTERA | B32: 238304.4073 | C32: 239008.1801 | D32: 239801.8067 | E32: =CONCATENATE(Referencias!$C$12,", ",Referencias!$C$13) -> 11, 12
A33: HOSPITAL UNIVERSITARIO DE PUERTO REAL | B33: 152648.8071 | C33: 153099.6174 | D33: 153607.9846 | E33: =CONCATENATE(Referencias!$C$12,", ",Referencias!$C$13) -> 11, 12
A34: HOSPITAL UNIVERSITARIO PUERTA DEL MAR | B34: 322045.9159 | C34: 322996.9984 | D34: 324069.5098 | E34: =CONCATENATE(Referencias!$C$12,", ",Referencias!$C$13) -> 11, 12
A35: HOSPITAL DE ALTA RESOLUCION DE PUENTE GENIL | B35: 8994.317721 | C35: 8986.730479 | D35: 8979.588242 | E35: =CONCATENATE(Referencias!$C$12,", ",Referencias!$C$13) -> 11, 12
A36: HOSPITAL DE ALTA RESOLUCION VALLE DEL GUADIATO | B36: 6370.975053 | C36: 6365.600756 | D36: 6360.541671 | E36: =CONCATENATE(Referencias!$C$12,", ",Referencias!$C$13) -> 11, 12
A37: HOSPITAL DE MONTILLA | B37: 34478.21793 | C37: 34449.1335 | D37: 34421.75493 | E37: =CONCATENATE(Referencias!$C$12,", ",Referencias!$C$13) -> 11, 12
A38: HOSPITAL INFANTA MARGARITA | B38: 86945.07131 | C38: 86871.72797 | D38: 86802.68634 | E38: =CONCATENATE(Referencias!$C$12,", ",Referencias!$C$13) -> 11, 12
A39: HOSPITAL LOS MORALES | B39: 8994.317721 | C39: 8986.730479 | D39: 8979.588242 | E39: =CONCATENATE(Referencias!$C$12,", ",Referencias!$C$13) -> 11, 12
A40: HOSPITAL MATERNO - INFANTIL DEL H.U. REINA SOFIA | B40: 73828.35796 | C40: 73766.07935 | D40: 73707.45348 | E40: =CONCATENATE(Referencias!$C$12,", ",Referencias!$C$13) -> 11, 12
A41: HOSPITAL PROVINCIAL | B41: 152153.8748 | C41: 152025.5239 | D41: 151904.7011 | E41: =CONCATENATE(Referencias!$C$12,", ",Referencias!$C$13) -> 11, 12
A42: HOSPITAL UNIVERSITARIO REINA SOFIA | B42: 227106.5225 | C42: 226914.9446 | D42: 226734.6031 | E42: =CONCATENATE(Referencias!$C$12,", ",Referencias!$C$13) -> 11, 12
A43: HOSPITAL VALLE DE LOS PEDROCHES | B43: 46470.64156 | C43: 46431.44081 | D43: 46394.53925 | E43: =CONCATENATE(Referencias!$C$12,", ",Referencias!$C$13) -> 11, 12
A44: HOSPITAL DE ALTA RESOLUCION DE GUADIX | B44: 29644.30406 | C44: 29717.71243 | D44: 29798.31966 | E44: =CONCATENATE(Referencias!$C$12,", ",Referencias!$C$13) -> 11, 12
A45: HOSPITAL DE ALTA RESOLUCION DE LOJA | B45: 13043.49379 | C45: 13075.79347 | D45: 13111.26065 | E45: =CONCATENATE(Referencias!$C$12,", ",Referencias!$C$13) -> 11, 12
A46: HOSPITAL DE BAZA | B46: 69367.67151 | C46: 69539.44709 | D46: 69728.068 | E46: =CONCATENATE(Referencias!$C$12,", ",Referencias!$C$13) -> 11, 12
A47: HOSPITAL SANTA ANA | B47: 110869.6972 | C47: 111144.2445 | D47: 111445.7155 | E47: =CONCATENATE(Referencias!$C$12,", ",Referencias!$C$13) -> 11, 12
A48: HOSPITAL UNIVERSITARIO CLINICO SAN CECILIO | B48: 321937.1421 | C48: 322734.357 | D48: 323609.7515 | E48: =CONCATENATE(Referencias!$C$12,", ",Referencias!$C$13) -> 11, 12
A49: HOSPITAL UNIVERSITARIO VIRGEN DE LAS NIEVES | B49: 211067.4449 | C49: 211590.1125 | D49: 212164.036 | E49: =CONCATENATE(Referencias!$C$12,", ",Referencias!$C$13) -> 11, 12
A50: HOSPITAL DE RIOTINTO | B50: 50389.16286 | C50: 50551.07037 | D50: 50721.62739 | E50: =CONCATENATE(Referencias!$C$12,", ",Referencias!$C$13) -> 11, 12
A51: HOSPITAL INFANTA ELENA | B51: 129816.1484 | C51: 130233.266 | D51: 130672.6672 | E51: =CONCATENATE(Referencias!$C$12,", ",Referencias!$C$13) -> 11, 12
A52: HOSPITAL UNIVERSITARIO JUAN RAMÓN JIMÉNEZ | B52: 214794.4824 | C52: 215484.6474 | D52: 216211.6829 | E52: =CONCATENATE(Referencias!$C$12,", ",Referencias!$C$13) -> 11, 12
A53: HOSPITAL VAZQUEZ DIAZ | B53: 35870.25153 | C53: 35985.50772 | D53: 36106.9212 | E53: =CONCATENATE(Referencias!$C$12,", ",Referencias!$C$13) -> 11, 12
A54: HOSPITAL ALTO GUADALQUIVIR | B54: 27901.72068 | C54: 27795.24451 | D54: 27691.18106 | E54: =CONCATENATE(Referencias!$C$12,", ",Referencias!$C$13) -> 11, 12
A55: HOSPITAL DE ALTA RESOLUCION DE ALCALA LA REAL | B55: 11660.42058 | C55: 11615.92308 | D55: 11572.43388 | E55: =CONCATENATE(Referencias!$C$12,", ",Referencias!$C$13) -> 11, 12
A56: HOSPITAL DE ALTA RESOLUCION DE ALCAUDETE | B56: 6663.097475 | C56: 6637.670331 | D56: 6612.819359 | E56: =CONCATENATE(Referencias!$C$12,", ",Referencias!$C$13) -> 11, 12
A57: HOSPITAL DE ALTA RESOLUCION SIERRA DE SEGURA | B57: 9994.646213 | C57: 9956.505496 | D57: 9919.229038 | E57: =CONCATENATE(Referencias!$C$12,", ",Referencias!$C$13) -> 11, 12
A58: HOSPITAL DOCTOR SAGAZ | B58: 23320.84116 | C58: 23231.84616 | D58: 23144.86776 | E58: =CONCATENATE(Referencias!$C$12,", ",Referencias!$C$13) -> 11, 12
A59: HOSPITAL NEUROTRAUMATOLOGICO DEL H.U. DE JAEN | B59: 80373.61329 | C59: 80066.89837 | D59: 79767.13351 | E59: =CONCATENATE(Referencias!$C$12,", ",Referencias!$C$13) -> 11, 12
A60: HOSPITAL SAN AGUSTIN | B60: 84954.49281 | C60: 84630.29672 | D60: 84313.44682 | E60: =CONCATENATE(Referencias!$C$12,", ",Referencias!$C$13) -> 11, 12
A61: HOSPITAL SAN JUAN DE LA CRUZ | B61: 96198.4698 | C61: 95831.3654 | D61: 95472.57949 | E61: =CONCATENATE(Referencias!$C$12,", ",Referencias!$C$13) -> 11, 12
A62: HOSPITAL UNIVERSITARIO DE JAEN | B62: 177821.4139 | C62: 177142.827 | D62: 176479.6166 | E62: =CONCATENATE(Referencias!$C$12,", ",Referencias!$C$13) -> 11, 12
A63: HOSPITAL CIVIL | B63: 117746.3261 | C63: 118708.4252 | D63: 119715.0146 | E63: =CONCATENATE(Referencias!$C$12,", ",Referencias!$C$13) -> 11, 12
A64: HOSPITAL COSTA DEL SOL | B64: 241409.553 | C64: 243382.0979 | D64: 245445.8591 | E64: =CONCATENATE(Referencias!$C$12,", ",Referencias!$C$13) -> 11, 12
A65: HOSPITAL DE ALTA RESOLUCION DE BENALMADENA | B65: 27217.74372 | C65: 27440.13849 | D65: 27672.81745 | E65: =CONCATENATE(Referencias!$C$12,", ",Referencias!$C$13) -> 11, 12
A66: HOSPITAL DE ANTEQUERA | B66: 94078.72285 | C66: 94847.43521 | D66: 95651.69511 | E66: =CONCATENATE(Referencias!$C$12,", ",Referencias!$C$13) -> 11, 12
A67: HOSPITAL DE LA AXARQUIA | B67: 116562.9459 | C67: 117515.3757 | D67: 118511.8487 | E67: =CONCATENATE(Referencias!$C$12,", ",Referencias!$C$13) -> 11, 12
A68: HOSPITAL DE LA SERRANIA | B68: 88753.51212 | C68: 89478.71247 | D68: 90237.44821 | E68: =CONCATENATE(Referencias!$C$12,", ",Referencias!$C$13) -> 11, 12
A69: HOSPITAL MARITIMO DE TORREMOLINOS | B69: 52660.41719 | C69: 53090.70273 | D69: 53540.88594 | E69: =CONCATENATE(Referencias!$C$12,", ",Referencias!$C$13) -> 11, 12
A70: HOSPITAL UNIVERSITARIO REGIONAL DE MALAGA | B70: 304128.7015 | C70: 306613.7214 | D70: 309213.6559 | E70: =CONCATENATE(Referencias!$C$12,", ",Referencias!$C$13) -> 11, 12
A71: HOSPITAL UNIVERSITARIO VIRGEN DE LA VICTORIA | B71: 319512.6436 | C71: 322123.3649 | D71: 324854.8136 | E71: =CONCATENATE(Referencias!$C$12,", ",Referencias!$C$13) -> 11, 12 | H71: Poblción Sevilla
A72: HOSPITAL VALLE DE GUADALHORCE DE CARTAMA | B72: 16567.32226 | C72: 16702.69299 | D72: 16844.32367 | E72: =CONCATENATE(Referencias!$C$12,", ",Referencias!$C$13) -> 11, 12 | F72: Camas | G72: % | H72: 2021 | I72: 2022 | J72: 2023
A73: HOSPITAL DE ALTA RESOLUCION DE ECIJA | B73: =$G73*H$73 -> 21497.49338 | C73: =$G73*I$73 -> 21574.36161 | D73: =$G73*J$73 -> 21657.09365 | E73: =CONCATENATE(Referencias!$C$12,", ",Referencias!$C$13) -> 11, 12 | F73: 38 | G73: =F73/SUM($F$73:$F$84) -> 0.0136396267 | H73: 1576105.699 | I73: 1581741.354 | J73: 1587806.918
A74: HOSPITAL DE ALTA RESOLUCION DE LEBRIJA | B74: =$G74*H$73 -> 12445.91722 | C74: =$G74*I$73 -> 12490.41988 | D74: =$G74*J$73 -> 12538.31737 | E74: =CONCATENATE(Referencias!$C$12,", ",Referencias!$C$13) -> 11, 12 | F74: 22 | G74: =F74/SUM($F$73:$F$84) -> 0.007896625987 | H74: =H73-SUM(B73:B84) -> 0 | I74: =I73-SUM(C73:C84) -> 0 | J74: =J73-SUM(D73:D84) -> 0
A75: HOSPITAL DE ALTA RESOLUCION DE MORON DE LA FRONTERA | B75: 6788.68212 | C75: 6812.956297 | D75: 6839.082204 | E75: =CONCATENATE(Referencias!$C$12,", ",Referencias!$C$13) -> 11, 12 | F75: 12 | G75: 0.004307250538
A76: HOSPITAL DE ALTA RESOLUCION DE UTRERA | B76: 7920.12914 | C76: 7948.449014 | D76: 7978.929238 | E76: =CONCATENATE(Referencias!$C$12,", ",Referencias!$C$13) -> 11, 12 | F76: 14 | G76: 0.005025125628
A77: HOSPITAL DUQUES DEL INFANTADO | B77: 24326.11093 | C77: 24413.0934 | D77: 24506.71123 | E77: =CONCATENATE(Referencias!$C$12,", ",Referencias!$C$13) -> 11, 12 | F77: 43 | G77: 0.01543431443
A78: HOSPITAL EL TOMILLAR | B78: 48652.22186 | C78: 48826.1868 | D78: 49013.42246 | E78: =CONCATENATE(Referencias!$C$12,", ",Referencias!$C$13) -> 11, 12 | F78: 86 | G78: 0.03086862886
A79: HOSPITAL LA MERCED | B79: 127287.7898 | C79: 127742.9306 | D79: 128232.7913 | E79: =CONCATENATE(Referencias!$C$12,", ",Referencias!$C$13) -> 11, 12 | F79: 225 | G79: 0.0807609476
A80: HOSPITAL SAN LAZARO | B80: 42994.98676 | C80: 43148.72322 | D80: 43314.18729 | E80: =CONCATENATE(Referencias!$C$12,", ",Referencias!$C$13) -> 11, 12 | F80: 76 | G80: 0.02727925341
A81: HOSPITAL UNIVERSITARIO VIRGEN DE VALME | B81: 300399.1838 | C81: 301473.3162 | D81: 302629.3875 | E81: =CONCATENATE(Referencias!$C$12,", ",Referencias!$C$13) -> 11, 12 | F81: 531 | G81: 0.1905958363
A82: HOSPITAL UNIVERSITARIO VIRGEN DEL ROCIO | B82: 370548.8991 | C82: 371873.8646 | D82: 373299.9037 | E82: =CONCATENATE(Referencias!$C$12,", ",Referencias!$C$13) -> 11, 12 | F82: 655 | G82: 0.2351040919
A83: HOSPITAL UNIVERSITARIO VIRGEN MACARENA | B83: 500099.5828 | C83: 501887.7806 | D83: 503812.389 | E83: =CONCATENATE(Referencias!$C$12,", ",Referencias!$C$13) -> 11, 12 | F83: 884 | G83: 0.3173007897
A84: HOSPITAL SAN JUAN DE DIOS DEL ALJARAFE | B84: 113144.702 | C84: 113549.2716 | D84: 113984.7034 | E84: =CONCATENATE(Referencias!$C$12,", ",Referencias!$C$13) -> 11, 12 | F84: 200 | G84: 0.07178750897
A85: HOSPITAL GENERAL SAN JORGE | B85: 105485.5294 | C85: 105334.2623 | D85: 105281.5508 | E85: =CONCATENATE(Referencias!$C$12,", ",Referencias!$C$13) -> 11, 12
A86: HOSPITAL DE BARBASTRO | B86: 61089.26281 | C86: 61001.66031 | D86: 60971.13378 | E86: =CONCATENATE(Referencias!$C$12,", ",Referencias!$C$13) -> 11, 12
A87: HOSPITAL DE JACA SALUD | B87: 17758.50663 | C87: 17733.04079 | D87: 17724.1668 | E87: =CONCATENATE(Referencias!$C$12,", ",Referencias!$C$13) -> 11, 12
A88: HOSPITAL DE ALCAÑIZ | B88: 42330.43893 | C88: 42067.60652 | D88: 41834.98522 | E88: =CONCATENATE(Referencias!$C$12,", ",Referencias!$C$13) -> 11, 12 | H88: Poblción Zaragoza
A89: HOSPITAL OBISPO POLANCO | B89: 69473.62114 | C89: 69042.25498 | D89: 68660.47192 | E89: =CONCATENATE(Referencias!$C$12,", ",Referencias!$C$13) -> 11, 12 | F89: Camas | G89: % | H89: 2021 | I89: 2022 | J89: 2023
A90: HOSPITAL CLINICO UNIVERSITARIO LOZANO BLESA | B90: =H$90*$G90 -> 237838.5557 | C90: =I$90*$G90 -> 238402.683 | D90: =J$90*$G90 -> 239021.1109 | E90: =CONCATENATE(Referencias!$C$12,", ",Referencias!$C$13) -> 11, 12 | F90: 807 | G90: =F90/SUM($F$90:$F$95) -> 0.2937750273 | H90: 809594.1915 | I90: 811514.4612 | J90: 813619.5683
A91: HOSPITAL ERNEST LLUCH MARTIN | B91: =H$90*$G91 -> 35955.76679 | C91: 36041.04997 | D91: 36134.54217 | E91: =CONCATENATE(Referencias!$C$12,", ",Referencias!$C$13) -> 11, 12 | F91: 122 | G91: =F91/SUM($F$90:$F$95) -> 0.04441208591 | H91: =H90-SUM(B90:B95) -> 0 | I91: =I90-SUM(C90:C95) -> 0 | J91: 0
A92: HOSPITAL NUESTRA SEÑORA DE GRACIA | B92: 44502.62939 | C92: 44608.1848 | D92: 44723.90055 | E92: =CONCATENATE(Referencias!$C$12,", ",Referencias!$C$13) -> 11, 12 | F92: 151 | G92: 0.05496905715
A93: HOSPITAL ROYO VILLANOVA | B93: 74858.72758 | C93: 75036.28436 | D93: 75230.93205 | E93: =CONCATENATE(Referencias!$C$12,", ",Referencias!$C$13) -> 11, 12 | F93: 254 | G93: 0.09246450673
A94: HOSPITAL UNIVERSITARIO MIGUEL SERVET | B94: 357494.6321 | C94: 358342.5706 | D94: 359272.1283 | E94: =CONCATENATE(Referencias!$C$12,", ",Referencias!$C$13) -> 11, 12 | F94: 1213 | G94: 0.4415726247
A95: HOSPITAL GENERAL DE LA DEFENSA EN ZARAGOZA | B95: 58943.87998 | C95: 59083.68848 | D95: 59236.95437 | E95: =CONCATENATE(Referencias!$C$12,", ",Referencias!$C$13) -> 11, 12 | F95: 200 | G95: 0.07280669822
A96: HOSPITAL CARMEN Y SEVERO OCHOA | B96: 35082.87565 | C96: 34892.85093 | D96: 34715.38027 | E96: =CONCATENATE(Referencias!$C$12,", ",Referencias!$C$13) -> 11, 12
A97: HOSPITAL DE JARRIO | B97: 35764.09654 | C97: 35570.38202 | D97: 35389.46532 | E97: =CONCATENATE(Referencias!$C$12,", ",Referencias!$C$13) -> 11, 12
A98: HOSPITAL DEL ORIENTE DE ASTURIAS FRANCISCO GRANDE COVIAN | B98: 30654.93989 | C98: 30488.89887 | D98: 30333.82742 | E98: =CONCATENATE(Referencias!$C$12,", ",Referencias!$C$13) -> 11, 12
A99: HOSPITAL UNIVERSITARIO CENTRAL DE ASTURIAS | B99: 337544.9492 | C99: 335716.6531 | D99: 334009.1442 | E99: =CONCATENATE(Referencias!$C$12,", ",Referencias!$C$13) -> 11, 12
A100: HOSPITAL UNIVERSITARIO DE CABUEÑES | B100: 155658.9725 | C100: 154815.8532 | D100: 154028.4348 | E100: =CONCATENATE(Referencias!$C$12,", ",Referencias!$C$13) -> 11, 12
A101: HOSPITAL UNIVERSITARIO SAN AGUSTIN | B101: 148506.1532 | C101: 147701.7768 | D101: 146950.5417 | E101: =CONCATENATE(Referencias!$C$12,", ",Referencias!$C$13) -> 11, 12
A102: HOSPITAL VALLE DEL NALON | B102: 75956.12883 | C102: 75544.71609 | D102: 75160.4835 | E102: =CONCATENATE(Referencias!$C$12,", ",Referencias!$C$13) -> 11, 12
A103: HOSPITAL VITAL ALVAREZ BUYLLA | B103: 59947.438 | C103: 59622.73557 | D103: 59319.48474 | E103: =CONCATENATE(Referencias!$C$12,", ",Referencias!$C$13) -> 11, 12
A104: HOSPITAL CAN MISSES | B104: 120832.4481 | C104: 122197.3776 | D104: 123627.5862 | E104: =CONCATENATE(Referencias!$C$12,", ",Referencias!$C$13) -> 11, 12
A105: HOSPITAL COMARCAL D´INCA | B105: 81376.95483 | C105: 82296.19305 | D105: 83259.39477 | E105: =CONCATENATE(Referencias!$C$12,", ",Referencias!$C$13) -> 11, 12
A106: HOSPITAL DE FORMENTERA | B106: 5918.323987 | C106: 5985.177676 | D106: 6055.228711 | E106: =CONCATENATE(Referencias!$C$12,", ",Referencias!$C$13) -> 11, 12
A107: HOSPITAL DE MANACOR | B107: 110475.3811 | C107: 111723.3166 | D107: 113030.9359 | E107: =CONCATENATE(Referencias!$C$12,", ",Referencias!$C$13) -> 11, 12
A108: HOSPITAL MATEU ORFILA | B108: 70033.50052 | C108: 70824.6025 | D108: 71653.53974 | E108: =CONCATENATE(Referencias!$C$12,", ",Referencias!$C$13) -> 11, 12
A109: HOSPITAL SON LLATZER | B109: 206648.1459 | C109: 208982.4539 | D109: 211428.4025 | E109: =CONCATENATE(Referencias!$C$12,", ",Referencias!$C$13) -> 11, 12 | H109: Poblción Las Palmas
A110: HOSPITAL UNIVERSITARI SON ESPASES | B110: 413789.4855 | C110: 418463.6725 | D110: 423361.4073 | E110: =CONCATENATE(Referencias!$C$12,", ",Referencias!$C$13) -> 11, 12 | F110: Camas | G110: % | H110: 2021 | I110: 2022 | J110: 2023
A111: COMPLEJO HOSPITALARIO UNIVERSITARIO INSULAR MATERNO INFANTIL | B111: =H$111*$G111 -> 416208.2602 | C111: =I$111*$G111 -> 419663.1652 | D111: =J$111*$G111 -> 423329.0292 | E111: =CONCATENATE(Referencias!$C$12,", ",Referencias!$C$13) -> 11, 12 | F111: 916 | G111: =F111/SUM($F$111:$F$115) -> 0.4284377923 | H111: 971455.5244 | I111: 979519.4838 | J111: 988075.8346
A112: HOSPITAL DOCTOR JOSE MOLINA OROSA | B112: =H$111*$G112 -> 132677.7423 | C112: 133779.0876 | D112: 134947.6818 | E112: =CONCATENATE(Referencias!$C$12,", ",Referencias!$C$13) -> 11, 12 | F112: 292 | G112: =F112/SUM($F$111:$F$115) -> 0.1365762395 | H112: =H111-SUM(B111:B115) -> 0 | I112: =I111-SUM(C111:C115) -> 0 | J112: 0
A113: HOSPITAL GENERAL DE FUERTEVENTURA | B113: 59523.23372 | C113: 60017.33039 | D113: 60541.59698 | E113: =CONCATENATE(Referencias!$C$12,", ",Referencias!$C$13) -> 11, 12 | F113: 131 | G113: 0.06127221703
A114: HOSPITAL UNIVERSITARIO DE GRAN CANARIA DR. NEGRIN | B114: 296253.0411 | C114: 298712.2093 | D114: 301321.5361 | E114: =CONCATENATE(Referencias!$C$12,", ",Referencias!$C$13) -> 11, 12 | F114: 652 | G114: 0.3049579046
A115: HOSPITAL SAN ROQUE MASPALOMAS | B115: 66793.247 | C115: 67347.69135 | D115: 67935.9905 | E115: =CONCATENATE(Referencias!$C$12,", ",Referencias!$C$13) -> 11, 12 | F115: 147 | G115: 0.06875584659
A116: HOSPITAL DEL SUR | B116: =H$116*$G116 -> 41815.48571 | C116: =I$116*$G116 -> 42151.13099 | D116: =J$116*$G116 -> 42504.15885 | E116: =CONCATENATE(Referencias!$C$12,", ",Referencias!$C$13) -> 11, 12 | F116: 98 | G116: =F116/SUM($F$116:$F$123) -> 0.04518211157 | H116: 925487.6377 | I116: 932916.3584 | J116: 940729.8014 | K116: Poblción Tenerife
A117: HOSPITAL DEL TORAX | B117: =H$116*$G117 -> 55042.83322 | C117: 55484.65202 | D117: 55949.35195 | E117: =CONCATENATE(Referencias!$C$12,", ",Referencias!$C$13) -> 11, 12 | F117: 129 | G117: =F117/SUM($F$116:$F$123) -> 0.05947441217 | H117: =H116-SUM(B116:B123) -> 0 | I117: =I116-SUM(C116:C123) -> 0 | J117: 0
A118: HOSPITAL GENERAL DE LA PALMA | B118: 84484.34867 | C118: 85162.48915 | D118: 85875.74951 | E118: =CONCATENATE(Referencias!$C$12,", ",Referencias!$C$13) -> 11, 12 | F118: 198 | G118: 0.09128630705
A119: HOSPITAL INSULAR NUESTRA SEÑORA DE LOS REYES | B119: 13654.03615 | C119: 13763.63461 | D119: 13878.90901 | E119: =CONCATENATE(Referencias!$C$12,", ",Referencias!$C$13) -> 11, 12 | F119: 32 | G119: 0.01475334255
A120: HOSPITAL NUESTRA SEÑORA DE GUADALUPE | B120: 17067.54519 | C120: 17204.54326 | D120: 17348.63626 | E120: =CONCATENATE(Referencias!$C$12,", ",Referencias!$C$13) -> 11, 12 | F120: 40 | G120: 0.01844167819
A121: HOSPITAL UNIVERSITARIO DE CANARIAS | B121: 290574.9568 | C121: 292907.349 | D121: 295360.5324 | E121: =CONCATENATE(Referencias!$C$12,", ",Referencias!$C$13) -> 11, 12 | F121: 681 | G121: 0.3139695712
A122: HOSPITAL UNIVERSITARIO NUESTRA SEÑORA DE LA CANDELARIA | B122: 357991.7603 | C122: 360865.2949 | D122: 363887.6456 | E122: =CONCATENATE(Referencias!$C$12,", ",Referencias!$C$13) -> 11, 12 | F122: 839 | G122: 0.3868142001
A123: HOSPITAL SAN JUAN DE DIOS TENERIFE | B123: 64856.67171 | C123: 65377.2644 | D123: 65924.8178 | E123: =CONCATENATE(Referencias!$C$12,", ",Referencias!$C$13) -> 11, 12 | F123: 152 | G123: 0.07007837713
A124: HOSPITAL COMARCAL DE LAREDO | B124: 47306.76399 | C124: 47292.49963 | D124: 47291.05841 | E124: =CONCATENATE(Referencias!$C$12,", ",Referencias!$C$13) -> 11, 12
A125: HOSPITAL SIERRALLANA | B125: 108697.2211 | C125: 108664.4457 | D125: 108661.1342 | E125: =CONCATENATE(Referencias!$C$12,", ",Referencias!$C$13) -> 11, 12
A126: HOSPITAL UNIVERSITARIO MARQUES DE VALDECILLA | B126: 333314.0699 | C126: 333213.5661 | D126: 333203.4116 | E126: =CONCATENATE(Referencias!$C$12,", ",Referencias!$C$13) -> 11, 12
A127: COMPLEJO ASISTENCIAL DE AVILA | B127: 134213.8921 | C127: 133164.2548 | D127: 132239.7438 | E127: =CONCATENATE(Referencias!$C$12,", ",Referencias!$C$13) -> 11, 12
A128: HOSPITAL SANTOS REYES | B128: 33667.50317 | C128: 33544.67213 | D128: 33442.52355 | E128: =CONCATENATE(Referencias!$C$12,", ",Referencias!$C$13) -> 11, 12
A129: HOSPITAL SANTIAGO APOSTOL | B129: 36325.46394 | C129: 36192.93572 | D129: 36082.72278 | E129: =CONCATENATE(Referencias!$C$12,", ",Referencias!$C$13) -> 11, 12 | H129: Poblción León
A130: COMPLEJO ASISTENCIAL UNIVER. DE BURGOS | B130: 229470.6137 | C130: 228633.4232 | D130: 227937.2 | E130: =CONCATENATE(Referencias!$C$12,", ",Referencias!$C$13) -> 11, 12 | F130: Camas | G130: % | H130: 2021 | I130: 2022 | J130: 2023
A131: HOSPITAL EL BIERZO | B131: =H$131*$G131 -> 102787.5687 | C131: =I$131*$G131 -> 101981.6584 | D131: =J$131*$G131 -> 101186.7749 | E131: =CONCATENATE(Referencias!$C$12,", ",Referencias!$C$13) -> 11, 12 | F131: 408 | G131: =F131/SUM($F$131:$F$134) -> 0.2597071929 | H131: 395782.5255 | I131: 392679.3758 | J131: 389618.6846
A132: COMPLEJO ASISTENCIAL UNIVERSITARIO DE LEON | B132: =H$131*$G132 -> 200032.6704 | C132: 198464.3058 | D132: 196917.4001 | E132: =CONCATENATE(Referencias!$C$12,", ",Referencias!$C$13) -> 11, 12 | F132: 794 | G132: =F132/SUM($F$131:$F$134) -> 0.5054105665 | H132: =H131-SUM(B131:B134) -> 0 | I132: =I131-SUM(C131:C134) -> 0 | J132: 0
A133: HOSPITAL DE LA REINA | B133: 18138.98271 | C133: 17996.76325 | D133: 17856.48968 | E133: =CONCATENATE(Referencias!$C$12,", ",Referencias!$C$13) -> 11, 12 | F133: 72 | G133: 0.04583068109
A134: HOSPITAL SAN JUAN DE DIOS LEON | B134: 74823.30367 | C134: 74236.64839 | D134: 73658.01995 | E134: =CONCATENATE(Referencias!$C$12,", ",Referencias!$C$13) -> 11, 12 | F134: 297 | G134: 0.1890515595
A135: HOSPITAL RIO CARRION (COMPLEJO ASISTENCIAL DE PALENCIA) | B135: 104051.6466 | C135: 103256.4543 | D135: 102503.7384 | E135: =CONCATENATE(Referencias!$C$12,", ",Referencias!$C$13) -> 11, 12
A136: HOSPITAL SAN TELMO (COMPLEJO ASISTENCIAL DE PALENCIA) | B136: 32931.23921 | C136: 32679.56932 | D136: 32441.34274 | E136: =CONCATENATE(Referencias!$C$12,", ",Referencias!$C$13) -> 11, 12
A137: HOSPITAL CLINICO UNIVERSITARIO DE SALAMANCA (COMPLEJO ASISTENCIAL UNIV.SA) | B137: 224549.0859 | C137: 223077.9739 | D137: 221769.1039 | E137: =CONCATENATE(Referencias!$C$12,", ",Referencias!$C$13) -> 11, 12
A138: HOSPITAL LOS MONTALVOS (COMPLEJO ASISTENCIAL UNIVERSITARIO DE SALAMANCA) | B138: 56984.33594 | C138: 56611.00847 | D138: 56278.85353 | E138: =CONCATENATE(Referencias!$C$12,", ",Referencias!$C$13) -> 11, 12
A139: COMPLEJO ASISTENCIAL DE SEGOVIA | B139: 128586.1074 | C139: 128147.074 | D139: 127737.3588 | E139: =CONCATENATE(Referencias!$C$12,", ",Referencias!$C$13) -> 11, 12 | H139: Poblción Valladolid
A140: COMPLEJO ASISTENCIAL DE SORIA | B140: 75878.67985 | C140: 75489.92956 | D140: 75085.69083 | E140: =CONCATENATE(Referencias!$C$12,", ",Referencias!$C$13) -> 11, 12 | F140: Camas | G140: % | H140: 2021 | I140: 2022 | J140: 2023
A141: HOSPITAL MEDINA DEL CAMPO | B141: =H$141*$G141 -> 32979.04977 | C141: =I$141*$G141 -> 32930.97165 | D141: =J$141*$G141 -> 32879.38545 | E141: =CONCATENATE(Referencias!$C$12,", ",Referencias!$C$13) -> 11, 12 | F141: 119 | G141: =F141/SUM($F$141:$F$144) -> 0.07545973367 | H141: 437041.6932 | I141: 436404.5571 | J141: 435720.9316
A142: HOSPITAL UNIVERSITARIO DEL RIO HORTEGA | B142: =H$141*$G142 -> 167943.7324 | C142: 167698.8977 | D142: 167436.1982 | E142: =CONCATENATE(Referencias!$C$12,", ",Referencias!$C$13) -> 11, 12 | F142: 606 | G142: =F142/SUM($F$141:$F$144) -> 0.3842739379 | H142: =H141-SUM(B141:B144) -> 0 | I142: =I141-SUM(C141:C144) -> 0 | J142: =J141-SUM(D141:D144) -> 0
A143: HOSPITAL CLINICO UNIVERSITARIO | B143: 215333.7956 | C143: 215019.8737 | D143: 214683.0462 | E143: =CONCATENATE(Referencias!$C$12,", ",Referencias!$C$13) -> 11, 12 | F143: 777 | G143: 0.4927076728
A144: SANATORIO SAGRADO CORAZON | B144: 20785.1154 | C144: 20754.81407 | D144: 20722.30176 | E144: =CONCATENATE(Referencias!$C$12,", ",Referencias!$C$13) -> 11, 12 | F144: 75 | G144: 0.04755865568
A145: HOSPITAL VIRGEN DE LA CONCHA (COMPLEJO ASISTENCIAL DE ZAMORA) | B145: 96790.52796 | C145: 95658.40438 | D145: 94534.33541 | E145: =CONCATENATE(Referencias!$C$12,", ",Referencias!$C$13) -> 11, 12
A146: HOSPITAL PROVINCIAL DE ZAMORA (COMPLEJO ASISTENCIAL DE ZAMORA) | B146: 38827.14589 | C146: 38372.99889 | D146: 37922.08297 | E146: =CONCATENATE(Referencias!$C$12,", ",Referencias!$C$13) -> 11, 12
A147: HOSPITAL DE BENAVENTE (COMPLEJO ASISTENCIAL DE ZAMORA) | B147: 14144.17457 | C147: 13978.73531 | D147: 13814.47308 | E147: =CONCATENATE(Referencias!$C$12,", ",Referencias!$C$13) -> 11, 12
A148: HOSPITAL DE HELLIN | B148: 42585.17283 | C148: 42527.78321 | D148: 42456.96115 | E148: =CONCATENATE(Referencias!$C$12,", ",Referencias!$C$13) -> 11, 12
A149: HOSPITAL GENERAL DE ALMANSA | B149: 29336.45239 | C149: 29296.91732 | D149: 29248.12879 | E149: =CONCATENATE(Referencias!$C$12,", ",Referencias!$C$13) -> 11, 12
A150: HOSPITAL GENERAL DE VILLARROBLEDO | B150: 35960.81261 | C150: 35912.35027 | D150: 35852.54497 | E150: =CONCATENATE(Referencias!$C$12,", ",Referencias!$C$13) -> 11, 12
A151: HOSPITAL GENERAL UNIVERSITARIO DE ALBACETE | B151: 159300.0909 | C151: 159085.4113 | D151: 158820.4843 | E151: =CONCATENATE(Referencias!$C$12,", ",Referencias!$C$13) -> 11, 12
A152: HOSPITAL UNIVERSITARIO NUESTRA SEÑORA DEL PERPETUO SOCORRO | B152: 53310.32746 | C152: 53238.48417 | D152: 53149.82544 | E152: =CONCATENATE(Referencias!$C$12,", ",Referencias!$C$13) -> 11, 12
A153: HOSPITAL GENERAL LA MANCHA CENTRO | B153: 99931.06102 | C153: 99395.2231 | D153: 98925.47763 | E153: =CONCATENATE(Referencias!$C$12,", ",Referencias!$C$13) -> 11, 12
A154: HOSPITAL VIRGEN DE ALTAGRACIA | B154: 33404.71728 | C154: 33225.59866 | D154: 33068.57326 | E154: =CONCATENATE(Referencias!$C$12,", ",Referencias!$C$13) -> 11, 12
A155: HOSPITAL SANTA BARBARA | B155: 39915.80624 | C155: 39701.77467 | D155: 39514.14262 | E155: =CONCATENATE(Referencias!$C$12,", ",Referencias!$C$13) -> 11, 12
A156: HOSPITAL GENERAL DE VALDEPEÑAS | B156: 29158.35492 | C156: 29002.00561 | D156: 28864.94106 | E156: =CONCATENATE(Referencias!$C$12,", ",Referencias!$C$13) -> 11, 12
A157: HOSPITAL GENERAL DE TOMELLOSO | B157: 43879.07779 | C157: 43643.79485 | D157: 43437.53267 | E157: =CONCATENATE(Referencias!$C$12,", ",Referencias!$C$13) -> 11, 12
A158: HOSPITAL GENERAL DE CIUDAD REAL | B158: 159663.225 | C158: 158807.0987 | D158: 158056.5705 | E158: =CONCATENATE(Referencias!$C$12,", ",Referencias!$C$13) -> 11, 12
A159: HOSPITAL VIRGEN DE LA LUZ | B159: 167988.8633 | C159: 167086.4621 | D159: 166221.2193 | E159: =CONCATENATE(Referencias!$C$12,", ",Referencias!$C$13) -> 11, 12
A160: HOSPITAL UNIVERSITARIO DE GUADALAJARA | B160: 212080.3584 | C160: 213689.9347 | D160: 215231.6483 | E160: =CONCATENATE(Referencias!$C$12,", ",Referencias!$C$13) -> 11, 12
A161: HOSPITAL GENERAL NUESTRA SEÑORA DEL PRADO | B161: 142502.1707 | C161: 143037.5939 | D161: 143639.7861 | E161: =CONCATENATE(Referencias!$C$12,", ",Referencias!$C$13) -> 11, 12
A162: HOSPITAL PROVINCIAL NTRA.SRA.DE LA MISERICORDIA | B162: 66683.70811 | C162: 66934.25869 | D162: 67216.05377 | E162: =CONCATENATE(Referencias!$C$12,", ",Referencias!$C$13) -> 11, 12
A163: HOSPITAL VIRGEN DE LA SALUD | B163: 284090.866 | C163: 285158.2802 | D163: 286358.8044 | E163: =CONCATENATE(Referencias!$C$12,", ",Referencias!$C$13) -> 11, 12 | H163: Poblción Barcelona
A164: HOSPITAL GERIATRICO VIRGEN DEL VALLE | B164: 70794.34765 | C164: 71060.34313 | D164: 71359.50914 | E164: =CONCATENATE(Referencias!$C$12,", ",Referencias!$C$13) -> 11, 12 | F164: Camas | G164: % | H164: 2021 | I164: 2022 | J164: 2023
A165: SERVEIS SANITARIS SANT JOAN DE VILATORRADA | B165: =H$165*$G165 -> 30557.68394 | C165: =I$165*$G165 -> 30721.33882 | D165: =J$165*$G165 -> 30901.29011 | E165: =CONCATENATE(Referencias!$C$12,", ",Referencias!$C$13) -> 11, 12 | F165: 56 | G165: =F165/SUM($F$165:$F$187) -> 0.006615475487 | H165: 4619121.331 | I165: 4643859.52 | J165: 4671061.086
A166: HOSPITAL DE VILADECANS | B166: =H$165*$G166 -> 60024.02202 | C166: 60345.48698 | D166: 60698.96272 | E166: =CONCATENATE(Referencias!$C$12,", ",Referencias!$C$13) -> 11, 12 | F166: 110 | G166: =F166/SUM($F$165:$F$187) -> 0.01299468399 | H166: =H165-SUM(B165:B187) -> 0 | I166: =I165-SUM(C165:C187) -> 0 | J166: 0
A167: SERVEIS SANITARIS LA ROCA DEL VALLES 2 | B167: 18552.87953 | C167: 18652.24143 | D167: 18761.49757 | E167: =CONCATENATE(Referencias!$C$12,", ",Referencias!$C$13) -> 11, 12 | F167: 34 | G167: 0.004016538689
A168: PARC SANITARI SANT JOAN DE DEU-SERVEIS SANITARIS CENTRE PENITENCIARI BRIANS-2 | B168: 82942.28497 | C168: 83386.49109 | D168: 83874.93031 | E168: =CONCATENATE(Referencias!$C$12,", ",Referencias!$C$13) -> 11, 12 | F168: 152 | G168: 0.01795629061
A169: HOSPITAL UNIVERSITARI GERMANS TRIAS I PUJOL DE BADALONA | B169: 281567.2306 | C169: 283075.1934 | D169: 284733.316 | E169: =CONCATENATE(Referencias!$C$12,", ",Referencias!$C$13) -> 11, 12 | F169: 516 | G169: 0.06095688128
A170: HOSPITAL UNIVERSITARI DE BELLVITGE | B170: 557677.7318 | C170: 560664.4335 | D170: 563948.5446 | E170: =CONCATENATE(Referencias!$C$12,", ",Referencias!$C$13) -> 11, 12 | F170: 1022 | G170: 0.1207324276
A171: HOSPITAL UNIVERSITARI VALL D'HEBRON | B171: 717559.8996 | C171: 721402.867 | D171: 725628.5089 | E171: =CONCATENATE(Referencias!$C$12,", ",Referencias!$C$13) -> 11, 12 | F171: 1315 | G171: 0.1553455405
A172: HOSPITAL MUNICIPAL DE BADALONA | B172: 76394.20984 | C172: 76803.34706 | D172: 77253.22528 | E172: =CONCATENATE(Referencias!$C$12,", ",Referencias!$C$13) -> 11, 12 | F172: 140 | G172: 0.01653868872
A173: HOSPITAL DE L'ESPERANÇA. | B173: 87853.34132 | C173: 88323.84912 | D173: 88841.20908 | E173: =CONCATENATE(Referencias!$C$12,", ",Referencias!$C$13) -> 11, 12 | F173: 161 | G173: 0.01901949203
A174: HOSPITAL DE MATARO | B174: 219360.5168 | C174: 220535.3251 | D174: 221827.1183 | E174: =CONCATENATE(Referencias!$C$12,", ",Referencias!$C$13) -> 11, 12 | F174: 402 | G174: 0.04748966332
A175: HOSPITAL DOS DE MAIG | B175: 124959.1004 | C175: 125628.332 | D175: 126364.2042 | E175: =CONCATENATE(Referencias!$C$12,", ",Referencias!$C$13) -> 11, 12 | F175: 229 | G175: 0.0270525694
A176: HOSPITAL GENERAL DE L'HOSPITALET | B176: 48564.89054 | C176: 48824.98492 | D176: 49110.97893 | E176: =CONCATENATE(Referencias!$C$12,", ",Referencias!$C$13) -> 11, 12 | F176: 89 | G176: 0.01051388069
A177: HOSPITAL RESIDENCIA SANT CAMIL - CONSORCI SANITARI DEL GARRAF. | B177: 160973.5136 | C177: 161835.6242 | D177: 162783.5818 | E177: =CONCATENATE(Referencias!$C$12,", ",Referencias!$C$13) -> 11, 12 | F177: 295 | G177: 0.0348493798
A178: HOSPITAL COMARCAL SANT JAUME DE CALELLA | B178: 127141.7921 | C178: 127822.7133 | D178: 128571.4392 | E178: =CONCATENATE(Referencias!$C$12,", ",Referencias!$C$13) -> 11, 12 | F178: 233 | G178: 0.02752510337
A179: HOSPITAL COMARCAL DE L'ALT PENEDES. | B179: 78576.90155 | C179: 78997.7284 | D179: 79460.46029 | E179: =CONCATENATE(Referencias!$C$12,", ",Referencias!$C$13) -> 11, 12 | F179: 144 | G179: 0.01701122268
A180: HOSPITAL GENERAL PENITENCIARI | B180: 17461.53368 | C180: 17555.05076 | D180: 17657.88007 | E180: =CONCATENATE(Referencias!$C$12,", ",Referencias!$C$13) -> 11, 12 | F180: 32 | G180: 0.003780271707
A181: HOSPITAL GENERAL DE VIC | B181: 159336.4948 | C181: 160189.8382 | D181: 161128.1556 | E181: =CONCATENATE(Referencias!$C$12,", ",Referencias!$C$13) -> 11, 12 | F181: 292 | G181: 0.03449497933
A182: HOSPITAL D'IGUALADA | B182: 152788.4197 | C182: 153606.6941 | D182: 154506.4506 | E182: =CONCATENATE(Referencias!$C$12,", ",Referencias!$C$13) -> 11, 12 | F182: 280 | G182: 0.03307737744
A183: HOSPITAL DEL MAR. | B183: 256466.2759 | C183: 257839.808 | D183: 259350.1135 | E183: =CONCATENATE(Referencias!$C$12,", ",Referencias!$C$13) -> 11, 12 | F183: 470 | G183: 0.0555227407
A184: HOSPITAL DE SABADELL | B184: 469824.3905 | C184: 472340.5844 | D184: 475107.3355 | E184: =CONCATENATE(Referencias!$C$12,", ",Referencias!$C$13) -> 11, 12 | F184: 861 | G184: 0.1017129356
A185: HOSPITAL CLINIC DE BARCELONA | B185: 460547.9508 | C185: 463014.4637 | D185: 465726.5867 | E185: =CONCATENATE(Referencias!$C$12,", ",Referencias!$C$13) -> 11, 12 | F185: 844 | G185: 0.09970466627
A186: HOSPITAL DE TERRASSA. | B186: 251009.5466 | C186: 252353.8546 | D186: 253832.0259 | E186: =CONCATENATE(Referencias!$C$12,", ",Referencias!$C$13) -> 11, 12 | F186: 460 | G186: 0.05434140579
A187: HOSPITAL DE SANT JOAN DESPI MOISES BROGGI | B187: 178980.7202 | C187: 179939.2703 | D187: 180993.2707 | E187: =CONCATENATE(Referencias!$C$12,", ",Referencias!$C$13) -> 11, 12 | F187: 328 | G187: 0.038747785
A188: HOSPITAL UNIVERSITARI DE GIRONA DR. JOSEP TRUETA | B188: =H$188*$G188 -> 337240.7945 | C188: =I$188*$G188 -> 339751.1899 | D188: 342395.3955 | E188: =CONCATENATE(Referencias!$C$12,", ",Referencias!$C$13) -> 11, 12 | F188: 431 | G188: =F188/SUM($F$188:$F$191) -> 0.5414572864 | H188: 622839.1472 | I188: 627475.5154 | J188: 632359.0135 | K188: Girona
A189: HOSPITAL SANTA CATERINA-IAS | B189: =H$188*$G189 -> 139278.1008 | C189: 140314.8766 | D189: 141406.9151 | E189: =CONCATENATE(Referencias!$C$12,", ",Referencias!$C$13) -> 11, 12 | F189: 178 | G189: =F189/SUM($F$188:$F$191) -> 0.2236180905 | H189: =H188-SUM(B188:B191) -> 0 | I189: =I188-SUM(C188:C191) -> 0 | J189: 0
A190: HOSPITAL COMARCAL DE BLANES | B190: 94677.81007 | C190: 95382.58463 | D190: 96124.92542 | E190: =CONCATENATE(Referencias!$C$12,", ",Referencias!$C$13) -> 11, 12 | F190: 121 | G190: 0.1520100503
A191: HOSPITAL DE CERDANYA / HOPITAL DE CERDAGNE | B191: 51642.44186 | C191: 52026.86434 | D191: 52431.7775 | E191: =CONCATENATE(Referencias!$C$12,", ",Referencias!$C$13) -> 11, 12 | F191: 66 | G191: 0.08291457286
A192: HOSPITAL UNIVERSITARI ARNAU DE VILANOVA DE LLEIDA. | B192: =H$192*$G192 -> 219657.2096 | C192: =I$192*$G192 -> 220301.7904 | D192: =J$192*$G192 -> 221048.5769 | E192: =CONCATENATE(Referencias!$C$12,", ",Referencias!$C$13) -> 11, 12 | F192: 463 | G192: =F192/SUM($F$192:$F$194) -> 0.6132450331 | H192: 358188.3224 | I192: 359239.4206 | J192: 360457.1826 | K192: Lleida
A193: HOSPITAL SANTA MARIA | B193: =H$192*$G193 -> 108642.5508 | C193: 108961.3607 | D193: 109330.7216 | E193: =CONCATENATE(Referencias!$C$12,", ",Referencias!$C$13) -> 11, 12 | F193: 229 | G193: =F193/SUM($F$192:$F$194) -> 0.3033112583 | H193: =H192-SUM(B192:B194) -> 0 | I193: =I192-SUM(C192:C194) -> 0 | J193: 0
A194: HOSPITAL COMARCAL DEL PALLARS | B194: 29888.562 | C194: 29976.26954 | D194: 30077.88411 | E194: =CONCATENATE(Referencias!$C$12,", ",Referencias!$C$13) -> 11, 12 | F194: 63 | G194: 0.08344370861
A195: HOSPITAL DE TORTOSA VERGE DE LA CINTA | B195: =H$195*$G195 -> 155217.6362 | C195: =I$195*$G195 -> 156244.1143 | D195: =J$195*$G195 -> 157340.6086 | E195: =CONCATENATE(Referencias!$C$12,", ",Referencias!$C$13) -> 11, 12 | F195: 248 | G195: =F195/SUM($F$195:$F$199) -> 0.2337417531 | H195: 664056.097 | I195: 668447.6019 | J195: 673138.652 | K195: Tarragona
A196: HOSPITAL UNIVERSITARI JOAN XXIII DE TARRAGONA | B196: =H$195*$G196 -> 232826.4544 | C196: 234366.1714 | D196: 236010.9129 | E196: =CONCATENATE(Referencias!$C$12,", ",Referencias!$C$13) -> 11, 12 | F196: 372 | G196: =F196/SUM($F$195:$F$199) -> 0.3506126296 | H196: =H195-SUM(B195:B199) -> 0 | I196: =I195-SUM(C195:C199) -> 0 | J196: 0
A197: CLINICA TERRES DE L'EBRE | B197: 25035.10262 | C197: 25200.6636 | D197: 25377.51751 | E197: =CONCATENATE(Referencias!$C$12,", ",Referencias!$C$13) -> 11, 12 | F197: 40 | G197: 0.03770028275
A198: HOSPITAL COMARCAL D'AMPOSTA | B198: 55077.22576 | C198: 55441.45991 | D198: 55830.53852 | E198: =CONCATENATE(Referencias!$C$12,", ",Referencias!$C$13) -> 11, 12 | F198: 88 | G198: 0.08294062205
A199: HOSPITAL UNIVERSITARI DE SANT JOAN DE REUS | B199: 195899.678 | C199: 197195.1926 | D199: 198579.0745 | E199: =CONCATENATE(Referencias!$C$12,", ",Referencias!$C$13) -> 11, 12 | F199: 313 | G199: 0.2950047125
A200: HOSPITAL VEGA BAJA DE ORIHUELA | B200: 144777.3528 | C200: 145597.1362 | D200: 146459.0659 | E200: =CONCATENATE(Referencias!$C$12,", ",Referencias!$C$13) -> 11, 12
... 112 more rows

Sheet Costes por CCAA cribado
A1: 1 | B1: =A1+1 -> 2 | C1: =B1+1 -> 3 | D1: 4 | E1: 5 | F1: =E1+1 -> 6 | G1: =F1+1 -> 7 | H1: =G1+1 -> 8 | I1: 9 | J1: 10 | K1: 11 | L1: 12 | M1: 13 | N1: 14 | O1: 15 | P1: 16 | Q1: 17 | R1: 18 | S1: 19 | T1: 20 | U1: 21 | V1: 22 | W1: 23 | X1: =W1+1 -> 24 | Y1: =X1+1 -> 25 | Z1: =Y1+1 -> 26 | AA1: =Z1+1 -> 27 | AB1: =AA1+1 -> 28 | AC1: =AB1+1 -> 29 | AD1: =AC1+1 -> 30 | AE1: =AD1+1 -> 31 | AF1: =AE1+1 -> 32 | AG1: =AF1+1 -> 33 | AH1: =AG1+1 -> 34 | AI1: =AH1+1 -> 35 | AJ1: =AI1+1 -> 36 | AK1: 37 | AL1: 38 | AM1: 39 | AN1: 40 | AO1: 41 | AP1: =AO1+1 -> 42 | AQ1: =AP1+1 -> 43 | AR1: =AQ1+1 -> 44 | AS1: =AR1+1 -> 45 | AT1: =AS1+1 -> 46 | AU1: 47 | AV1: 48 | AW1: 49 | AX1: 50 | AY1: 51 | AZ1: 52 | BA1: 53 | BB1: 54 | BC1: 55 | BD1: 56 | BE1: 57 | BF1: 58 | BG1: 59 | BH1: 60 | BI1: =BH1+1 -> 61 | BJ1: =BI1+1 -> 62 | BK1: =BJ1+1 -> 63 | BL1: =BK1+1 -> 64 | BM1: =BL1+1 -> 65 | BN1: =BM1+1 -> 66 | BO1: =BN1+1 -> 67 | BP1: =BO1+1 -> 68
B2: Hemograma | C2: Referencia | D2: Densiometía Osea | E2: Referencia | F2: Ecografia | G2: Referencia | H2: Colocación catéter venoso central | I2: Referencia | J2: Coste personal médico | K2: Coste personal de enfermería | L2: Coste nutricionista | M2: Referencia | N2: TC lumbar | O2: Referencia | P2: Albumina | Q2: Referencias | R2: Prealbumina | S2: Referencias | T2: Proteina ligadora de retinol | U2: Referencias | V2: Transferrina | W2: Colesterol Ttotal | X2: Trigliceridos | Y2: Proteina C Reactiva | Z2: Magnesio | AA2: Hierro | AB2: Fósforo | AC2: Ferritina | AD2: Referencias | AE2: Calcio | AF2: Referencias | AG2: Cloruros | AH2: Referencias | AI2: Potasio | AJ2: Sodio | AK2: Referencias | AL2: Vitamina A (retinol) | AM2: Vitamina D | AN2: Vitamina B1 | AO2: Vitamina B6 | AP2: Cobre | AQ2: Selenio | AR2: Zinc | AS2: Referencias | AT2: Vitamina B12 | AU2: Referencias | AV2: Vitamina E | AW2: Ácido fólico | AX2: Referencias | AY2: Vitamina K | AZ2: Referencias | BA2: Vitamina B2 | BB2: Referencias | BC2: Vitamina B3 | BD2: Referencias | BE2: Biotina | BF2: Referencias | BG2: Vitamina C | BH2: Referencias | BI2: Endoscopia esofágica sin biopsia | BJ2: Referencias | BK2: Radiologia intervencionista | BL2: Referencias | BM2: Gastrostomía radioscopia percutánea | BN2: Referencias | BO2: Gastrostomía endoscópica percutánea | BP2: Referencias
A3: 1 | B3: =A3+1 -> 2 | C3: =B3+1 -> 3 | D3: =C3+1 -> 4 | E3: =D3+1 -> 5 | F3: =E3+1 -> 6 | G3: =F3+1 -> 7 | H3: =G3+1 -> 8 | I3: =H3+1 -> 9 | J3: =I3+1 -> 10 | K3: =J3+1 -> 11 | L3: =K3+1 -> 12 | M3: =L3+1 -> 13 | N3: =M3+1 -> 14 | O3: =N3+1 -> 15 | P3: =O3+1 -> 16 | Q3: =P3+1 -> 17 | R3: =Q3+1 -> 18 | S3: =R3+1 -> 19 | T3: =S3+1 -> 20 | U3: =T3+1 -> 21 | V3: =U3+1 -> 22 | W3: =V3+1 -> 23 | X3: =W3+1 -> 24 | Y3: =X3+1 -> 25 | Z3: =Y3+1 -> 26 | AA3: =Z3+1 -> 27 | AB3: =AA3+1 -> 28 | AC3: =AB3+1 -> 29 | AD3: =AC3+1 -> 30 | AE3: =AD3+1 -> 31 | AF3: =AE3+1 -> 32 | AG3: =AF3+1 -> 33 | AH3: =AG3+1 -> 34 | AI3: =AH3+1 -> 35 | AJ3: =AI3+1 -> 36 | AK3: =AJ3+1 -> 37 | AL3: =AK3+1 -> 38 | AM3: =AL3+1 -> 39 | AN3: =AM3+1 -> 40 | AO3: =AN3+1 -> 41 | AP3: =AO3+1 -> 42 | AQ3: =AP3+1 -> 43 | AR3: =AQ3+1 -> 44 | AS3: =AR3+1 -> 45 | AT3: =AS3+1 -> 46 | AU3: =AT3+1 -> 47 | AV3: =AU3+1 -> 48 | AW3: =AV3+1 -> 49 | AX3: =AW3+1 -> 50 | AY3: =AX3+1 -> 51 | AZ3: =AY3+1 -> 52 | BA3: =AZ3+1 -> 53 | BB3: =BA3+1 -> 54 | BC3: =BB3+1 -> 55 | BD3: =BC3+1 -> 56 | BE3: =BD3+1 -> 57 | BF3: =BE3+1 -> 58 | BG3: =BF3+1 -> 59 | BH3: =BG3+1 -> 60 | BI3: =BH3+1 -> 61 | BJ3: =BI3+1 -> 62 | BM3: =BJ3+1 -> 63 | BN3: =BM3+1 -> 64 | BO3: =BN3+1 -> 65 | BP3: =BO3+1 -> 66
A4: España | B4: 4.41 | C4: =CONCATENATE(Referencias!$C$17,", ",Referencias!$C$19,", ",Referencias!$C$26,", ",Referencias!$C$27,", ",Referencias!$C$30,", ",Referencias!$C$33,", ",Referencias!$C$36) -> 16, 18, 25, 26, 29, 32, 35 | D4: 77.94227065 | E4: =CONCATENATE(Referencias!$C$17,", ",Referencias!$C$20,"-",Referencias!$C$22,", ",Referencias!$C$25,"-",Referencias!$C$27,", ",Referencias!$C$29,", ",Referencias!$C$31,"-",Referencias!$C$36) -> 16, 19-21, 24-26, 28, 30-35 | F4: 77.70932386 | G4: =CONCATENATE(Referencias!$C$17,", ",Referencias!$C$18,", ",Referencias!$C$20,"-",Referencias!$C$29,", ",Referencias!$C$31,"-",Referencias!$C$36) -> 16, 17, 19-28, 30-35 | H4: 1393.86875 | I4: =CONCATENATE(Referencias!$C$17,", ",Referencias!$C$21,", ",Referencias!$C$27,", ",Referencias!$C$28,", ",Referencias!$C$33,", ",Referencias!$C$34,", ",Referencias!$C$36) -> 16, 20, 26, 27, 32, 33, 35 | J4: 3525 | K4: 2041.28 | L4: 2028.6 | M4: =CONCATENATE(Referencias!$C$36,"-",Referencias!$C$54) -> 35-53 | N4: 82 | O4: =CONCATENATE(Referencias!$C$21,", ",Referencias!$C$24,", ",Referencias!$C$26,"-",Referencias!$C$28,", ",Referencias!$C$33,", ",Referencias!$C$36) -> 20, 23, 25-27, 32, 35 | P4: 0.615150835 | Q4: =CONCATENATE(Referencias!$C$17,", ",Referencias!$C$19,", ",Referencias!$C$21,", ",Referencias!$C$22,", ", Referencias!$C$26,"-",Referencias!$C$28,", ",Referencias!$C$33,", ",Referencias!$C$36) -> 16, 18, 20, 21, 25-27, 32, 35 | R4: 11.615 | S4: =CONCATENATE(Referencias!$C$17,", ",Referencias!$C$22,", ",Referencias!$C$26,"-",Referencias!$C$28,", ",Referencias!$C$33) -> 16, 21, 25-27, 32 | T4: 13.32 | U4: =CONCATENATE(Referencias!$C$17,", ",Referencias!$C$21,", ",Referencias!$C$22,", ",Referencias!$C$26,"-",Referencias!$C$28) -> 16, 20, 21, 25-27 | V4: 8.39 | W4: 0.69030167 | X4: 0.93 | Y4: 7.94 | Z4: 1.18 | AA4: 0.94 | AB4: 0.69030167 | AC4: 9.95 | AD4: =CONCATENATE(Referencias!$C$17,", ",Referencias!$C$21,", ",Referencias!$C$22,", ",Referencias!$C$26,"-",Referencias!$C$28,", ",Referencias!$C$33) -> 16, 20, 21, 25-27, 32 | AE4: 0.71 | AF4: =CONCATENATE(Referencias!$C$17,", ",Referencias!$C$26," - ",Referencias!$C$28,", ",Referencias!$C$33) -> 16, 25 - 27, 32 | AG4: 0.7766666667 | AH4: =CONCATENATE(Referencias!$C$17,", ",Referencias!$C$19,", ",Referencias!$C$22,", ",Referencias!$C$26,"-",Referencias!$C$28,", ",Referencias!$C$33,", ",Referencias!$C$36) -> 16, 18, 21, 25-27, 32, 35 | AI4: 1.02 | AJ4: 1.02 | AK4: =CONCATENATE(Referencias!$C$17,", ",Referencias!$C$19,", ",Referencias!$C$21,", ",Referencias!$C$22,", ",Referencias!$C$26,"-",Referencias!$C$28,", ",Referencias!$C$33,", ",Referencias!$C$36) -> 16, 18, 20, 21, 25-27, 32, 35 | AL4: 17.315 | AM4: 33.15 | AN4: 30.25 | AO4: 18.675 | AP4: 10.825 | AQ4: 21.22 | AR4: 11.64 | AS4: =CONCATENATE(Referencias!$C$17,", ",Referencias!$C$21,", ",Referencias!$C$26,"-",Referencias!$C$28,", ",Referencias!$C$33) -> 16, 20, 25-27, 32 | AT4: 11.28 | AU4: =CONCATENATE(Referencias!$C$17,", ",Referencias!$C$21,", ",Referencias!$C$26,", ",Referencias!$C$28,", ",Referencias!$C$33) -> 16, 20, 25, 27, 32 | AV4: 17.47 | AW4: 9.29 | AX4: =CONCATENATE(Referencias!$C$17,", ",Referencias!$C$21,", ",Referencias!$C$26,", ",Referencias!$C$27,", ",Referencias!$C$33) -> 16, 20, 25, 26, 32 | AY4: 42.375 | AZ4: =CONCATENATE(Referencias!$C$26,", ",Referencias!$C$33) -> 25, 32 | BA4: 30.69 | BB4: =CONCATENATE(Referencias!$C$26,", ",Referencias!$C$28) -> 25, 27 | BC4: 31.41 | BD4: =CONCATENATE(Referencias!$C$26,", ",Referencias!$C$27) -> 25, 26 | BE4: 31.785 | BF4: =CONCATENATE(Referencias!$C$21,", ",Referencias!$C$26) -> 20, 25 | BG4: 13.95 | BH4: =CONCATENATE(Referencias!$C$17,", ",Referencias!$C$21,", ",Referencias!$C$26,"-",Referencias!$C$28) -> 16, 20, 25-27 | BI4: 210 | BJ4: =CONCATENATE(Referencias!$C$17,", ",Referencias!$C$18,", ",Referencias!$C$20,"-",Referencias!$C$34,", ",Referencias!$C$36) -> 16, 17, 19-33, 35 | BK4: 479.45 | BL4: =CONCATENATE(Referencias!$C$17,", ",Referencias!$C$22,", ",Referencias!$C$27,", ",Referencias!$C$28,", ",Referencias!$C$33,", ",Referencias!$C$34,", ",Referencias!$C$36) -> 16, 21, 26, 27, 32, 33, 35 | BM4: 1424 | BN4: =CONCATENATE(Referencias!$C$17,", ",Referencias!$C$21,", ",Referencias!$C$22,", ",Referencias!$C$27,"-",Referencias!$C$29,", ",Referencias!$C$33,", ",Referencias!$C$34,", ",Referencias!$C$36) -> 16, 20, 21, 26-28, 32, 33, 35 | BO4: 748.2106422 | BP4: =CONCATENATE(Referencias!$C$17,", ",Referencias!$C$21,", ",Referencias!$C$22,", ",Referencias!$C$25,", ",Referencias!$C$27,", ",Referencias!$C$28,", ",Referencias!$C$31,", ",Referencias!$C$32,", ",Referencias!$C$36) -> 16, 20, 21, 24, 26, 27, 30, 31, 35
A5: Andalucía | B5: 5.3 | C5: =Referencias!$C$17 -> 16 | D5: 53.46 | E5: =Referencias!$C$17 -> 16 | F5: 36.92 | G5: =Referencias!$C$17 -> 16 | H5: 655.33 | I5: =Referencias!$C$17 -> 16 | J5: 3450.23 | K5: 2009.97 | L5: 2856.1 | M5: =Referencias!$C$37 -> 36 | N5: 82 | O5: =CONCATENATE(Referencias!$C$21,", ",Referencias!$C$24,", ",Referencias!$C$26,"-",Referencias!$C$28,", ",Referencias!$C$33,", ",Referencias!$C$36) -> 20, 23, 25-27, 32, 35 | P5: 0.23 | Q5: =Referencias!$C$17 -> 16 | R5: 6.99 | S5: =Referencias!$C$17 -> 16 | T5: 6.99 | U5: =Referencias!$C$17 -> 16 | V5: 6.3 | W5: 0.7 | X5: 0.47 | Y5: 7.94 | Z5: 1.16 | AA5: 2.34 | AB5: 0.7 | AC5: 9.95 | AD5: =Referencias!$C$17 -> 16 | AE5: 0.47 | AF5: =Referencias!$C$17 -> 16 | AG5: 0.47 | AH5: =Referencias!$C$17 -> 16 | AI5: 0.93 | AJ5: 0.93 | AK5: =Referencias!$C$17 -> 16 | AL5: 17.47 | AM5: 11.65 | AN5: 9.32 | AO5: 9.32 | AP5: 11.65 | AQ5: 11.65 | AR5: 11.65 | AS5: =Referencias!$C$17 -> 16 | AT5: 11.28 | AU5: =Referencias!$C$17 -> 16 | AV5: 17.47 | AW5: 9.29 | AX5: =Referencias!$C$17 -> 16 | AY5: 42.375 | AZ5: =CONCATENATE(Referencias!$C$26,", ",Referencias!$C$33) -> 25, 32 | BA5: 30.69 | BB5: =CONCATENATE(Referencias!$C$26,", ",Referencias!$C$28) -> 25, 27 | BC5: 31.41 | BD5: =CONCATENATE(Referencias!$C$26,", ",Referencias!$C$27) -> 25, 26 | BE5: 31.785 | BF5: =CONCATENATE(Referencias!$C$21,", ",Referencias!$C$26) -> 20, 25 | BG5: 17.47 | BH5: =Referencias!$C$17 -> 16 | BI5: 64.92 | BJ5: =Referencias!$C$17 -> 16 | BK5: 455.9 | BL5: =Referencias!$C$17 -> 16 | BM5: 1514 | BN5: =Referencias!$C$17 -> 16 | BO5: 1514 | BP5: =Referencias!$C$17 -> 16
A6: Aragón | B6: 9.355255441 | C6: =CONCATENATE(Referencias!$C$19,", ",Referencias!$C$36) -> 18, 35 | D6: 77.94227065 | E6: =CONCATENATE(Referencias!$C$17,", ",Referencias!$C$20,"-",Referencias!$C$22,", ",Referencias!$C$25,"-",Referencias!$C$27,", ",Referencias!$C$29,", ",Referencias!$C$31,"-",Referencias!$C$36) -> 16, 19-21, 24-26, 28, 30-35 | F6: 18.2632171 | G6: =CONCATENATE(Referencias!$C$18,",",Referencias!$C$36) -> 17,35 | H6: 1393.86875 | I6: =CONCATENATE(Referencias!$C$17,", ",Referencias!$C$21,", ",Referencias!$C$27,", ",Referencias!$C$28,", ",Referencias!$C$33,", ",Referencias!$C$34,", ",Referencias!$C$36) -> 16, 20, 26, 27, 32, 33, 35 | J6: 3542.03 | K6: 2084.63 | L6: 1612.12 | M6: =Referencias!$C$38 -> 37 | N6: 82 | O6: =CONCATENATE(Referencias!$C$21,", ",Referencias!$C$24,", ",Referencias!$C$26,"-",Referencias!$C$28,", ",Referencias!$C$33,", ",Referencias!$C$36) -> 20, 23, 25-27, 32, 35 | P6: 4.990213821 | Q6: =CONCATENATE(Referencias!$C$19,", ",Referencias!$C$36) -> 18, 35 | R6: 11.615 | S6: =CONCATENATE(Referencias!$C$17,", ",Referencias!$C$22,", ",Referencias!$C$26,"-",Referencias!$C$28,", ",Referencias!$C$33) -> 16, 21, 25-27, 32 | T6: 13.32 | U6: =CONCATENATE(Referencias!$C$17,", ",Referencias!$C$21,", ",Referencias!$C$22,", ",Referencias!$C$26,"-",Referencias!$C$28) -> 16, 20, 21, 25-27 | V6: 8.39 | W6: 0.69030167 | X6: 0.93 | Y6: 7.94 | Z6: 1.18 | AA6: 0.94 | AB6: 0.69030167 | AC6: 9.95 | AD6: =CONCATENATE(Referencias!$C$17,", ",Referencias!$C$21,", ",Referencias!$C$22,", ",Referencias!$C$26,"-",Referencias!$C$28,", ",Referencias!$C$33) -> 16, 20, 21, 25-27, 32 | AE6: 0.71 | AF6: =CONCATENATE(Referencias!$C$17,", ",Referencias!$C$26," - ",Referencias!$C$28,", ",Referencias!$C$33) -> 16, 25 - 27, 32 | AG6: 5.872153177 | AH6: =CONCATENATE(Referencias!$C$19,", ",Referencias!$C$36) -> 18, 35 | AI6: 5.872153177 | AJ6: 5.872153177 | AK6: =CONCATENATE(Referencias!$C$19,", ",Referencias!$C$36) -> 18, 35 | AL6: 17.315 | AM6: 33.15 | AN6: 30.25 | AO6: 18.675 | AP6: 10.825 | AQ6: 21.22 | AR6: 11.64 | AS6: =CONCATENATE(Referencias!$C$17,", ",Referencias!$C$21,", ",Referencias!$C$26,"-",Referencias!$C$28,", ",Referencias!$C$33) -> 16, 20, 25-27, 32 | AT6: 11.28 | AU6: =CONCATENATE(Referencias!$C$17,", ",Referencias!$C$21,", ",Referencias!$C$26,", ",Referencias!$C$28,", ",Referencias!$C$33) -> 16, 20, 25, 27, 32 | AV6: 17.47 | AW6: 9.29 | AX6: =CONCATENATE(Referencias!$C$17,", ",Referencias!$C$21,", ",Referencias!$C$26,", ",Referencias!$C$27,", ",Referencias!$C$33) -> 16, 20, 25, 26, 32 | AY6: 42.375 | AZ6: =CONCATENATE(Referencias!$C$26,", ",Referencias!$C$33) -> 25, 32 | BA6: 30.69 | BB6: =CONCATENATE(Referencias!$C$26,", ",Referencias!$C$28) -> 25, 27 | BC6: 31.41 | BD6: =CONCATENATE(Referencias!$C$26,", ",Referencias!$C$27) -> 25, 26 | BE6: 31.785 | BF6: =CONCATENATE(Referencias!$C$21,", ",Referencias!$C$26) -> 20, 25 | BG6: 13.95 | BH6: =CONCATENATE(Referencias!$C$17,", ",Referencias!$C$21,", ",Referencias!$C$26,"-",Referencias!$C$28) -> 16, 20, 25-27 | BI6: 56.49421822 | BJ6: =CONCATENATE(Referencias!$C$18,",",Referencias!$C$36) -> 17,35 | BK6: 479.45 | BL6: =CONCATENATE(Referencias!$C$17,", ",Referencias!$C$22,", ",Referencias!$C$27,", ",Referencias!$C$28,", ",Referencias!$C$33,", ",Referencias!$C$34,", ",Referencias!$C$36) -> 16, 21, 26, 27, 32, 33, 35 | BM6: 1424 | BN6: =CONCATENATE(Referencias!$C$17,", ",Referencias!$C$21,", ",Referencias!$C$22,", ",Referencias!$C$27,"-",Referencias!$C$29,", ",Referencias!$C$33,", ",Referencias!$C$34,", ",Referencias!$C$36) -> 16, 20, 21, 26-28, 32, 33, 35 | BO6: 748.2106422 | BP6: =CONCATENATE(Referencias!$C$17,", ",Referencias!$C$21,", ",Referencias!$C$22,", ",Referencias!$C$25,", ",Referencias!$C$27,", ",Referencias!$C$28,", ",Referencias!$C$31,", ",Referencias!$C$32,", ",Referencias!$C$36) -> 16, 20, 21, 24, 26, 27, 30, 31, 35
A7: Principado de Asturias | B7: 4.41 | C7: =CONCATENATE(Referencias!$C$17,", ",Referencias!$C$19,", ",Referencias!$C$26,", ",Referencias!$C$27,", ",Referencias!$C$30,", ",Referencias!$C$33,", ",Referencias!$C$36) -> 16, 18, 25, 26, 29, 32, 35 | D7: 30.3 | E7: =Referencias!$C$20 -> 19 | F7: 49.9243 | G7: =Referencias!$C$20 -> 19 | H7: 1393.86875 | I7: =CONCATENATE(Referencias!$C$17,", ",Referencias!$C$21,", ",Referencias!$C$27,", ",Referencias!$C$28,", ",Referencias!$C$33,", ",Referencias!$C$34,", ",Referencias!$C$36) -> 16, 20, 26, 27, 32, 33, 35 | J7: 3678.66 | K7: 2028.6 | L7: 2028.6 | M7: =Referencias!$C$39 -> 38 | N7: 82 | O7: =CONCATENATE(Referencias!$C$21,", ",Referencias!$C$24,", ",Referencias!$C$26,"-",Referencias!$C$28,", ",Referencias!$C$33,", ",Referencias!$C$36) -> 20, 23, 25-27, 32, 35 | P7: 0.615150835 | Q7: =CONCATENATE(Referencias!$C$17,", ",Referencias!$C$19,", ",Referencias!$C$21,", ",Referencias!$C$22,", ", Referencias!$C$26,"-",Referencias!$C$28,", ",Referencias!$C$33,", ",Referencias!$C$36) -> 16, 18, 20, 21, 25-27, 32, 35 | R7: 11.615 | S7: =CONCATENATE(Referencias!$C$17,", ",Referencias!$C$22,", ",Referencias!$C$26,"-",Referencias!$C$28,", ",Referencias!$C$33) -> 16, 21, 25-27, 32 | T7: 13.32 | U7: =CONCATENATE(Referencias!$C$17,", ",Referencias!$C$21,", ",Referencias!$C$22,", ",Referencias!$C$26,"-",Referencias!$C$28) -> 16, 20, 21, 25-27 | V7: 8.39 | W7: 0.69030167 | X7: 0.93 | Y7: 7.94 | Z7: 1.18 | AA7: 0.94 | AB7: 0.69030167 | AC7: 9.95 | AD7: =CONCATENATE(Referencias!$C$17,", ",Referencias!$C$21,", ",Referencias!$C$22,", ",Referencias!$C$26,"-",Referencias!$C$28,", ",Referencias!$C$33) -> 16, 20, 21, 25-27, 32 | AE7: 0.71 | AF7: =CONCATENATE(Referencias!$C$17,", ",Referencias!$C$26," - ",Referencias!$C$28,", ",Referencias!$C$33) -> 16, 25 - 27, 32 | AG7: 0.7766666667 | AH7: =CONCATENATE(Referencias!$C$17,", ",Referencias!$C$19,", ",Referencias!$C$22,", ",Referencias!$C$26,"-",Referencias!$C$28,", ",Referencias!$C$33,", ",Referencias!$C$36) -> 16, 18, 21, 25-27, 32, 35 | AI7: 1.02 | AJ7: 1.02 | AK7: =CONCATENATE(Referencias!$C$17,", ",Referencias!$C$19,", ",Referencias!$C$21,", ",Referencias!$C$22,", ",Referencias!$C$26,"-",Referencias!$C$28,", ",Referencias!$C$33,", ",Referencias!$C$36) -> 16, 18, 20, 21, 25-27, 32, 35 | AL7: 17.315 | AM7: 33.15 | AN7: 30.25 | AO7: 18.675 | AP7: 10.825 | AQ7: 21.22 | AR7: 11.64 | AS7: =CONCATENATE(Referencias!$C$17,", ",Referencias!$C$21,", ",Referencias!$C$26,"-",Referencias!$C$28,", ",Referencias!$C$33) -> 16, 20, 25-27, 32 | AT7: 11.28 | AU7: =CONCATENATE(Referencias!$C$17,", ",Referencias!$C$21,", ",Referencias!$C$26,", ",Referencias!$C$28,", ",Referencias!$C$33) -> 16, 20, 25, 27, 32 | AV7: 17.47 | AW7: 9.29 | AX7: =CONCATENATE(Referencias!$C$17,", ",Referencias!$C$21,", ",Referencias!$C$26,", ",Referencias!$C$27,", ",Referencias!$C$33) -> 16, 20, 25, 26, 32 | AY7: 42.375 | AZ7: =CONCATENATE(Referencias!$C$26,", ",Referencias!$C$33) -> 25, 32 | BA7: 30.69 | BB7: =CONCATENATE(Referencias!$C$26,", ",Referencias!$C$28) -> 25, 27 | BC7: 31.41 | BD7: =CONCATENATE(Referencias!$C$26,", ",Referencias!$C$27) -> 25, 26 | BE7: 31.785 | BF7: =CONCATENATE(Referencias!$C$21,", ",Referencias!$C$26) -> 20, 25 | BG7: 13.95 | BH7: =CONCATENATE(Referencias!$C$17,", ",Referencias!$C$21,", ",Referencias!$C$26,"-",Referencias!$C$28) -> 16, 20, 25-27 | BI7: 328.25 | BJ7: =Referencias!$C$20 -> 19 | BK7: 479.45 | BL7: =CONCATENATE(Referencias!$C$17,", ",Referencias!$C$22,", ",Referencias!$C$27,", ",Referencias!$C$28,", ",Referencias!$C$33,", ",Referencias!$C$34,", ",Referencias!$C$36) -> 16, 21, 26, 27, 32, 33, 35 | BM7: 1424 | BN7: =CONCATENATE(Referencias!$C$17,", ",Referencias!$C$21,", ",Referencias!$C$22,", ",Referencias!$C$27,"-",Referencias!$C$29,", ",Referencias!$C$33,", ",Referencias!$C$34,", ",Referencias!$C$36) -> 16, 20, 21, 26-28, 32, 33, 35 | BO7: 748.2106422 | BP7: =CONCATENATE(Referencias!$C$17,", ",Referencias!$C$21,", ",Referencias!$C$22,", ",Referencias!$C$25,", ",Referencias!$C$27,", ",Referencias!$C$28,", ",Referencias!$C$31,", ",Referencias!$C$32,", ",Referencias!$C$36) -> 16, 20, 21, 24, 26, 27, 30, 31, 35
A8: Islas Baleares | B8: 4.41 | C8: =CONCATENATE(Referencias!$C$17,", ",Referencias!$C$19,", ",Referencias!$C$26,", ",Referencias!$C$27,", ",Referencias!$C$30,", ",Referencias!$C$33,", ",Referencias!$C$36) -> 16, 18, 25, 26, 29, 32, 35 | D8: 31 | E8: =Referencias!$C$21 -> 20 | F8: 82 | G8: =Referencias!$C$21 -> 20 | H8: 1666.25 | I8: =Referencias!$C$21 -> 20 | J8: 3579.18003 | K8: 2707.326811 | L8: 2219.052876 | M8: =CONCATENATE(Referencias!$C$36,", ",Referencias!$C$40) -> 35, 39 | N8: 76 | O8: =Referencias!$C$21 -> 20 | P8: 3 | Q8: =Referencias!$C$21 -> 20 | R8: 11.615 | S8: =CONCATENATE(Referencias!$C$17,", ",Referencias!$C$22,", ",Referencias!$C$26,"-",Referencias!$C$28,", ",Referencias!$C$33) -> 16, 21, 25-27, 32 | T8: 11 | U8: =Referencias!$C$21 -> 20 | V8: 46 | W8: 4 | X8: 7 | Y8: 17 | Z8: 6 | AA8: 7 | AB8: 6 | AC8: 14 | AD8: =Referencias!$C$21 -> 20 | AE8: 0.71 | AF8: =CONCATENATE(Referencias!$C$17,", ",Referencias!$C$26," - ",Referencias!$C$28,", ",Referencias!$C$33) -> 16, 25 - 27, 32 | AG8: 0.7766666667 | AH8: =CONCATENATE(Referencias!$C$17,", ",Referencias!$C$19,", ",Referencias!$C$22,", ",Referencias!$C$26,"-",Referencias!$C$28,", ",Referencias!$C$33,", ",Referencias!$C$36) -> 16, 18, 21, 25-27, 32, 35 | AI8: 3 | AJ8: 3 | AK8: =Referencias!$C$21 -> 20 | AL8: 14 | AM8: 36 | AN8: 32 | AO8: 27 | AP8: 18 | AQ8: 19 | AR8: 9 | AS8: =Referencias!$C$21 -> 20 | AT8: 21 | AU8: =Referencias!$C$21 -> 20 | AV8: 14 | AW8: 7 | AX8: =Referencias!$C$21 -> 20 | AY8: 42.375 | AZ8: =CONCATENATE(Referencias!$C$26,", ",Referencias!$C$33) -> 25, 32 | BA8: 30.69 | BB8: =CONCATENATE(Referencias!$C$26,", ",Referencias!$C$28) -> 25, 27 | BC8: 31.41 | BD8: =CONCATENATE(Referencias!$C$26,", ",Referencias!$C$27) -> 25, 26 | BE8: 13 | BF8: =Referencias!$C$21 -> 20 | BG8: 13 | BH8: =Referencias!$C$21 -> 20 | BI8: 439 | BJ8: =Referencias!$C$21 -> 20 | BK8: 479.45 | BL8: =CONCATENATE(Referencias!$C$17,", ",Referencias!$C$22,", ",Referencias!$C$27,", ",Referencias!$C$28,", ",Referencias!$C$33,", ",Referencias!$C$34,", ",Referencias!$C$36) -> 16, 21, 26, 27, 32, 33, 35 | BM8: 1573 | BN8: =Referencias!$C$21 -> 20 | BO8: 918 | BP8: =Referencias!$C$21 -> 20
A9: Canarias | B9: 4.41 | C9: =CONCATENATE(Referencias!$C$17,", ",Referencias!$C$19,", ",Referencias!$C$26,", ",Referencias!$C$27,", ",Referencias!$C$30,", ",Referencias!$C$33,", ",Referencias!$C$36) -> 16, 18, 25, 26, 29, 32, 35 | D9: 77.94227065 | E9: =Referencias!$C$22 -> 21 | F9: 100.0628331 | G9: =Referencias!$C$22 -> 21 | H9: 1393.86875 | I9: =CONCATENATE(Referencias!$C$17,", ",Referencias!$C$21,", ",Referencias!$C$27,", ",Referencias!$C$28,", ",Referencias!$C$33,", ",Referencias!$C$34,", ",Referencias!$C$36) -> 16, 20, 26, 27, 32, 33, 35 | J9: 3478.28 | K9: 2267.94 | L9: 2267.94 | M9: =Referencias!$C$41 -> 40 | N9: 82 | O9: =CONCATENATE(Referencias!$C$21,", ",Referencias!$C$24,", ",Referencias!$C$26,"-",Referencias!$C$28,", ",Referencias!$C$33,", ",Referencias!$C$36) -> 20, 23, 25-27, 32, 35 | P9: 0.69030167 | Q9: =Referencias!$C$22 -> 21 | R9: 17.43269292 | S9: =Referencias!$C$22 -> 21 | T9: 17.43269292 | U9: =Referencias!$C$22 -> 21 | V9: 17.43269292 | W9: 0.69030167 | X9: 0.69030167 | Y9: 17.43269292 | Z9: 0.69030167 | AA9: 0.69030167 | AB9: 0.69030167 | AC9: 0.69030167 | AD9: =Referencias!$C$22 -> 21 | AE9: 0.71 | AF9: =CONCATENATE(Referencias!$C$17,", ",Referencias!$C$26," - ",Referencias!$C$28,", ",Referencias!$C$33) -> 16, 25 - 27, 32 | AG9: 0.69030167 | AH9: =Referencias!$C$22 -> 21 | AI9: 0.69030167 | AJ9: 0.69030167 | AK9: =Referencias!$C$22 -> 21 | AL9: 17.315 | AM9: 33.15 | AN9: 30.25 | AO9: 18.675 | AP9: 10.825 | AQ9: 21.22 | AR9: 11.64 | AS9: =CONCATENATE(Referencias!$C$17,", ",Referencias!$C$21,", ",Referencias!$C$26,"-",Referencias!$C$28,", ",Referencias!$C$33) -> 16, 20, 25-27, 32 | AT9: 11.28 | AU9: =CONCATENATE(Referencias!$C$17,", ",Referencias!$C$21,", ",Referencias!$C$26,", ",Referencias!$C$28,", ",Referencias!$C$33) -> 16, 20, 25, 27, 32 | AV9: 17.47 | AW9: 9.29 | AX9: =CONCATENATE(Referencias!$C$17,", ",Referencias!$C$21,", ",Referencias!$C$26,", ",Referencias!$C$27,", ",Referencias!$C$33) -> 16, 20, 25, 26, 32 | AY9: 42.375 | AZ9: =CONCATENATE(Referencias!$C$26,", ",Referencias!$C$33) -> 25, 32 | BA9: 30.69 | BB9: =CONCATENATE(Referencias!$C$26,", ",Referencias!$C$28) -> 25, 27 | BC9: 31.41 | BD9: =CONCATENATE(Referencias!$C$26,", ",Referencias!$C$27) -> 25, 26 | BE9: 31.785 | BF9: =CONCATENATE(Referencias!$C$21,", ",Referencias!$C$26) -> 20, 25 | BG9: 13.95 | BH9: =CONCATENATE(Referencias!$C$17,", ",Referencias!$C$21,", ",Referencias!$C$26,"-",Referencias!$C$28) -> 16, 20, 25-27 | BI9: 239.1534681 | BJ9: =Referencias!$C$22 -> 21 | BK9: 257.0291905 | BL9: =Referencias!$C$22 -> 21 | BM9: 963.321132 | BN9: =Referencias!$C$22 -> 21 | BO9: 578.4212844 | BP9: =Referencias!$C$22 -> 21
A10: Cantabria | B10: 4.41 | C10: =CONCATENATE(Referencias!$C$17,", ",Referencias!$C$19,", ",Referencias!$C$26,", ",Referencias!$C$27,", ",Referencias!$C$30,", ",Referencias!$C$33,", ",Referencias!$C$36) -> 16, 18, 25, 26, 29, 32, 35 | D10: 77.94227065 | E10: =CONCATENATE(Referencias!$C$17,", ",Referencias!$C$20,"-",Referencias!$C$22,", ",Referencias!$C$25,"-",Referencias!$C$27,", ",Referencias!$C$29,", ",Referencias!$C$31,"-",Referencias!$C$36) -> 16, 19-21, 24-26, 28, 30-35 | F10: 77.70932386 | G10: =CONCATENATE(Referencias!$C$17,", ",Referencias!$C$18,", ",Referencias!$C$20,"-",Referencias!$C$29,", ",Referencias!$C$31,"-",Referencias!$C$36) -> 16, 17, 19-28, 30-35 | H10: 1393.86875 | I10: =CONCATENATE(Referencias!$C$17,", ",Referencias!$C$21,", ",Referencias!$C$27,", ",Referencias!$C$28,", ",Referencias!$C$33,", ",Referencias!$C$34,", ",Referencias!$C$36) -> 16, 20, 26, 27, 32, 33, 35 | J10: 3302.060675 | K10: 1861.214601 | L10: 1861.214601 | M10: =CONCATENATE(Referencias!$C$36,", ",Referencias!$C$42) -> 35, 41 | N10: 82 | O10: =CONCATENATE(Referencias!$C$21,", ",Referencias!$C$24,", ",Referencias!$C$26,"-",Referencias!$C$28,", ",Referencias!$C$33,", ",Referencias!$C$36) -> 20, 23, 25-27, 32, 35 | P10: 0.615150835 | Q10: =CONCATENATE(Referencias!$C$17,", ",Referencias!$C$19,", ",Referencias!$C$21,", ",Referencias!$C$22,", ", Referencias!$C$26,"-",Referencias!$C$28,", ",Referencias!$C$33,", ",Referencias!$C$36) -> 16, 18, 20, 21, 25-27, 32, 35 | R10: 11.615 | S10: =CONCATENATE(Referencias!$C$17,", ",Referencias!$C$22,", ",Referencias!$C$26,"-",Referencias!$C$28,", ",Referencias!$C$33) -> 16, 21, 25-27, 32 | T10: 13.32 | U10: =CONCATENATE(Referencias!$C$17,", ",Referencias!$C$21,", ",Referencias!$C$22,", ",Referencias!$C$26,"-",Referencias!$C$28) -> 16, 20, 21, 25-27 | V10: 8.39 | W10: 0.69030167 | X10: 0.93 | Y10: 7.94 | Z10: 1.18 | AA10: 0.94 | AB10: 0.69030167 | AC10: 9.95 | AD10: =CONCATENATE(Referencias!$C$17,", ",Referencias!$C$21,", ",Referencias!$C$22,", ",Referencias!$C$26,"-",Referencias!$C$28,", ",Referencias!$C$33) -> 16, 20, 21, 25-27, 32 | AE10: 0.71 | AF10: =CONCATENATE(Referencias!$C$17,", ",Referencias!$C$26," - ",Referencias!$C$28,", ",Referencias!$C$33) -> 16, 25 - 27, 32 | AG10: 0.7766666667 | AH10: =CONCATENATE(Referencias!$C$17,", ",Referencias!$C$19,", ",Referencias!$C$22,", ",Referencias!$C$26,"-",Referencias!$C$28,", ",Referencias!$C$33,", ",Referencias!$C$36) -> 16, 18, 21, 25-27, 32, 35 | AI10: 1.02 | AJ10: 1.02 | AK10: =CONCATENATE(Referencias!$C$17,", ",Referencias!$C$19,", ",Referencias!$C$21,", ",Referencias!$C$22,", ",Referencias!$C$26,"-",Referencias!$C$28,", ",Referencias!$C$33,", ",Referencias!$C$36) -> 16, 18, 20, 21, 25-27, 32, 35 | AL10: 17.315 | AM10: 33.15 | AN10: 30.25 | AO10: 18.675 | AP10: 10.825 | AQ10: 21.22 | AR10: 11.64 | AS10: =CONCATENATE(Referencias!$C$17,", ",Referencias!$C$21,", ",Referencias!$C$26,"-",Referencias!$C$28,", ",Referencias!$C$33) -> 16, 20, 25-27, 32 | AT10: 11.28 | AU10: =CONCATENATE(Referencias!$C$17,", ",Referencias!$C$21,", ",Referencias!$C$26,", ",Referencias!$C$28,", ",Referencias!$C$33) -> 16, 20, 25, 27, 32 | AV10: 17.47 | AW10: 9.29 | AX10: =CONCATENATE(Referencias!$C$17,", ",Referencias!$C$21,", ",Referencias!$C$26,", ",Referencias!$C$27,", ",Referencias!$C$33) -> 16, 20, 25, 26, 32 | AY10: 42.375 | AZ10: =CONCATENATE(Referencias!$C$26,", ",Referencias!$C$33) -> 25, 32 | BA10: 30.69 | BB10: =CONCATENATE(Referencias!$C$26,", ",Referencias!$C$28) -> 25, 27 | BC10: 31.41 | BD10: =CONCATENATE(Referencias!$C$26,", ",Referencias!$C$27) -> 25, 26 | BE10: 31.785 | BF10: =CONCATENATE(Referencias!$C$21,", ",Referencias!$C$26) -> 20, 25 | BG10: 13.95 | BH10: =CONCATENATE(Referencias!$C$17,", ",Referencias!$C$21,", ",Referencias!$C$26,"-",Referencias!$C$28) -> 16, 20, 25-27 | BI10: 90 | BJ10: =Referencias!C23 -> 22 | BK10: 479.45 | BL10: =CONCATENATE(Referencias!$C$17,", ",Referencias!$C$22,", ",Referencias!$C$27,", ",Referencias!$C$28,", ",Referencias!$C$33,", ",Referencias!$C$34,", ",Referencias!$C$36) -> 16, 21, 26, 27, 32, 33, 35 | BM10: 1424 | BN10: =CONCATENATE(Referencias!$C$17,", ",Referencias!$C$21,", ",Referencias!$C$22,", ",Referencias!$C$27,"-",Referencias!$C$29,", ",Referencias!$C$33,", ",Referencias!$C$34,", ",Referencias!$C$36) -> 16, 20, 21, 26-28, 32, 33, 35 | BO10: 748.2106422 | BP10: =CONCATENATE(Referencias!$C$17,", ",Referencias!$C$21,", ",Referencias!$C$22,", ",Referencias!$C$25,", ",Referencias!$C$27,", ",Referencias!$C$28,", ",Referencias!$C$31,", ",Referencias!$C$32,", ",Referencias!$C$36) -> 16, 20, 21, 24, 26, 27, 30, 31, 35
A11: Castilla y León | B11: 4.41 | C11: =CONCATENATE(Referencias!$C$17,", ",Referencias!$C$19,", ",Referencias!$C$26,", ",Referencias!$C$27,", ",Referencias!$C$30,", ",Referencias!$C$33,", ",Referencias!$C$36) -> 16, 18, 25, 26, 29, 32, 35 | D11: 77.94227065 | E11: =CONCATENATE(Referencias!$C$17,", ",Referencias!$C$20,"-",Referencias!$C$22,", ",Referencias!$C$25,"-",Referencias!$C$27,", ",Referencias!$C$29,", ",Referencias!$C$31,"-",Referencias!$C$36) -> 16, 19-21, 24-26, 28, 30-35 | F11: 81.20864772 | G11: =CONCATENATE(Referencias!$C$24,",",Referencias!$C$36) -> 23,35 | H11: 1393.86875 | I11: =CONCATENATE(Referencias!$C$17,", ",Referencias!$C$21,", ",Referencias!$C$27,", ",Referencias!$C$28,", ",Referencias!$C$33,", ",Referencias!$C$34,", ",Referencias!$C$36) -> 16, 20, 26, 27, 32, 33, 35 | J11: 3664.81 | K11: 2127.67 | L11: 1998.62 | M11: =Referencias!$C$43 -> 42 | N11: 103.6547384 | O11: =CONCATENATE(Referencias!$C$24,", ",Referencias!$C$36) -> 23, 35 | P11: 0.615150835 | Q11: =CONCATENATE(Referencias!$C$17,", ",Referencias!$C$19,", ",Referencias!$C$21,", ",Referencias!$C$22,", ", Referencias!$C$26,"-",Referencias!$C$28,", ",Referencias!$C$33,", ",Referencias!$C$36) -> 16, 18, 20, 21, 25-27, 32, 35 | R11: 11.615 | S11: =CONCATENATE(Referencias!$C$17,", ",Referencias!$C$22,", ",Referencias!$C$26,"-",Referencias!$C$28,", ",Referencias!$C$33) -> 16, 21, 25-27, 32 | T11: 13.32 | U11: =CONCATENATE(Referencias!$C$17,", ",Referencias!$C$21,", ",Referencias!$C$22,", ",Referencias!$C$26,"-",Referencias!$C$28) -> 16, 20, 21, 25-27 | V11: 8.39 | W11: 0.69030167 | X11: 0.93 | Y11: 7.94 | Z11: 1.18 | AA11: 0.94 | AB11: 0.69030167 | AC11: 9.95 | AD11: =CONCATENATE(Referencias!$C$17,", ",Referencias!$C$21,", ",Referencias!$C$22,", ",Referencias!$C$26,"-",Referencias!$C$28,", ",Referencias!$C$33) -> 16, 20, 21, 25-27, 32 | AE11: 0.71 | AF11: =CONCATENATE(Referencias!$C$17,", ",Referencias!$C$26," - ",Referencias!$C$28,", ",Referencias!$C$33) -> 16, 25 - 27, 32 | AG11: 0.7766666667 | AH11: =CONCATENATE(Referencias!$C$17,", ",Referencias!$C$19,", ",Referencias!$C$22,", ",Referencias!$C$26,"-",Referencias!$C$28,", ",Referencias!$C$33,", ",Referencias!$C$36) -> 16, 18, 21, 25-27, 32, 35 | AI11: 1.02 | AJ11: 1.02 | AK11: =CONCATENATE(Referencias!$C$17,", ",Referencias!$C$19,", ",Referencias!$C$21,", ",Referencias!$C$22,", ",Referencias!$C$26,"-",Referencias!$C$28,", ",Referencias!$C$33,", ",Referencias!$C$36) -> 16, 18, 20, 21, 25-27, 32, 35 | AL11: 17.315 | AM11: 33.15 | AN11: 30.25 | AO11: 18.675 | AP11: 10.825 | AQ11: 21.22 | AR11: 11.64 | AS11: =CONCATENATE(Referencias!$C$17,", ",Referencias!$C$21,", ",Referencias!$C$26,"-",Referencias!$C$28,", ",Referencias!$C$33) -> 16, 20, 25-27, 32 | AT11: 11.28 | AU11: =CONCATENATE(Referencias!$C$17,", ",Referencias!$C$21,", ",Referencias!$C$26,", ",Referencias!$C$28,", ",Referencias!$C$33) -> 16, 20, 25, 27, 32 | AV11: 17.47 | AW11: 9.29 | AX11: =CONCATENATE(Referencias!$C$17,", ",Referencias!$C$21,", ",Referencias!$C$26,", ",Referencias!$C$27,", ",Referencias!$C$33) -> 16, 20, 25, 26, 32 | AY11: 42.375 | AZ11: =CONCATENATE(Referencias!$C$26,", ",Referencias!$C$33) -> 25, 32 | BA11: 30.69 | BB11: =CONCATENATE(Referencias!$C$26,", ",Referencias!$C$28) -> 25, 27 | BC11: 31.41 | BD11: =CONCATENATE(Referencias!$C$26,", ",Referencias!$C$27) -> 25, 26 | BE11: 31.785 | BF11: =CONCATENATE(Referencias!$C$21,", ",Referencias!$C$26) -> 20, 25 | BG11: 13.95 | BH11: =CONCATENATE(Referencias!$C$17,", ",Referencias!$C$21,", ",Referencias!$C$26,"-",Referencias!$C$28) -> 16, 20, 25-27 | BI11: 214.7812857 | BJ11: =CONCATENATE(Referencias!$C$24,",",Referencias!$C$36) -> 23,35 | BK11: 479.45 | BL11: =CONCATENATE(Referencias!$C$17,", ",Referencias!$C$22,", ",Referencias!$C$27,", ",Referencias!$C$28,", ",Referencias!$C$33,", ",Referencias!$C$34,", ",Referencias!$C$36) -> 16, 21, 26, 27, 32, 33, 35 | BM11: 1424 | BN11: =CONCATENATE(Referencias!$C$17,", ",Referencias!$C$21,", ",Referencias!$C$22,", ",Referencias!$C$27,"-",Referencias!$C$29,", ",Referencias!$C$33,", ",Referencias!$C$34,", ",Referencias!$C$36) -> 16, 20, 21, 26-28, 32, 33, 35 | BO11: 748.2106422 | BP11: =CONCATENATE(Referencias!$C$17,", ",Referencias!$C$21,", ",Referencias!$C$22,", ",Referencias!$C$25,", ",Referencias!$C$27,", ",Referencias!$C$28,", ",Referencias!$C$31,", ",Referencias!$C$32,", ",Referencias!$C$36) -> 16, 20, 21, 24, 26, 27, 30, 31, 35
A12: Castilla - La Mancha | B12: 4.41 | C12: =CONCATENATE(Referencias!$C$17,", ",Referencias!$C$19,", ",Referencias!$C$26,", ",Referencias!$C$27,", ",Referencias!$C$30,", ",Referencias!$C$33,", ",Referencias!$C$36) -> 16, 18, 25, 26, 29, 32, 35 | D12: 20.78935872 | E12: =CONCATENATE(Referencias!$C$25,", ",Referencias!$C$36) -> 24, 35 | F12: 12.20675843 | G12: =CONCATENATE(Referencias!$C$25,", ",Referencias!$C$36) -> 24, 35 | H12: 1393.86875 | I12: =CONCATENATE(Referencias!$C$17,", ",Referencias!$C$21,", ",Referencias!$C$27,", ",Referencias!$C$28,", ",Referencias!$C$33,", ",Referencias!$C$34,", ",Referencias!$C$36) -> 16, 20, 26, 27, 32, 33, 35 | J12: 3150.42 | K12: 1889.12 | L12: 1889.12 | M12: =Referencias!$C$44 -> 43 | N12: 82 | O12: =CONCATENATE(Referencias!$C$21,", ",Referencias!$C$24,", ",Referencias!$C$26,"-",Referencias!$C$28,", ",Referencias!$C$33,", ",Referencias!$C$36) -> 20, 23, 25-27, 32, 35 | P12: 0.615150835 | Q12: =CONCATENATE(Referencias!$C$17,", ",Referencias!$C$19,", ",Referencias!$C$21,", ",Referencias!$C$22,", ", Referencias!$C$26,"-",Referencias!$C$28,", ",Referencias!$C$33,", ",Referencias!$C$36) -> 16, 18, 20, 21, 25-27, 32, 35 | R12: 11.615 | S12: =CONCATENATE(Referencias!$C$17,", ",Referencias!$C$22,", ",Referencias!$C$26,"-",Referencias!$C$28,", ",Referencias!$C$33) -> 16, 21, 25-27, 32 | T12: 13.32 | U12: =CONCATENATE(Referencias!$C$17,", ",Referencias!$C$21,", ",Referencias!$C$22,", ",Referencias!$C$26,"-",Referencias!$C$28) -> 16, 20, 21, 25-27 | V12: 8.39 | W12: 0.69030167 | X12: 0.93 | Y12: 7.94 | Z12: 1.18 | AA12: 0.94 | AB12: 0.69030167 | AC12: 9.95 | AD12: =CONCATENATE(Referencias!$C$17,", ",Referencias!$C$21,", ",Referencias!$C$22,", ",Referencias!$C$26,"-",Referencias!$C$28,", ",Referencias!$C$33) -> 16, 20, 21, 25-27, 32 | AE12: 0.71 | AF12: =CONCATENATE(Referencias!$C$17,", ",Referencias!$C$26," - ",Referencias!$C$28,", ",Referencias!$C$33) -> 16, 25 - 27, 32 | AG12: 0.7766666667 | AH12: =CONCATENATE(Referencias!$C$17,", ",Referencias!$C$19,", ",Referencias!$C$22,", ",Referencias!$C$26,"-",Referencias!$C$28,", ",Referencias!$C$33,", ",Referencias!$C$36) -> 16, 18, 21, 25-27, 32, 35 | AI12: 1.02 | AJ12: 1.02 | AK12: =CONCATENATE(Referencias!$C$17,", ",Referencias!$C$19,", ",Referencias!$C$21,", ",Referencias!$C$22,", ",Referencias!$C$26,"-",Referencias!$C$28,", ",Referencias!$C$33,", ",Referencias!$C$36) -> 16, 18, 20, 21, 25-27, 32, 35 | AL12: 17.315 | AM12: 33.15 | AN12: 30.25 | AO12: 18.675 | AP12: 10.825 | AQ12: 21.22 | AR12: 11.64 | AS12: =CONCATENATE(Referencias!$C$17,", ",Referencias!$C$21,", ",Referencias!$C$26,"-",Referencias!$C$28,", ",Referencias!$C$33) -> 16, 20, 25-27, 32 | AT12: 11.28 | AU12: =CONCATENATE(Referencias!$C$17,", ",Referencias!$C$21,", ",Referencias!$C$26,", ",Referencias!$C$28,", ",Referencias!$C$33) -> 16, 20, 25, 27, 32 | AV12: 17.47 | AW12: 9.29 | AX12: =CONCATENATE(Referencias!$C$17,", ",Referencias!$C$21,", ",Referencias!$C$26,", ",Referencias!$C$27,", ",Referencias!$C$33) -> 16, 20, 25, 26, 32 | AY12: 42.375 | AZ12: =CONCATENATE(Referencias!$C$26,", ",Referencias!$C$33) -> 25, 32 | BA12: 30.69 | BB12: =CONCATENATE(Referencias!$C$26,", ",Referencias!$C$28) -> 25, 27 | BC12: 31.41 | BD12: =CONCATENATE(Referencias!$C$26,", ",Referencias!$C$27) -> 25, 26 | BE12: 31.785 | BF12: =CONCATENATE(Referencias!$C$21,", ",Referencias!$C$26) -> 20, 25 | BG12: 13.95 | BH12: =CONCATENATE(Referencias!$C$17,", ",Referencias!$C$21,", ",Referencias!$C$26,"-",Referencias!$C$28) -> 16, 20, 25-27 | BI12: 91.32 | BJ12: =CONCATENATE(Referencias!$C$25,", ",Referencias!$C$36) -> 24, 35 | BK12: 479.45 | BL12: =CONCATENATE(Referencias!$C$17,", ",Referencias!$C$22,", ",Referencias!$C$27,", ",Referencias!$C$28,", ",Referencias!$C$33,", ",Referencias!$C$34,", ",Referencias!$C$36) -> 16, 21, 26, 27, 32, 33, 35 | BM12: 1424 | BN12: =CONCATENATE(Referencias!$C$17,", ",Referencias!$C$21,", ",Referencias!$C$22,", ",Referencias!$C$27,"-",Referencias!$C$29,", ",Referencias!$C$33,", ",Referencias!$C$34,", ",Referencias!$C$36) -> 16, 20, 21, 26-28, 32, 33, 35 | BO12: 317.3 | BP12: =CONCATENATE(Referencias!$C$25,", ",Referencias!$C$36) -> 24, 35
A13: Cataluña | B13: 1.59 | C13: =Referencias!$C$26 -> 25 | D13: 51 | E13: =Referencias!$C$26 -> 25 | F13: 24 | G13: =Referencias!$C$26 -> 25 | H13: 1393.86875 | I13: =CONCATENATE(Referencias!$C$17,", ",Referencias!$C$21,", ",Referencias!$C$27,", ",Referencias!$C$28,", ",Referencias!$C$33,", ",Referencias!$C$34,", ",Referencias!$C$36) -> 16, 20, 26, 27, 32, 33, 35 | J13: 3098.16 | K13: 2157.7 | L13: 2157.7 | M13: =Referencias!$C$45 -> 44 | N13: 88 | O13: =Referencias!$C$26 -> 25 | P13: 0.54 | Q13: =Referencias!$C$26 -> 25 | R13: 4.68 | S13: =Referencias!$C$26 -> 25 | T13: 9.34 | U13: =Referencias!$C$26 -> 25 | V13: 1.56 | W13: 0.93 | X13: 0.93 | Y13: 1.56 | Z13: 0.93 | AA13: 0.86 | AB13: 0.62 | AC13: 1.86 | AD13: =Referencias!$C$26 -> 25 | AE13: 0.71 | AF13: =Referencias!$C$26 -> 25 | AG13: 0.7766666667 | AH13: =Referencias!$C$26 -> 25 | AI13: 0.7766666667 | AJ13: 0.7766666667 | AK13: =Referencias!$C$26 -> 25 | AL13: 15.56 | AM13: 8.95 | AN13: 28.02 | AO13: 31.13 | AP13: 7.79 | AQ13: 12.33 | AR13: 6.02 | AS13: =Referencias!$C$26 -> 25 | AT13: 3.11 | AU13: =Referencias!$C$26 -> 25 | AV13: 15.56 | AW13: 3.5 | AX13: =Referencias!$C$26 -> 25 | AY13: 42.75 | AZ13: =Referencias!$C$26 -> 25 | BA13: 42.75 | BB13: =Referencias!$C$26 -> 25 | BC13: 34.32 | BD13: =Referencias!$C$26 -> 25 | BE13: 50.57 | BF13: =Referencias!$C$26 -> 25 | BG13: 12.59 | BH13: =Referencias!$C$26 -> 25 | BI13: 110 | BJ13: =Referencias!$C$26 -> 25 | BK13: 479.45 | BL13: =CONCATENATE(Referencias!$C$17,", ",Referencias!$C$22,", ",Referencias!$C$27,", ",Referencias!$C$28,", ",Referencias!$C$33,", ",Referencias!$C$34,", ",Referencias!$C$36) -> 16, 21, 26, 27, 32, 33, 35 | BM13: 1424 | BN13: =CONCATENATE(Referencias!$C$17,", ",Referencias!$C$21,", ",Referencias!$C$22,", ",Referencias!$C$27,"-",Referencias!$C$29,", ",Referencias!$C$33,", ",Referencias!$C$34,", ",Referencias!$C$36) -> 16, 20, 21, 26-28, 32, 33, 35 | BO13: 748.2106422 | BP13: =CONCATENATE(Referencias!$C$17,", ",Referencias!$C$21,", ",Referencias!$C$22,", ",Referencias!$C$25,", ",Referencias!$C$27,", ",Referencias!$C$28,", ",Referencias!$C$31,", ",Referencias!$C$32,", ",Referencias!$C$36) -> 16, 20, 21, 24, 26, 27, 30, 31, 35
A14: Comunidad Valenciana | B14: 3.54 | C14: =Referencias!$C$27 -> 26 | D14: 30.87 | E14: =Referencias!$C$27 -> 26 | F14: 81.34 | G14: =Referencias!$C$27 -> 26 | H14: 953.915 | I14: =Referencias!$C$27 -> 26 | J14: 3737.53 | K14: 2041.28 | L14: 2057.34 | M14: =Referencias!$C$46 -> 45 | N14: 64.24 | O14: =Referencias!$C$27 -> 26 | P14: 0.38 | Q14: =Referencias!$C$27 -> 26 | R14: 13.23 | S14: =Referencias!$C$27 -> 26 | T14: 15.64 | U14: =Referencias!$C$27 -> 26 | V14: 8.39 | W14: 0.59 | X14: 1.02 | Y14: 6.5 | Z14: 1.18 | AA14: 0.79 | AB14: 0.62 | AC14: 7.18 | AD14: =Referencias!$C$27 -> 26 | AE14: 2.35 | AF14: =Referencias!$C$27 -> 26 | AG14: 1.11 | AH14: =Referencias!$C$27 -> 26 | AI14: 1.11 | AJ14: 1.11 | AK14: =Referencias!$C$27 -> 26 | AL14: 28.5 | AM14: 33.77 | AN14: 28.5 | AO14: 28.5 | AP14: 8.91 | AQ14: 34.77 | AR14: 11.63 | AS14: =Referencias!$C$27 -> 26 | AT14: 11.28 | AU14: =CONCATENATE(Referencias!$C$17,", ",Referencias!$C$21,", ",Referencias!$C$26,", ",Referencias!$C$28,", ",Referencias!$C$33) -> 16, 20, 25, 27, 32 | AV14: 28.5 | AW14: 11.4 | AX14: =Referencias!$C$27 -> 26 | AY14: 42.375 | AZ14: =CONCATENATE(Referencias!$C$26,", ",Referencias!$C$33) -> 25, 32 | BA14: 30.69 | BB14: =CONCATENATE(Referencias!$C$26,", ",Referencias!$C$28) -> 25, 27 | BC14: 28.5 | BD14: =Referencias!$C$27 -> 26 | BE14: 31.785 | BF14: =CONCATENATE(Referencias!$C$21,", ",Referencias!$C$26) -> 20, 25 | BG14: 28.5 | BH14: =Referencias!$C$27 -> 26 | BI14: 226.48 | BJ14: =Referencias!$C$27 -> 26 | BK14: 599.41 | BL14: =Referencias!$C$27 -> 26 | BM14: 2137.46 | BN14: =Referencias!$C$27 -> 26 | BO14: 349.21 | BP14: =Referencias!$C$27 -> 26
A15: Extremadura | B15: 4.41 | C15: =CONCATENATE(Referencias!$C$17,", ",Referencias!$C$19,", ",Referencias!$C$26,", ",Referencias!$C$27,", ",Referencias!$C$30,", ",Referencias!$C$33,", ",Referencias!$C$36) -> 16, 18, 25, 26, 29, 32, 35 | D15: 77.94227065 | E15: =CONCATENATE(Referencias!$C$17,", ",Referencias!$C$20,"-",Referencias!$C$22,", ",Referencias!$C$25,"-",Referencias!$C$27,", ",Referencias!$C$29,", ",Referencias!$C$31,"-",Referencias!$C$36) -> 16, 19-21, 24-26, 28, 30-35 | F15: 47.03 | G15: =Referencias!$C$28 -> 27 | H15: 1389.68 | I15: =Referencias!$C$28 -> 27 | J15: 3548.25 | K15: 2063.26 | L15: 2063.26 | M15: =Referencias!$C$47 -> 46 | N15: 60.74 | O15: =Referencias!$C$28 -> 27 | P15: 0.89 | Q15: =Referencias!$C$28 -> 27 | R15: 25.64 | S15: =Referencias!$C$28 -> 27 | T15: 24.17 | U15: =Referencias!$C$28 -> 27 | V15: 8.39 | W15: 0.1 | X15: 0.94 | Y15: 3.97 | Z15: 11.06 | AA15: 0.94 | AB15: 2.2 | AC15: 14.73 | AD15: =Referencias!$C$28 -> 27 | AE15: 1.92 | AF15: =Referencias!$C$28 -> 27 | AG15: 1.92 | AH15: =Referencias!$C$28 -> 27 | AI15: 1.92 | AJ15: 1.93 | AK15: =Referencias!$C$28 -> 27 | AL15: 17.16 | AM15: 32.53 | AN15: 110.3 | AO15: 10.35 | AP15: 22.07 | AQ15: 23.44 | AR15: 15.56 | AS15: =Referencias!$C$28 -> 27 | AT15: 9.29 | AU15: =Referencias!$C$28 -> 27 | AV15: 17.47 | AW15: 9.29 | AX15: =CONCATENATE(Referencias!$C$17,", ",Referencias!$C$21,", ",Referencias!$C$26,", ",Referencias!$C$27,", ",Referencias!$C$33) -> 16, 20, 25, 26, 32 | AY15: 42.375 | AZ15: =CONCATENATE(Referencias!$C$26,", ",Referencias!$C$33) -> 25, 32 | BA15: 18.63 | BB15: =Referencias!$C$28 -> 27 | BC15: 31.41 | BD15: =CONCATENATE(Referencias!$C$26,", ",Referencias!$C$27) -> 25, 26 | BE15: 31.785 | BF15: =CONCATENATE(Referencias!$C$21,", ",Referencias!$C$26) -> 20, 25 | BG15: 13.95 | BH15: =Referencias!$C$28 -> 27 | BI15: 195.62 | BJ15: =Referencias!$C$28 -> 27 | BK15: 636.79 | BL15: =Referencias!$C$28 -> 27 | BM15: 1318.66 | BN15: =Referencias!$C$28 -> 27 | BO15: 1953.45 | BP15: =Referencias!$C$28 -> 27
A16: Galicia | B16: 4.41 | C16: =CONCATENATE(Referencias!$C$17,", ",Referencias!$C$19,", ",Referencias!$C$26,", ",Referencias!$C$27,", ",Referencias!$C$30,", ",Referencias!$C$33,", ",Referencias!$C$36) -> 16, 18, 25, 26, 29, 32, 35 | D16: 172.82 | E16: =Referencias!$C$29 -> 28 | F16: 172.82 | G16: =Referencias!$C$29 -> 28 | H16: 1393.86875 | I16: =CONCATENATE(Referencias!$C$17,", ",Referencias!$C$21,", ",Referencias!$C$27,", ",Referencias!$C$28,", ",Referencias!$C$33,", ",Referencias!$C$34,", ",Referencias!$C$36) -> 16, 20, 26, 27, 32, 33, 35 | J16: 3545.18 | K16: 2033.34 | L16: 2033.34 | M16: =Referencias!$C$48 -> 47 | N16: 82 | O16: =CONCATENATE(Referencias!$C$21,", ",Referencias!$C$24,", ",Referencias!$C$26,"-",Referencias!$C$28,", ",Referencias!$C$33,", ",Referencias!$C$36) -> 20, 23, 25-27, 32, 35 | P16: 0.615150835 | Q16: =CONCATENATE(Referencias!$C$17,", ",Referencias!$C$19,", ",Referencias!$C$21,", ",Referencias!$C$22,", ", Referencias!$C$26,"-",Referencias!$C$28,", ",Referencias!$C$33,", ",Referencias!$C$36) -> 16, 18, 20, 21, 25-27, 32, 35 | R16: 11.615 | S16: =CONCATENATE(Referencias!$C$17,", ",Referencias!$C$22,", ",Referencias!$C$26,"-",Referencias!$C$28,", ",Referencias!$C$33) -> 16, 21, 25-27, 32 | T16: 13.32 | U16: =CONCATENATE(Referencias!$C$17,", ",Referencias!$C$21,", ",Referencias!$C$22,", ",Referencias!$C$26,"-",Referencias!$C$28) -> 16, 20, 21, 25-27 | V16: 8.39 | W16: 0.69030167 | X16: 0.93 | Y16: 7.94 | Z16: 1.18 | AA16: 0.94 | AB16: 0.69030167 | AC16: 9.95 | AD16: =CONCATENATE(Referencias!$C$17,", ",Referencias!$C$21,", ",Referencias!$C$22,", ",Referencias!$C$26,"-",Referencias!$C$28,", ",Referencias!$C$33) -> 16, 20, 21, 25-27, 32 | AE16: 0.71 | AF16: =CONCATENATE(Referencias!$C$17,", ",Referencias!$C$26," - ",Referencias!$C$28,", ",Referencias!$C$33) -> 16, 25 - 27, 32 | AG16: 0.7766666667 | AH16: =CONCATENATE(Referencias!$C$17,", ",Referencias!$C$19,", ",Referencias!$C$22,", ",Referencias!$C$26,"-",Referencias!$C$28,", ",Referencias!$C$33,", ",Referencias!$C$36) -> 16, 18, 21, 25-27, 32, 35 | AI16: 1.02 | AJ16: 1.02 | AK16: =CONCATENATE(Referencias!$C$17,", ",Referencias!$C$19,", ",Referencias!$C$21,", ",Referencias!$C$22,", ",Referencias!$C$26,"-",Referencias!$C$28,", ",Referencias!$C$33,", ",Referencias!$C$36) -> 16, 18, 20, 21, 25-27, 32, 35 | AL16: 17.315 | AM16: 33.15 | AN16: 30.25 | AO16: 18.675 | AP16: 10.825 | AQ16: 21.22 | AR16: 11.64 | AS16: =CONCATENATE(Referencias!$C$17,", ",Referencias!$C$21,", ",Referencias!$C$26,"-",Referencias!$C$28,", ",Referencias!$C$33) -> 16, 20, 25-27, 32 | AT16: 11.28 | AU16: =CONCATENATE(Referencias!$C$17,", ",Referencias!$C$21,", ",Referencias!$C$26,", ",Referencias!$C$28,", ",Referencias!$C$33) -> 16, 20, 25, 27, 32 | AV16: 17.47 | AW16: 9.29 | AX16: =CONCATENATE(Referencias!$C$17,", ",Referencias!$C$21,", ",Referencias!$C$26,", ",Referencias!$C$27,", ",Referencias!$C$33) -> 16, 20, 25, 26, 32 | AY16: 42.375 | AZ16: =CONCATENATE(Referencias!$C$26,", ",Referencias!$C$33) -> 25, 32 | BA16: 30.69 | BB16: =CONCATENATE(Referencias!$C$26,", ",Referencias!$C$28) -> 25, 27 | BC16: 31.41 | BD16: =CONCATENATE(Referencias!$C$26,", ",Referencias!$C$27) -> 25, 26 | BE16: 31.785 | BF16: =CONCATENATE(Referencias!$C$21,", ",Referencias!$C$26) -> 20, 25 | BG16: 13.95 | BH16: =CONCATENATE(Referencias!$C$17,", ",Referencias!$C$21,", ",Referencias!$C$26,"-",Referencias!$C$28) -> 16, 20, 25-27 | BI16: 321.64 | BJ16: =Referencias!$C$29 -> 28 | BK16: 479.45 | BL16: =CONCATENATE(Referencias!$C$17,", ",Referencias!$C$22,", ",Referencias!$C$27,", ",Referencias!$C$28,", ",Referencias!$C$33,", ",Referencias!$C$34,", ",Referencias!$C$36) -> 16, 21, 26, 27, 32, 33, 35 | BM16: 1707.12 | BN16: =Referencias!$C$29 -> 28 | BO16: 748.2106422 | BP16: =CONCATENATE(Referencias!$C$17,", ",Referencias!$C$21,", ",Referencias!$C$22,", ",Referencias!$C$25,", ",Referencias!$C$27,", ",Referencias!$C$28,", ",Referencias!$C$31,", ",Referencias!$C$32,", ",Referencias!$C$36) -> 16, 20, 21, 24, 26, 27, 30, 31, 35
A17: Comunidad de Madrid | B17: 15 | C17: =Referencias!$C$30 -> 29 | D17: 77.94227065 | E17: =CONCATENATE(Referencias!$C$17,", ",Referencias!$C$20,"-",Referencias!$C$22,", ",Referencias!$C$25,"-",Referencias!$C$27,", ",Referencias!$C$29,", ",Referencias!$C$31,"-",Referencias!$C$36) -> 16, 19-21, 24-26, 28, 30-35 | F17: 77.70932386 | G17: =CONCATENATE(Referencias!$C$17,", ",Referencias!$C$18,", ",Referencias!$C$20,"-",Referencias!$C$29,", ",Referencias!$C$31,"-",Referencias!$C$36) -> 16, 17, 19-28, 30-35 | H17: 1393.86875 | I17: =CONCATENATE(Referencias!$C$17,", ",Referencias!$C$21,", ",Referencias!$C$27,", ",Referencias!$C$28,", ",Referencias!$C$33,", ",Referencias!$C$34,", ",Referencias!$C$36) -> 16, 20, 26, 27, 32, 33, 35 | J17: 3525 | K17: 1979.23 | L17: 1962.01 | M17: =Referencias!$C$49 -> 48 | N17: 82 | O17: =CONCATENATE(Referencias!$C$21,", ",Referencias!$C$24,", ",Referencias!$C$26,"-",Referencias!$C$28,", ",Referencias!$C$33,", ",Referencias!$C$36) -> 20, 23, 25-27, 32, 35 | P17: 0.615150835 | Q17: =CONCATENATE(Referencias!$C$17,", ",Referencias!$C$19,", ",Referencias!$C$21,", ",Referencias!$C$22,", ", Referencias!$C$26,"-",Referencias!$C$28,", ",Referencias!$C$33,", ",Referencias!$C$36) -> 16, 18, 20, 21, 25-27, 32, 35 | R17: 11.615 | S17: =CONCATENATE(Referencias!$C$17,", ",Referencias!$C$22,", ",Referencias!$C$26,"-",Referencias!$C$28,", ",Referencias!$C$33) -> 16, 21, 25-27, 32 | T17: 13.32 | U17: =CONCATENATE(Referencias!$C$17,", ",Referencias!$C$21,", ",Referencias!$C$22,", ",Referencias!$C$26,"-",Referencias!$C$28) -> 16, 20, 21, 25-27 | V17: 8.39 | W17: 0.69030167 | X17: 0.93 | Y17: 7.94 | Z17: 1.18 | AA17: 0.94 | AB17: 0.69030167 | AC17: 9.95 | AD17: =CONCATENATE(Referencias!$C$17,", ",Referencias!$C$21,", ",Referencias!$C$22,", ",Referencias!$C$26,"-",Referencias!$C$28,", ",Referencias!$C$33) -> 16, 20, 21, 25-27, 32 | AE17: 0.71 | AF17: =CONCATENATE(Referencias!$C$17,", ",Referencias!$C$26," - ",Referencias!$C$28,", ",Referencias!$C$33) -> 16, 25 - 27, 32 | AG17: 0.7766666667 | AH17: =CONCATENATE(Referencias!$C$17,", ",Referencias!$C$19,", ",Referencias!$C$22,", ",Referencias!$C$26,"-",Referencias!$C$28,", ",Referencias!$C$33,", ",Referencias!$C$36) -> 16, 18, 21, 25-27, 32, 35 | AI17: 1.02 | AJ17: 1.02 | AK17: =CONCATENATE(Referencias!$C$17,", ",Referencias!$C$19,", ",Referencias!$C$21,", ",Referencias!$C$22,", ",Referencias!$C$26,"-",Referencias!$C$28,", ",Referencias!$C$33,", ",Referencias!$C$36) -> 16, 18, 20, 21, 25-27, 32, 35 | AL17: 17.315 | AM17: 33.15 | AN17: 30.25 | AO17: 18.675 | AP17: 10.825 | AQ17: 21.22 | AR17: 11.64 | AS17: =CONCATENATE(Referencias!$C$17,", ",Referencias!$C$21,", ",Referencias!$C$26,"-",Referencias!$C$28,", ",Referencias!$C$33) -> 16, 20, 25-27, 32 | AT17: 11.28 | AU17: =CONCATENATE(Referencias!$C$17,", ",Referencias!$C$21,", ",Referencias!$C$26,", ",Referencias!$C$28,", ",Referencias!$C$33) -> 16, 20, 25, 27, 32 | AV17: 17.47 | AW17: 9.29 | AX17: =CONCATENATE(Referencias!$C$17,", ",Referencias!$C$21,", ",Referencias!$C$26,", ",Referencias!$C$27,", ",Referencias!$C$33) -> 16, 20, 25, 26, 32 | AY17: 42.375 | AZ17: =CONCATENATE(Referencias!$C$26,", ",Referencias!$C$33) -> 25, 32 | BA17: 30.69 | BB17: =CONCATENATE(Referencias!$C$26,", ",Referencias!$C$28) -> 25, 27 | BC17: 31.41 | BD17: =CONCATENATE(Referencias!$C$26,", ",Referencias!$C$27) -> 25, 26 | BE17: 31.785 | BF17: =CONCATENATE(Referencias!$C$21,", ",Referencias!$C$26) -> 20, 25 | BG17: 13.95 | BH17: =CONCATENATE(Referencias!$C$17,", ",Referencias!$C$21,", ",Referencias!$C$26,"-",Referencias!$C$28) -> 16, 20, 25-27 | BI17: 215 | BJ17: =Referencias!$C$30 -> 29 | BK17: 479.45 | BL17: =CONCATENATE(Referencias!$C$17,", ",Referencias!$C$22,", ",Referencias!$C$27,", ",Referencias!$C$28,", ",Referencias!$C$33,", ",Referencias!$C$34,", ",Referencias!$C$36) -> 16, 21, 26, 27, 32, 33, 35 | BM17: 1424 | BN17: =CONCATENATE(Referencias!$C$17,", ",Referencias!$C$21,", ",Referencias!$C$22,", ",Referencias!$C$27,"-",Referencias!$C$29,", ",Referencias!$C$33,", ",Referencias!$C$34,", ",Referencias!$C$36) -> 16, 20, 21, 26-28, 32, 33, 35 | BO17: 748.2106422 | BP17: =CONCATENATE(Referencias!$C$17,", ",Referencias!$C$21,", ",Referencias!$C$22,", ",Referencias!$C$25,", ",Referencias!$C$27,", ",Referencias!$C$28,", ",Referencias!$C$31,", ",Referencias!$C$32,", ",Referencias!$C$36) -> 16, 20, 21, 24, 26, 27, 30, 31, 35
A18: Región de Murcia | B18: 4.41 | C18: =CONCATENATE(Referencias!$C$17,", ",Referencias!$C$19,", ",Referencias!$C$26,", ",Referencias!$C$27,", ",Referencias!$C$30,", ",Referencias!$C$33,", ",Referencias!$C$36) -> 16, 18, 25, 26, 29, 32, 35 | D18: 94.03 | E18: =Referencias!$C$31 -> 30 | F18: 53.28 | G18: =Referencias!$C$31 -> 30 | H18: 1393.86875 | I18: =CONCATENATE(Referencias!$C$17,", ",Referencias!$C$21,", ",Referencias!$C$27,", ",Referencias!$C$28,", ",Referencias!$C$33,", ",Referencias!$C$34,", ",Referencias!$C$36) -> 16, 20, 26, 27, 32, 33, 35 | J18: 5473.817919 | K18: 2532.246955 | L18: 1900.065833 | M18: =Referencias!$C$50 -> 49 | N18: 82 | O18: =CONCATENATE(Referencias!$C$21,", ",Referencias!$C$24,", ",Referencias!$C$26,"-",Referencias!$C$28,", ",Referencias!$C$33,", ",Referencias!$C$36) -> 20, 23, 25-27, 32, 35 | P18: 0.615150835 | Q18: =CONCATENATE(Referencias!$C$17,", ",Referencias!$C$19,", ",Referencias!$C$21,", ",Referencias!$C$22,", ", Referencias!$C$26,"-",Referencias!$C$28,", ",Referencias!$C$33,", ",Referencias!$C$36) -> 16, 18, 20, 21, 25-27, 32, 35 | R18: 11.615 | S18: =CONCATENATE(Referencias!$C$17,", ",Referencias!$C$22,", ",Referencias!$C$26,"-",Referencias!$C$28,", ",Referencias!$C$33) -> 16, 21, 25-27, 32 | T18: 13.32 | U18: =CONCATENATE(Referencias!$C$17,", ",Referencias!$C$21,", ",Referencias!$C$22,", ",Referencias!$C$26,"-",Referencias!$C$28) -> 16, 20, 21, 25-27 | V18: 8.39 | W18: 0.69030167 | X18: 0.93 | Y18: 7.94 | Z18: 1.18 | AA18: 0.94 | AB18: 0.69030167 | AC18: 9.95 | AD18: =CONCATENATE(Referencias!$C$17,", ",Referencias!$C$21,", ",Referencias!$C$22,", ",Referencias!$C$26,"-",Referencias!$C$28,", ",Referencias!$C$33) -> 16, 20, 21, 25-27, 32 | AE18: 0.71 | AF18: =CONCATENATE(Referencias!$C$17,", ",Referencias!$C$26," - ",Referencias!$C$28,", ",Referencias!$C$33) -> 16, 25 - 27, 32 | AG18: 0.7766666667 | AH18: =CONCATENATE(Referencias!$C$17,", ",Referencias!$C$19,", ",Referencias!$C$22,", ",Referencias!$C$26,"-",Referencias!$C$28,", ",Referencias!$C$33,", ",Referencias!$C$36) -> 16, 18, 21, 25-27, 32, 35 | AI18: 1.02 | AJ18: 1.02 | AK18: =CONCATENATE(Referencias!$C$17,", ",Referencias!$C$19,", ",Referencias!$C$21,", ",Referencias!$C$22,", ",Referencias!$C$26,"-",Referencias!$C$28,", ",Referencias!$C$33,", ",Referencias!$C$36) -> 16, 18, 20, 21, 25-27, 32, 35 | AL18: 17.315 | AM18: 33.15 | AN18: 30.25 | AO18: 18.675 | AP18: 10.825 | AQ18: 21.22 | AR18: 11.64 | AS18: =CONCATENATE(Referencias!$C$17,", ",Referencias!$C$21,", ",Referencias!$C$26,"-",Referencias!$C$28,", ",Referencias!$C$33) -> 16, 20, 25-27, 32 | AT18: 11.28 | AU18: =CONCATENATE(Referencias!$C$17,", ",Referencias!$C$21,", ",Referencias!$C$26,", ",Referencias!$C$28,", ",Referencias!$C$33) -> 16, 20, 25, 27, 32 | AV18: 17.47 | AW18: 9.29 | AX18: =CONCATENATE(Referencias!$C$17,", ",Referencias!$C$21,", ",Referencias!$C$26,", ",Referencias!$C$27,", ",Referencias!$C$33) -> 16, 20, 25, 26, 32 | AY18: 42.375 | AZ18: =CONCATENATE(Referencias!$C$26,", ",Referencias!$C$33) -> 25, 32 | BA18: 30.69 | BB18: =CONCATENATE(Referencias!$C$26,", ",Referencias!$C$28) -> 25, 27 | BC18: 31.41 | BD18: =CONCATENATE(Referencias!$C$26,", ",Referencias!$C$27) -> 25, 26 | BE18: 31.785 | BF18: =CONCATENATE(Referencias!$C$21,", ",Referencias!$C$26) -> 20, 25 | BG18: 13.95 | BH18: =CONCATENATE(Referencias!$C$17,", ",Referencias!$C$21,", ",Referencias!$C$26,"-",Referencias!$C$28) -> 16, 20, 25-27 | BI18: 104.37 | BJ18: =Referencias!$C$31 -> 30 | BK18: 479.45 | BL18: =CONCATENATE(Referencias!$C$17,", ",Referencias!$C$22,", ",Referencias!$C$27,", ",Referencias!$C$28,", ",Referencias!$C$33,", ",Referencias!$C$34,", ",Referencias!$C$36) -> 16, 21, 26, 27, 32, 33, 35 | BM18: 1424 | BN18: =CONCATENATE(Referencias!$C$17,", ",Referencias!$C$21,", ",Referencias!$C$22,", ",Referencias!$C$27,"-",Referencias!$C$29,", ",Referencias!$C$33,", ",Referencias!$C$34,", ",Referencias!$C$36) -> 16, 20, 21, 26-28, 32, 33, 35 | BO18: 1734 | BP18: =Referencias!$C$31 -> 30
A19: Comunidad Foral de Navarra | B19: 4.41 | C19: =CONCATENATE(Referencias!$C$17,", ",Referencias!$C$19,", ",Referencias!$C$26,", ",Referencias!$C$27,", ",Referencias!$C$30,", ",Referencias!$C$33,", ",Referencias!$C$36) -> 16, 18, 25, 26, 29, 32, 35 | D19: 130.93 | E19: =Referencias!$C$32 -> 31 | F19: 74.21 | G19: =Referencias!$C$32 -> 31 | H19: 1393.86875 | I19: =CONCATENATE(Referencias!$C$17,", ",Referencias!$C$21,", ",Referencias!$C$27,", ",Referencias!$C$28,", ",Referencias!$C$33,", ",Referencias!$C$34,", ",Referencias!$C$36) -> 16, 20, 26, 27, 32, 33, 35 | J19: 3234.55 | K19: 2218.19 | L19: 2218.19 | M19: =Referencias!$C$51 -> 50 | N19: 82 | O19: =CONCATENATE(Referencias!$C$21,", ",Referencias!$C$24,", ",Referencias!$C$26,"-",Referencias!$C$28,", ",Referencias!$C$33,", ",Referencias!$C$36) -> 20, 23, 25-27, 32, 35 | P19: 0.615150835 | Q19: =CONCATENATE(Referencias!$C$17,", ",Referencias!$C$19,", ",Referencias!$C$21,", ",Referencias!$C$22,", ", Referencias!$C$26,"-",Referencias!$C$28,", ",Referencias!$C$33,", ",Referencias!$C$36) -> 16, 18, 20, 21, 25-27, 32, 35 | R19: 11.615 | S19: =CONCATENATE(Referencias!$C$17,", ",Referencias!$C$22,", ",Referencias!$C$26,"-",Referencias!$C$28,", ",Referencias!$C$33) -> 16, 21, 25-27, 32 | T19: 13.32 | U19: =CONCATENATE(Referencias!$C$17,", ",Referencias!$C$21,", ",Referencias!$C$22,", ",Referencias!$C$26,"-",Referencias!$C$28) -> 16, 20, 21, 25-27 | V19: 8.39 | W19: 0.69030167 | X19: 0.93 | Y19: 7.94 | Z19: 1.18 | AA19: 0.94 | AB19: 0.69030167 | AC19: 9.95 | AD19: =CONCATENATE(Referencias!$C$17,", ",Referencias!$C$21,", ",Referencias!$C$22,", ",Referencias!$C$26,"-",Referencias!$C$28,", ",Referencias!$C$33) -> 16, 20, 21, 25-27, 32 | AE19: 0.71 | AF19: =CONCATENATE(Referencias!$C$17,", ",Referencias!$C$26," - ",Referencias!$C$28,", ",Referencias!$C$33) -> 16, 25 - 27, 32 | AG19: 0.7766666667 | AH19: =CONCATENATE(Referencias!$C$17,", ",Referencias!$C$19,", ",Referencias!$C$22,", ",Referencias!$C$26,"-",Referencias!$C$28,", ",Referencias!$C$33,", ",Referencias!$C$36) -> 16, 18, 21, 25-27, 32, 35 | AI19: 1.02 | AJ19: 1.02 | AK19: =CONCATENATE(Referencias!$C$17,", ",Referencias!$C$19,", ",Referencias!$C$21,", ",Referencias!$C$22,", ",Referencias!$C$26,"-",Referencias!$C$28,", ",Referencias!$C$33,", ",Referencias!$C$36) -> 16, 18, 20, 21, 25-27, 32, 35 | AL19: 17.315 | AM19: 33.15 | AN19: 30.25 | AO19: 18.675 | AP19: 10.825 | AQ19: 21.22 | AR19: 11.64 | AS19: =CONCATENATE(Referencias!$C$17,", ",Referencias!$C$21,", ",Referencias!$C$26,"-",Referencias!$C$28,", ",Referencias!$C$33) -> 16, 20, 25-27, 32 | AT19: 11.28 | AU19: =CONCATENATE(Referencias!$C$17,", ",Referencias!$C$21,", ",Referencias!$C$26,", ",Referencias!$C$28,", ",Referencias!$C$33) -> 16, 20, 25, 27, 32 | AV19: 17.47 | AW19: 9.29 | AX19: =CONCATENATE(Referencias!$C$17,", ",Referencias!$C$21,", ",Referencias!$C$26,", ",Referencias!$C$27,", ",Referencias!$C$33) -> 16, 20, 25, 26, 32 | AY19: 42.375 | AZ19: =CONCATENATE(Referencias!$C$26,", ",Referencias!$C$33) -> 25, 32 | BA19: 30.69 | BB19: =CONCATENATE(Referencias!$C$26,", ",Referencias!$C$28) -> 25, 27 | BC19: 31.41 | BD19: =CONCATENATE(Referencias!$C$26,", ",Referencias!$C$27) -> 25, 26 | BE19: 31.785 | BF19: =CONCATENATE(Referencias!$C$21,", ",Referencias!$C$26) -> 20, 25 | BG19: 13.95 | BH19: =CONCATENATE(Referencias!$C$17,", ",Referencias!$C$21,", ",Referencias!$C$26,"-",Referencias!$C$28) -> 16, 20, 25-27 | BI19: 145.31 | BJ19: =Referencias!$C$32 -> 31 | BK19: 479.45 | BL19: =CONCATENATE(Referencias!$C$17,", ",Referencias!$C$22,", ",Referencias!$C$27,", ",Referencias!$C$28,", ",Referencias!$C$33,", ",Referencias!$C$34,", ",Referencias!$C$36) -> 16, 21, 26, 27, 32, 33, 35 | BM19: 1424 | BN19: =CONCATENATE(Referencias!$C$17,", ",Referencias!$C$21,", ",Referencias!$C$22,", ",Referencias!$C$27,"-",Referencias!$C$29,", ",Referencias!$C$33,", ",Referencias!$C$34,", ",Referencias!$C$36) -> 16, 20, 21, 26-28, 32, 33, 35 | BO19: 436.46 | BP19: =Referencias!$C$32 -> 31
A20: País Vasco | B20: 1.6 | C20: =Referencias!$C$33 -> 32 | D20: 143 | E20: =Referencias!$C$33 -> 32 | F20: 209.07 | G20: =Referencias!$C$33 -> 32 | H20: 1583.5 | I20: =Referencias!$C$33 -> 32 | J20: 3316.754167 | K20: 2740.715 | L20: 2740.715 | M20: =Referencias!$C$52 -> 51 | N20: 183.3 | O20: =Referencias!$C$33 -> 32 | P20: 0.3 | Q20: =Referencias!$C$33 -> 32 | R20: 10 | S20: =Referencias!$C$33 -> 32 | T20: 13.32 | U20: =CONCATENATE(Referencias!$C$17,", ",Referencias!$C$21,", ",Referencias!$C$22,", ",Referencias!$C$26,"-",Referencias!$C$28) -> 16, 20, 21, 25-27 | V20: 10 | W20: 0.36 | X20: 0.4 | Y20: 10 | Z20: 6.4 | AA20: 1.4 | AB20: 0.3 | AC20: 10 | AD20: =Referencias!$C$33 -> 32 | AE20: 0.3 | AF20: =Referencias!$C$33 -> 32 | AG20: 0.3 | AH20: =Referencias!$C$33 -> 32 | AI20: 0.3 | AJ20: 0.3 | AK20: =Referencias!$C$33 -> 32 | AL20: 26 | AM20: 36 | AN20: 52 | AO20: 3.5 | AP20: 10 | AQ20: 26 | AR20: 24 | AS20: =Referencias!$C$33 -> 32 | AT20: 14.4 | AU20: =Referencias!$C$33 -> 32 | AV20: 26 | AW20: 14.4 | AX20: =Referencias!$C$33 -> 32 | AY20: 42 | AZ20: =Referencias!$C$33 -> 32 | BA20: 30.69 | BB20: =CONCATENATE(Referencias!$C$26,", ",Referencias!$C$28) -> 25, 27 | BC20: 31.41 | BD20: =CONCATENATE(Referencias!$C$26,", ",Referencias!$C$27) -> 25, 26 | BE20: 31.785 | BF20: =CONCATENATE(Referencias!$C$21,", ",Referencias!$C$26) -> 20, 25 | BG20: 13.95 | BH20: =CONCATENATE(Referencias!$C$17,", ",Referencias!$C$21,", ",Referencias!$C$26,"-",Referencias!$C$28) -> 16, 20, 25-27 | BI20: 210 | BJ20: =Referencias!$C$33 -> 32 | BK20: 503 | BL20: =Referencias!$C$33 -> 32 | BM20: 1334 | BN20: =Referencias!$C$33 -> 32 | BO20: 748.2106422 | BP20: =CONCATENATE(Referencias!$C$17,", ",Referencias!$C$21,", ",Referencias!$C$22,", ",Referencias!$C$25,", ",Referencias!$C$27,", ",Referencias!$C$28,", ",Referencias!$C$31,", ",Referencias!$C$32,", ",Referencias!$C$36) -> 16, 20, 21, 24, 26, 27, 30, 31, 35
A21: La Rioja | B21: 4.41 | C21: =CONCATENATE(Referencias!$C$17,", ",Referencias!$C$19,", ",Referencias!$C$26,", ",Referencias!$C$27,", ",Referencias!$C$30,", ",Referencias!$C$33,", ",Referencias!$C$36) -> 16, 18, 25, 26, 29, 32, 35 | D21: 151.9336882 | E21: =CONCATENATE(Referencias!$C$34,",",Referencias!$C$36) -> 33,35 | F21: 102.473316 | G21: =CONCATENATE(Referencias!$C$34,",",Referencias!$C$36) -> 33,35 | H21: 1303.824412 | I21: =CONCATENATE(Referencias!$C$34,",",Referencias!$C$36) -> 33,35 | J21: 3586.715675 | K21: 1984.21031 | L21: 1984.21031 | M21: =CONCATENATE(Referencias!$C$36,", ",Referencias!$C$53) -> 35, 52 | N21: 82 | O21: =CONCATENATE(Referencias!$C$21,", ",Referencias!$C$24,", ",Referencias!$C$26,"-",Referencias!$C$28,", ",Referencias!$C$33,", ",Referencias!$C$36) -> 20, 23, 25-27, 32, 35 | P21: 0.615150835 | Q21: =CONCATENATE(Referencias!$C$17,", ",Referencias!$C$19,", ",Referencias!$C$21,", ",Referencias!$C$22,", ", Referencias!$C$26,"-",Referencias!$C$28,", ",Referencias!$C$33,", ",Referencias!$C$36) -> 16, 18, 20, 21, 25-27, 32, 35 | R21: 11.615 | S21: =CONCATENATE(Referencias!$C$17,", ",Referencias!$C$22,", ",Referencias!$C$26,"-",Referencias!$C$28,", ",Referencias!$C$33) -> 16, 21, 25-27, 32 | T21: 13.32 | U21: =CONCATENATE(Referencias!$C$17,", ",Referencias!$C$21,", ",Referencias!$C$22,", ",Referencias!$C$26,"-",Referencias!$C$28) -> 16, 20, 21, 25-27 | V21: 8.39 | W21: 0.69030167 | X21: 0.93 | Y21: 7.94 | Z21: 1.18 | AA21: 0.94 | AB21: 0.69030167 | AC21: 9.95 | AD21: =CONCATENATE(Referencias!$C$17,", ",Referencias!$C$21,", ",Referencias!$C$22,", ",Referencias!$C$26,"-",Referencias!$C$28,", ",Referencias!$C$33) -> 16, 20, 21, 25-27, 32 | AE21: 0.71 | AF21: =CONCATENATE(Referencias!$C$17,", ",Referencias!$C$26," - ",Referencias!$C$28,", ",Referencias!$C$33) -> 16, 25 - 27, 32 | AG21: 0.7766666667 | AH21: =CONCATENATE(Referencias!$C$17,", ",Referencias!$C$19,", ",Referencias!$C$22,", ",Referencias!$C$26,"-",Referencias!$C$28,", ",Referencias!$C$33,", ",Referencias!$C$36) -> 16, 18, 21, 25-27, 32, 35 | AI21: 1.02 | AJ21: 1.02 | AK21: =CONCATENATE(Referencias!$C$17,", ",Referencias!$C$19,", ",Referencias!$C$21,", ",Referencias!$C$22,", ",Referencias!$C$26,"-",Referencias!$C$28,", ",Referencias!$C$33,", ",Referencias!$C$36) -> 16, 18, 20, 21, 25-27, 32, 35 | AL21: 17.315 | AM21: 33.15 | AN21: 30.25 | AO21: 18.675 | AP21: 10.825 | AQ21: 21.22 | AR21: 11.64 | AS21: =CONCATENATE(Referencias!$C$17,", ",Referencias!$C$21,", ",Referencias!$C$26,"-",Referencias!$C$28,", ",Referencias!$C$33) -> 16, 20, 25-27, 32 | AT21: 11.28 | AU21: =CONCATENATE(Referencias!$C$17,", ",Referencias!$C$21,", ",Referencias!$C$26,", ",Referencias!$C$28,", ",Referencias!$C$33) -> 16, 20, 25, 27, 32 | AV21: 17.47 | AW21: 9.29 | AX21: =CONCATENATE(Referencias!$C$17,", ",Referencias!$C$21,", ",Referencias!$C$26,", ",Referencias!$C$27,", ",Referencias!$C$33) -> 16, 20, 25, 26, 32 | AY21: 42.375 | AZ21: =CONCATENATE(Referencias!$C$26,", ",Referencias!$C$33) -> 25, 32 | BA21: 30.69 | BB21: =CONCATENATE(Referencias!$C$26,", ",Referencias!$C$28) -> 25, 27 | BC21: 31.41 | BD21: =CONCATENATE(Referencias!$C$26,", ",Referencias!$C$27) -> 25, 26 | BE21: 31.785 | BF21: =CONCATENATE(Referencias!$C$21,", ",Referencias!$C$26) -> 20, 25 | BG21: 13.95 | BH21: =CONCATENATE(Referencias!$C$17,", ",Referencias!$C$21,", ",Referencias!$C$26,"-",Referencias!$C$28) -> 16, 20, 25-27 | BI21: 220.2492322 | BJ21: =CONCATENATE(Referencias!$C$34,",",Referencias!$C$36) -> 33,35 | BK21: 382.779384 | BL21: =CONCATENATE(Referencias!$C$34,",",Referencias!$C$36) -> 33,35 | BM21: 1022.323945 | BN21: =CONCATENATE(Referencias!$C$34,",",Referencias!$C$36) -> 33,35 | BO21: 748.2106422 | BP21: =CONCATENATE(Referencias!$C$17,", ",Referencias!$C$21,", ",Referencias!$C$22,", ",Referencias!$C$25,", ",Referencias!$C$27,", ",Referencias!$C$28,", ",Referencias!$C$31,", ",Referencias!$C$32,", ",Referencias!$C$36) -> 16, 20, 21, 24, 26, 27, 30, 31, 35
A22: Ceuta | B22: 4.41 | C22: =CONCATENATE(Referencias!$C$17,", ",Referencias!$C$19,", ",Referencias!$C$26,", ",Referencias!$C$27,", ",Referencias!$C$30,", ",Referencias!$C$33,", ",Referencias!$C$36) -> 16, 18, 25, 26, 29, 32, 35 | D22: 96.66 | E22: =Referencias!$C$35 -> 34 | F22: 88.4 | G22: =Referencias!$C$35 -> 34 | H22: 1393.86875 | I22: =CONCATENATE(Referencias!$C$17,", ",Referencias!$C$21,", ",Referencias!$C$27,", ",Referencias!$C$28,", ",Referencias!$C$33,", ",Referencias!$C$34,", ",Referencias!$C$36) -> 16, 20, 26, 27, 32, 33, 35 | J22: 3508.6 | K22: 1889.7 | L22: 1889.7 | M22: =Referencias!$C$54 -> 53 | N22: 82 | O22: =CONCATENATE(Referencias!$C$21,", ",Referencias!$C$24,", ",Referencias!$C$26,"-",Referencias!$C$28,", ",Referencias!$C$33,", ",Referencias!$C$36) -> 20, 23, 25-27, 32, 35 | P22: 0.615150835 | Q22: =CONCATENATE(Referencias!$C$17,", ",Referencias!$C$19,", ",Referencias!$C$21,", ",Referencias!$C$22,", ", Referencias!$C$26,"-",Referencias!$C$28,", ",Referencias!$C$33,", ",Referencias!$C$36) -> 16, 18, 20, 21, 25-27, 32, 35 | R22: 11.615 | S22: =CONCATENATE(Referencias!$C$17,", ",Referencias!$C$22,", ",Referencias!$C$26,"-",Referencias!$C$28,", ",Referencias!$C$33) -> 16, 21, 25-27, 32 | T22: 13.32 | U22: =CONCATENATE(Referencias!$C$17,", ",Referencias!$C$21,", ",Referencias!$C$22,", ",Referencias!$C$26,"-",Referencias!$C$28) -> 16, 20, 21, 25-27 | V22: 8.39 | W22: 0.69030167 | X22: 0.93 | Y22: 7.94 | Z22: 1.18 | AA22: 0.94 | AB22: 0.69030167 | AC22: 9.95 | AD22: =CONCATENATE(Referencias!$C$17,", ",Referencias!$C$21,", ",Referencias!$C$22,", ",Referencias!$C$26,"-",Referencias!$C$28,", ",Referencias!$C$33) -> 16, 20, 21, 25-27, 32 | AE22: 0.71 | AF22: =CONCATENATE(Referencias!$C$17,", ",Referencias!$C$26," - ",Referencias!$C$28,", ",Referencias!$C$33) -> 16, 25 - 27, 32 | AG22: 0.7766666667 | AH22: =CONCATENATE(Referencias!$C$17,", ",Referencias!$C$19,", ",Referencias!$C$22,", ",Referencias!$C$26,"-",Referencias!$C$28,", ",Referencias!$C$33,", ",Referencias!$C$36) -> 16, 18, 21, 25-27, 32, 35 | AI22: 1.02 | AJ22: 1.02 | AK22: =CONCATENATE(Referencias!$C$17,", ",Referencias!$C$19,", ",Referencias!$C$21,", ",Referencias!$C$22,", ",Referencias!$C$26,"-",Referencias!$C$28,", ",Referencias!$C$33,", ",Referencias!$C$36) -> 16, 18, 20, 21, 25-27, 32, 35 | AL22: 17.315 | AM22: 33.15 | AN22: 30.25 | AO22: 18.675 | AP22: 10.825 | AQ22: 21.22 | AR22: 11.64 | AS22: =CONCATENATE(Referencias!$C$17,", ",Referencias!$C$21,", ",Referencias!$C$26,"-",Referencias!$C$28,", ",Referencias!$C$33) -> 16, 20, 25-27, 32 | AT22: 11.28 | AU22: =CONCATENATE(Referencias!$C$17,", ",Referencias!$C$21,", ",Referencias!$C$26,", ",Referencias!$C$28,", ",Referencias!$C$33) -> 16, 20, 25, 27, 32 | AV22: 17.47 | AW22: 9.29 | AX22: =CONCATENATE(Referencias!$C$17,", ",Referencias!$C$21,", ",Referencias!$C$26,", ",Referencias!$C$27,", ",Referencias!$C$33) -> 16, 20, 25, 26, 32 | AY22: 42.375 | AZ22: =CONCATENATE(Referencias!$C$26,", ",Referencias!$C$33) -> 25, 32 | BA22: 30.69 | BB22: =CONCATENATE(Referencias!$C$26,", ",Referencias!$C$28) -> 25, 27 | BC22: 31.41 | BD22: =CONCATENATE(Referencias!$C$26,", ",Referencias!$C$27) -> 25, 26 | BE22: 31.785 | BF22: =CONCATENATE(Referencias!$C$21,", ",Referencias!$C$26) -> 20, 25 | BG22: 13.95 | BH22: =CONCATENATE(Referencias!$C$17,", ",Referencias!$C$21,", ",Referencias!$C$26,"-",Referencias!$C$28) -> 16, 20, 25-27 | BI22: 210 | BJ22: =CONCATENATE(Referencias!$C$17,", ",Referencias!$C$18,", ",Referencias!$C$20,"-",Referencias!$C$34,", ",Referencias!$C$36) -> 16, 17, 19-33, 35 | BK22: 479.45 | BL22: =CONCATENATE(Referencias!$C$17,", ",Referencias!$C$22,", ",Referencias!$C$27,", ",Referencias!$C$28,", ",Referencias!$C$33,", ",Referencias!$C$34,", ",Referencias!$C$36) -> 16, 21, 26, 27, 32, 33, 35 | BM22: 1424 | BN22: =CONCATENATE(Referencias!$C$17,", ",Referencias!$C$21,", ",Referencias!$C$22,", ",Referencias!$C$27,"-",Referencias!$C$29,", ",Referencias!$C$33,", ",Referencias!$C$34,", ",Referencias!$C$36) -> 16, 20, 21, 26-28, 32, 33, 35 | BO22: 748.2106422 | BP22: =CONCATENATE(Referencias!$C$17,", ",Referencias!$C$21,", ",Referencias!$C$22,", ",Referencias!$C$25,", ",Referencias!$C$27,", ",Referencias!$C$28,", ",Referencias!$C$31,", ",Referencias!$C$32,", ",Referencias!$C$36) -> 16, 20, 21, 24, 26, 27, 30, 31, 35
A23: Melilla | B23: 4.41 | C23: =CONCATENATE(Referencias!$C$17,", ",Referencias!$C$19,", ",Referencias!$C$26,", ",Referencias!$C$27,", ",Referencias!$C$30,", ",Referencias!$C$33,", ",Referencias!$C$36) -> 16, 18, 25, 26, 29, 32, 35 | D23: 96.66 | E23: =Referencias!$C$35 -> 34 | F23: 88.4 | G23: =Referencias!$C$35 -> 34 | H23: 1393.86875 | I23: =CONCATENATE(Referencias!$C$17,", ",Referencias!$C$21,", ",Referencias!$C$27,", ",Referencias!$C$28,", ",Referencias!$C$33,", ",Referencias!$C$34,", ",Referencias!$C$36) -> 16, 20, 26, 27, 32, 33, 35 | J23: 3508.6 | K23: 1889.7 | L23: 1889.7 | M23: =Referencias!$C$54 -> 53 | N23: 82 | O23: =CONCATENATE(Referencias!$C$21,", ",Referencias!$C$24,", ",Referencias!$C$26,"-",Referencias!$C$28,", ",Referencias!$C$33,", ",Referencias!$C$36) -> 20, 23, 25-27, 32, 35 | P23: 0.615150835 | Q23: =CONCATENATE(Referencias!$C$17,", ",Referencias!$C$19,", ",Referencias!$C$21,", ",Referencias!$C$22,", ", Referencias!$C$26,"-",Referencias!$C$28,", ",Referencias!$C$33,", ",Referencias!$C$36) -> 16, 18, 20, 21, 25-27, 32, 35 | R23: 11.615 | S23: =CONCATENATE(Referencias!$C$17,", ",Referencias!$C$22,", ",Referencias!$C$26,"-",Referencias!$C$28,", ",Referencias!$C$33) -> 16, 21, 25-27, 32 | T23: 13.32 | U23: =CONCATENATE(Referencias!$C$17,", ",Referencias!$C$21,", ",Referencias!$C$22,", ",Referencias!$C$26,"-",Referencias!$C$28) -> 16, 20, 21, 25-27 | V23: 8.39 | W23: 0.69030167 | X23: 0.93 | Y23: 7.94 | Z23: 1.18 | AA23: 0.94 | AB23: 0.69030167 | AC23: 9.95 | AD23: =CONCATENATE(Referencias!$C$17,", ",Referencias!$C$21,", ",Referencias!$C$22,", ",Referencias!$C$26,"-",Referencias!$C$28,", ",Referencias!$C$33) -> 16, 20, 21, 25-27, 32 | AE23: 0.71 | AF23: =CONCATENATE(Referencias!$C$17,", ",Referencias!$C$26," - ",Referencias!$C$28,", ",Referencias!$C$33) -> 16, 25 - 27, 32 | AG23: 0.7766666667 | AH23: =CONCATENATE(Referencias!$C$17,", ",Referencias!$C$19,", ",Referencias!$C$22,", ",Referencias!$C$26,"-",Referencias!$C$28,", ",Referencias!$C$33,", ",Referencias!$C$36) -> 16, 18, 21, 25-27, 32, 35 | AI23: 1.02 | AJ23: 1.02 | AK23: =CONCATENATE(Referencias!$C$17,", ",Referencias!$C$19,", ",Referencias!$C$21,", ",Referencias!$C$22,", ",Referencias!$C$26,"-",Referencias!$C$28,", ",Referencias!$C$33,", ",Referencias!$C$36) -> 16, 18, 20, 21, 25-27, 32, 35 | AL23: 17.315 | AM23: 33.15 | AN23: 30.25 | AO23: 18.675 | AP23: 10.825 | AQ23: 21.22 | AR23: 11.64 | AS23: =CONCATENATE(Referencias!$C$17,", ",Referencias!$C$21,", ",Referencias!$C$26,"-",Referencias!$C$28,", ",Referencias!$C$33) -> 16, 20, 25-27, 32 | AT23: 11.28 | AU23: =CONCATENATE(Referencias!$C$17,", ",Referencias!$C$21,", ",Referencias!$C$26,", ",Referencias!$C$28,", ",Referencias!$C$33) -> 16, 20, 25, 27, 32 | AV23: 17.47 | AW23: 9.29 | AX23: =CONCATENATE(Referencias!$C$17,", ",Referencias!$C$21,", ",Referencias!$C$26,", ",Referencias!$C$27,", ",Referencias!$C$33) -> 16, 20, 25, 26, 32 | AY23: 42.375 | AZ23: =CONCATENATE(Referencias!$C$26,", ",Referencias!$C$33) -> 25, 32 | BA23: 30.69 | BB23: =CONCATENATE(Referencias!$C$26,", ",Referencias!$C$28) -> 25, 27 | BC23: 31.41 | BD23: =CONCATENATE(Referencias!$C$26,", ",Referencias!$C$27) -> 25, 26 | BE23: 31.785 | BF23: =CONCATENATE(Referencias!$C$21,", ",Referencias!$C$26) -> 20, 25 | BG23: 13.95 | BH23: =CONCATENATE(Referencias!$C$17,", ",Referencias!$C$21,", ",Referencias!$C$26,"-",Referencias!$C$28) -> 16, 20, 25-27 | BI23: 210 | BJ23: =CONCATENATE(Referencias!$C$17,", ",Referencias!$C$18,", ",Referencias!$C$20,"-",Referencias!$C$34,", ",Referencias!$C$36) -> 16, 17, 19-33, 35 | BK23: 479.45 | BL23: =CONCATENATE(Referencias!$C$17,", ",Referencias!$C$22,", ",Referencias!$C$27,", ",Referencias!$C$28,", ",Referencias!$C$33,", ",Referencias!$C$34,", ",Referencias!$C$36) -> 16, 21, 26, 27, 32, 33, 35 | BM23: 1424 | BN23: =CONCATENATE(Referencias!$C$17,", ",Referencias!$C$21,", ",Referencias!$C$22,", ",Referencias!$C$27,"-",Referencias!$C$29,", ",Referencias!$C$33,", ",Referencias!$C$34,", ",Referencias!$C$36) -> 16, 20, 21, 26-28, 32, 33, 35 | BO23: 748.2106422 | BP23: =CONCATENATE(Referencias!$C$17,", ",Referencias!$C$21,", ",Referencias!$C$22,", ",Referencias!$C$25,", ",Referencias!$C$27,", ",Referencias!$C$28,", ",Referencias!$C$31,", ",Referencias!$C$32,", ",Referencias!$C$36) -> 16, 20, 21, 24, 26, 27, 30, 31, 35
W25: Revisar
B26: Marcados en amarillo los que hay que revisar | W26: ´Habia una errata | AL26: URV | AM26: URV | AN26: URV | AO26: URV | AQ26: URV | AV26: URV
W27: La mediana estaba sacada con 0,69 | AL27: 2.5 | AM27: 3.5 | AN27: 5 | AO27: 3.5 | AQ27: 2.5 | AV27: 2.5
AL28: Precio | AM28: Precio | AN28: Precio | AO28: Precio | AQ28: Precio | AV28: Precio
AL29: 26 | AM29: 36 | AN29: 52 | AO29: 36 | AQ29: 26 | AV29: 26
AL30: =AL27*AL29 -> 65 | AM30: =AM27*AM29 -> 126 | AN30: 260 | AO30: 126 | AQ30: 65 | AV30: =AV27*AV29 -> 65

Sheet Datos listas cuestionarios
A1: 1 | B1: =A1+1 -> 2 | C1: =B1+1 -> 3 | D1: =C1+1 -> 4 | E1: 5 | F1: 6
B2: Positividad del cuestionario de malnutrición | C2: Referencia | D2: Prevalencia de malnutrición tras valoración nutricional | E2: Referencia | G2: VPP | H2: S | I2: E
A3: MUST | B3: 0.288 | C3: =Referencias!$C$6 -> 5 | D3: 0.841 | E3: =Referencias!$C$6 -> 5 | F3: =D3*B3 -> 0.242208 | G3: 0.841
A4: NRS 2002® | B4: 0.230228471 | C4: =Referencias!$C$7 -> 6 | D4: 1 | E4: =Referencias!$C$7 -> 6 | F4: =B4*D4 -> 0.230228471
A5: MNA® | B5: =41.6%+24.6% -> 0.662 | C5: =Referencias!$C$8 -> 7 | D5: =F5/B5 -> 0.3277945619 | E5: =Referencias!$C$8 -> 7 | F5: 0.217
A6: MST | B6: 0.2737 | C6: =Referencias!$C$6 -> 5 | D6: 0.867 | E6: =Referencias!$C$6 -> 5 | F6: =D6*B6 -> 0.2372979 | G6: 0.867
A7: SNAQ | B7: 0.176 | C7: =Referencias!$C$7 -> 6 | D7: =F7/B7 -> 1 | E7: =Referencias!$C$9 -> 8 | F7: =13.7%+3.9% -> 0.176
A8: VSG | B8: =201/644 -> 0.3121118012 | C8: =Referencias!$C$7 -> 6 | D8: =F8/B8 -> 1 | E8: =Referencias!$C$10 -> 9 | F8: =201/644 -> 0.3121118012 | H8: 0.632 | I8: 0.967
B10: Pedir ayuda a almu
B11: Revisar tabla de evidencia
B12: https://www.euskadi.eus/contenidos/informacion/2012_osteba_publicacion/es_def/adjuntos/osteba_D-12-05%20desnutrici%C3%B3n%20hospitalaria.pdf
